Body name,Service Area,Dept,Expenses Type,Capital/Revenue,Detailed Expenses Type,Transaction number,Expense Code,Date,Amount,Supplier Name,Supplier ID
WANDSWORTH COUNCIL,CS,,OTH LA,Revenue,CONTRIBUTION - WESTMINSTER,823999,100044500,11/12/2015,"73,780.49",CITY OF WESTMINSTER,SP0000345
WANDSWORTH COUNCIL,CS,,"REPAIRS, ALTERATIONS & MTCE",Revenue,"REPS, ALTS & MTCE-BUILDINGS",833419,100410000,21/12/2015,"1,136.00",DDS ENVIRONMENTAL,SP0008409
WANDSWORTH COUNCIL,CS,,"REPAIRS, ALTERATIONS & MTCE",Revenue,"REPS, ALTS & MTCE-BUILDINGS",824945,100410000,11/12/2015,"1,800.00",RJR SERVICES LTD T/A DELTA SERVICES,SP0010274
WANDSWORTH COUNCIL,CS,,SERVICES,Revenue,CONSULTANTS FEES,818010,100434200,04/12/2015,"10,000.00",WILDSTONE MEDIA CONSULTING LTD,SP0010364
WANDSWORTH COUNCIL,CS,,SERVICES,Revenue,CONSULTANTS FEES,835647,100534200,29/12/2015,"3,845.00",JONES LANG LASALLE,SP0008111
WANDSWORTH COUNCIL,CS,,SERVICES,Revenue,CONSULTANTS FEES,837799,100534200,24/12/2015,720.00,GLENVILLA ESTATES  LTD,SP0010397
WANDSWORTH COUNCIL,CS,,OTHER AGENCIES,Revenue,HEALTHWATCH CONTRACT,834907,102043830,23/12/2015,"35,911.00",WANDSWORTH CARE ALLIANCE,SP0008176
WANDSWORTH COUNCIL,CS,,PRINTING STAT & GEN OFFICE EXP,Revenue,PRINTING REGISTRATION A FORM,819133,103033440,07/12/2015,459.58,BANNER MANAGED COMMUNICATION,SP0003555
WANDSWORTH COUNCIL,CS,,COMMUNICATIONS & COMP,Revenue,COMMUNICATIONS - POSTAGE,815820,103036000,10/12/2015,"3,135.90",ROYAL MAIL,SP0001067
WANDSWORTH COUNCIL,CS,,COMMUNICATIONS & COMP,Revenue,COMMUNICATIONS - POSTAGE,817647,103036000,04/12/2015,"1,503.34",ROYAL MAIL,SP0001067
WANDSWORTH COUNCIL,CS,,COMMUNICATIONS & COMP,Revenue,COMMUNICATIONS - POSTAGE,825977,103036000,16/12/2015,"1,149.20",ROYAL MAIL,SP0001067
WANDSWORTH COUNCIL,CS,,COMMUNICATIONS & COMP,Revenue,XPRESS COMPUTER,818609,103036570,14/12/2015,550.00,XPRESS SOFTWARE SOLUTIONS LTD,SP0003149
WANDSWORTH COUNCIL,CS,,"EQUIPMENT, FURNITURE & MATS",Revenue,FLOWERS,815817,103130170,04/12/2015,969.00,PATRICIA WONG,SP0002085
WANDSWORTH COUNCIL,CS,,"EQUIPMENT, FURNITURE & MATS",Revenue,FLOWERS,830980,103130170,21/12/2015,864.00,PATRICIA WONG,SP0002085
WANDSWORTH COUNCIL,CS,,COMMUNICATIONS & COMP,Revenue,I.T. DEVELOPMENTS,830507,103436200,21/12/2015,3.00,AMERICANINO LTD,SP0003193
WANDSWORTH COUNCIL,CS,,COMMUNICATIONS & COMP,Revenue,I.T. DEVELOPMENTS,830507,103436200,21/12/2015,"1,062.50",AMERICANINO LTD,SP0003193
WANDSWORTH COUNCIL,PH,,HEALTH,Revenue,GP LES CONTRACTS,823185,105041520,10/12/2015,686.00,BRIDGE LANE GROUP PRACTICE,SP0000516
WANDSWORTH COUNCIL,PH,,HEALTH,Revenue,GP LES CONTRACTS,823178,105041520,10/12/2015,"4,841.00",BALHAM PARK SURGERY,SP0000925
WANDSWORTH COUNCIL,PH,,HEALTH,Revenue,GP LES CONTRACTS,825962,105041520,17/12/2015,"1,440.00",MAYFIELD SURGERY,SP0002209
WANDSWORTH COUNCIL,PH,,HEALTH,Revenue,GP LES CONTRACTS,825964,105041520,17/12/2015,"3,942.00",LAVENDER HILL GROUP PRACTICE H85069,SP0003344
WANDSWORTH COUNCIL,PH,,HEALTH,Revenue,GP LES CONTRACTS,825959,105041520,16/12/2015,202.00,QUEENSTOWN ROAD MEDICAL PRACTICE H85003,SP0003591
WANDSWORTH COUNCIL,PH,,HEALTH,Revenue,GP LES CONTRACTS,814182,105041520,04/12/2015,880.00,CARE UK CLINICAL SERVICES LTD,SP0005790
WANDSWORTH COUNCIL,PH,,HEALTH,Revenue,GP LES CONTRACTS,825952,105041520,16/12/2015,"1,303.00",CARE UK CLINICAL SERVICES LTD,SP0005790
WANDSWORTH COUNCIL,PH,,HEALTH,Revenue,GP LES CONTRACTS,823614,105041520,11/12/2015,"3,690.00",PUTNEYMEAD GROUP MEDICAL PRACTICE H85012,SP0006951
WANDSWORTH COUNCIL,PH,,HEALTH,Revenue,GP LES CONTRACTS,825971,105041520,16/12/2015,"2,856.00",WANDSWORTH MEDICAL CENTRE,SP0007088
WANDSWORTH COUNCIL,PH,,HEALTH,Revenue,GP LES CONTRACTS,823181,105041520,09/12/2015,564.00,BATTERSEA RISE GROUP PRACTICE H85049,SP0007572
WANDSWORTH COUNCIL,PH,,HEALTH,Revenue,GP LES CONTRACTS,823184,105041520,10/12/2015,80.00,DR K BEGG H85659,SP0007574
WANDSWORTH COUNCIL,PH,,HEALTH,Revenue,GP LES CONTRACTS,826326,105041520,15/12/2015,"1,027.00",EARLSFIELD PRACTICE,SP0007581
WANDSWORTH COUNCIL,PH,,HEALTH,Revenue,GP LES CONTRACTS,835376,105041520,29/12/2015,"1,419.00",EARLSFIELD PRACTICE,SP0007581
WANDSWORTH COUNCIL,PH,,HEALTH,Revenue,GP LES CONTRACTS,825954,105041520,16/12/2015,484.00,THE FALCON ROAD MEDICAL CENTRE H85002,SP0007953
WANDSWORTH COUNCIL,PH,,HEALTH,Revenue,GP LES CONTRACTS,823186,105041520,09/12/2015,"2,366.00",BROCKLEBANK GROUP PRACTICE,SP0007967
WANDSWORTH COUNCIL,PH,,HEALTH,Revenue,GP LES CONTRACTS,825968,105041520,16/12/2015,"1,964.00",ELBOROUGH STREET SURGERY H85057,SP0007971
WANDSWORTH COUNCIL,PH,,HEALTH,Revenue,GP LES CONTRACTS,825956,105041520,16/12/2015,"1,583.00",ST PAULS COTTAGE PRACTICE,SP0007978
WANDSWORTH COUNCIL,PH,,HEALTH,Revenue,GP LES CONTRACTS,823613,105041520,11/12/2015,"2,715.00",HEATHBRIDGE PRACTICE,SP0008179
WANDSWORTH COUNCIL,PH,,HEALTH,Revenue,GP LES CONTRACTS,825949,105041520,17/12/2015,444.00,TUDOR LODGE HEALTH CENTRE H85682,SP0008309
WANDSWORTH COUNCIL,PH,,HEALTH,Revenue,GP LES CONTRACTS,825967,105041520,16/12/2015,301.00,GRAFTON MEDICAL PARTNERS Y02423,SP0008442
WANDSWORTH COUNCIL,PH,,HEALTH,Revenue,EMERG HORMONAL CONTRACEPTION,829289,105041670,18/12/2015,"1,265.00",PEARL CHEMIST LTD,SP0004997
WANDSWORTH COUNCIL,PH,,HEALTH,Revenue,EMERG HORMONAL CONTRACEPTION,830176,105041670,18/12/2015,"1,909.00",WANDSWORTH PHARMACY FGJ32,SP0004998
WANDSWORTH COUNCIL,PH,,HEALTH,Revenue,EMERG HORMONAL CONTRACEPTION,828399,105041670,18/12/2015,782.00,SALASJI LTD FG443 T/A DUMLERS PHARMACY,SP0005003
WANDSWORTH COUNCIL,PH,,HEALTH,Revenue,EMERG HORMONAL CONTRACEPTION,834885,105041670,29/12/2015,437.00,POLYPHARM LTD FNG23,SP0005011
WANDSWORTH COUNCIL,PH,,HEALTH,Revenue,EMERG HORMONAL CONTRACEPTION,828398,105041670,18/12/2015,230.00,ABC DRUGSTORE FH098,SP0005023
WANDSWORTH COUNCIL,PH,,HEALTH,Revenue,EMERG HORMONAL CONTRACEPTION,828624,105041670,18/12/2015,184.00,MARKRISE PHARMACY,SP0006464
WANDSWORTH COUNCIL,PH,,HEALTH,Revenue,EMERG HORMONAL CONTRACEPTION,828394,105041670,18/12/2015,"1,840.00",BOOTS THE CHEMISTS LTD,SP0006952
WANDSWORTH COUNCIL,PH,,HEALTH,Revenue,EMERG HORMONAL CONTRACEPTION,828625,105041670,18/12/2015,552.00,NSK LTD,SP0007000
WANDSWORTH COUNCIL,PH,,HEALTH,Revenue,EMERG HORMONAL CONTRACEPTION,828623,105041670,18/12/2015,391.00,QUIZCHOICE LTD FCL10,SP0007577
WANDSWORTH COUNCIL,PH,,HEALTH,Revenue,EMERG HORMONAL CONTRACEPTION,828379,105041670,18/12/2015,322.00,DAY LEWIS PLC,SP0007580
WANDSWORTH COUNCIL,PH,,HEALTH,Revenue,EMERG HORMONAL CONTRACEPTION,830175,105041670,18/12/2015,437.00,CANTERBURY PHARMACIES LTD,SP0007593
WANDSWORTH COUNCIL,PH,,HEALTH,Revenue,EMERG HORMONAL CONTRACEPTION,828395,105041670,18/12/2015,345.00,TINDACOL LTD T/A CARE CHEMISTS FW023,SP0008146
WANDSWORTH COUNCIL,PH,,HEALTH,Revenue,EMERG HORMONAL CONTRACEPTION,828629,105041670,18/12/2015,"1,127.00",I PATEL T/A TOOTING PHARMACY PRACT FK076,SP0008373
WANDSWORTH COUNCIL,PH,,HEALTH,Revenue,EMERG HORMONAL CONTRACEPTION,828397,105041670,18/12/2015,529.00,MEDIPHARMACY LIMITED FY644 T/A COOKS PH,SP0008377
WANDSWORTH COUNCIL,PH,,HEALTH,Revenue,EMERG HORMONAL CONTRACEPTION,816810,105041670,04/12/2015,460.00,OAKLON LIMITED FMC 35 T/A EAST HILL PHAR,SP0008379
WANDSWORTH COUNCIL,PH,,HEALTH,Revenue,EMERG HORMONAL CONTRACEPTION,828663,105041670,18/12/2015,207.00,OAKLON LIMITED FMC 35 T/A EAST HILL PHAR,SP0008379
WANDSWORTH COUNCIL,PH,,HEALTH,Revenue,EMERG HORMONAL CONTRACEPTION,828383,105041670,18/12/2015,"1,150.00",BOOTS UK LTD FD303,SP0008385
WANDSWORTH COUNCIL,PH,,HEALTH,Revenue,EMERG HORMONAL CONTRACEPTION,834890,105041670,29/12/2015,"1,426.00",BOOTS UK LTD FKP46 T/A BOOTS THE CHEMIST,SP0008388
WANDSWORTH COUNCIL,PH,,HEALTH,Revenue,EMERG HORMONAL CONTRACEPTION,828384,105041670,18/12/2015,"6,946.00",BOOTS UK LTD FC061 T/A BOOTS THE CHEMIST,SP0008389
WANDSWORTH COUNCIL,PH,,HEALTH,Revenue,EMERG HORMONAL CONTRACEPTION,828381,105041670,18/12/2015,"2,323.00",BOOTS UK LTD FYN24 T/A BOOTS THE CHEMIST,SP0008391
WANDSWORTH COUNCIL,PH,,HEALTH,Revenue,EMERG HORMONAL CONTRACEPTION,828392,105041670,18/12/2015,"4,255.00",BOOTS UK LTD FVK09 T/A BOOTS THE CHEMIST,SP0008393
WANDSWORTH COUNCIL,PH,,HEALTH,Revenue,EMERG HORMONAL CONTRACEPTION,828665,105041670,21/12/2015,184.00,BOOTS UK LTD FDN74 T/A BOOTS THE CHEMIST,SP0008394
WANDSWORTH COUNCIL,PH,,HEALTH,Revenue,EMERG HORMONAL CONTRACEPTION,828374,105041670,18/12/2015,736.00,JOTOSHOURNE LTD FR323 T/A BARRONS CHEMIS,SP0008416
WANDSWORTH COUNCIL,PH,,HEALTH,Revenue,EMERG HORMONAL CONTRACEPTION,829286,105041670,18/12/2015,460.00,PEARL CHEMIST LTD FHL06 T/A AUCKLAND ROG,SP0008417
WANDSWORTH COUNCIL,PH,,HEALTH,Revenue,EMERG HORMONAL CONTRACEPTION,829288,105041670,18/12/2015,"1,127.00",PEARL CHEMIST LTD FDV93 T/A LORDS PHARMA,SP0008419
WANDSWORTH COUNCIL,PH,,HEALTH,Revenue,EMERG HORMONAL CONTRACEPTION,828382,105041670,18/12/2015,276.00,ABC PHARMACY FGT10,SP0008446
WANDSWORTH COUNCIL,PH,,HEALTH,Revenue,EMERG HORMONAL CONTRACEPTION,828662,105041670,18/12/2015,460.00,BESTWAY NATIONAL CHEMIST LTD T/A WEL PHA,SP0009458
WANDSWORTH COUNCIL,PH,,HEALTH,Revenue,GP CHLAMYDIA SCREENING LES,823179,105141540,10/12/2015,80.00,BATTERSEA FIELDS PRACTICE,SP0000844
WANDSWORTH COUNCIL,PH,,HEALTH,Revenue,GP CHLAMYDIA SCREENING LES,823178,105141540,10/12/2015,180.00,BALHAM PARK SURGERY,SP0000925
WANDSWORTH COUNCIL,PH,,HEALTH,Revenue,GP CHLAMYDIA SCREENING LES,825962,105141540,17/12/2015,20.00,MAYFIELD SURGERY,SP0002209
WANDSWORTH COUNCIL,PH,,HEALTH,Revenue,GP CHLAMYDIA SCREENING LES,823183,105141540,09/12/2015,370.00,BEDFORD HILL FAMILY PRACTICE H85009,SP0002543
WANDSWORTH COUNCIL,PH,,HEALTH,Revenue,GP CHLAMYDIA SCREENING LES,825964,105141540,17/12/2015,120.00,LAVENDER HILL GROUP PRACTICE H85069,SP0003344
WANDSWORTH COUNCIL,PH,,HEALTH,Revenue,GP CHLAMYDIA SCREENING LES,825959,105141540,16/12/2015,240.00,QUEENSTOWN ROAD MEDICAL PRACTICE H85003,SP0003591
WANDSWORTH COUNCIL,PH,,HEALTH,Revenue,GP CHLAMYDIA SCREENING LES,814182,105141540,04/12/2015,710.00,CARE UK CLINICAL SERVICES LTD,SP0005790
WANDSWORTH COUNCIL,PH,,HEALTH,Revenue,GP CHLAMYDIA SCREENING LES,825952,105141540,16/12/2015,760.00,CARE UK CLINICAL SERVICES LTD,SP0005790
WANDSWORTH COUNCIL,PH,,HEALTH,Revenue,GP CHLAMYDIA SCREENING LES,835377,105141540,23/12/2015,50.00,THE GREYSWOOD PRACTICE,SP0006936
WANDSWORTH COUNCIL,PH,,HEALTH,Revenue,GP CHLAMYDIA SCREENING LES,823614,105141540,11/12/2015,180.00,PUTNEYMEAD GROUP MEDICAL PRACTICE H85012,SP0006951
WANDSWORTH COUNCIL,PH,,HEALTH,Revenue,GP CHLAMYDIA SCREENING LES,825971,105141540,16/12/2015,40.00,WANDSWORTH MEDICAL CENTRE,SP0007088
WANDSWORTH COUNCIL,PH,,HEALTH,Revenue,GP CHLAMYDIA SCREENING LES,823181,105141540,09/12/2015,50.00,BATTERSEA RISE GROUP PRACTICE H85049,SP0007572
WANDSWORTH COUNCIL,PH,,HEALTH,Revenue,GP CHLAMYDIA SCREENING LES,826326,105141540,15/12/2015,30.00,EARLSFIELD PRACTICE,SP0007581
WANDSWORTH COUNCIL,PH,,HEALTH,Revenue,GP CHLAMYDIA SCREENING LES,825957,105141540,16/12/2015,40.00,SOUTHFIELDS GROUP PRACTICE H85007,SP0007583
WANDSWORTH COUNCIL,PH,,HEALTH,Revenue,GP CHLAMYDIA SCREENING LES,825954,105141540,16/12/2015,370.00,THE FALCON ROAD MEDICAL CENTRE H85002,SP0007953
WANDSWORTH COUNCIL,PH,,HEALTH,Revenue,GP CHLAMYDIA SCREENING LES,825996,105141540,16/12/2015,130.00,TOOTING SOUTH MEDICAL CENTRE,SP0007962
WANDSWORTH COUNCIL,PH,,HEALTH,Revenue,GP CHLAMYDIA SCREENING LES,823186,105141540,09/12/2015,90.00,BROCKLEBANK GROUP PRACTICE,SP0007967
WANDSWORTH COUNCIL,PH,,HEALTH,Revenue,GP CHLAMYDIA SCREENING LES,825968,105141540,16/12/2015,20.00,ELBOROUGH STREET SURGERY H85057,SP0007971
WANDSWORTH COUNCIL,PH,,HEALTH,Revenue,GP CHLAMYDIA SCREENING LES,825956,105141540,16/12/2015,10.00,ST PAULS COTTAGE PRACTICE,SP0007978
WANDSWORTH COUNCIL,PH,,HEALTH,Revenue,GP CHLAMYDIA SCREENING LES,823986,105141540,11/12/2015,130.00,CLAPHAM JUNCTION MEDICAL PRACTICE,SP0008135
WANDSWORTH COUNCIL,PH,,HEALTH,Revenue,GP CHLAMYDIA SCREENING LES,825958,105141540,16/12/2015,10.00,THE ROEHAMPTON SURGERY,SP0008174
WANDSWORTH COUNCIL,PH,,HEALTH,Revenue,GP CHLAMYDIA SCREENING LES,823613,105141540,11/12/2015,130.00,HEATHBRIDGE PRACTICE,SP0008179
WANDSWORTH COUNCIL,PH,,HEALTH,Revenue,GP CHLAMYDIA SCREENING LES,825960,105141540,16/12/2015,640.00,THE OPEN DOOR SURGERY H85087,SP0008280
WANDSWORTH COUNCIL,PH,,HEALTH,Revenue,GP CHLAMYDIA SCREENING LES,825953,105141540,16/12/2015,70.00,THE HAIDER PRACTICE H85075,SP0008283
WANDSWORTH COUNCIL,PH,,HEALTH,Revenue,GP CHLAMYDIA SCREENING LES,825951,105141540,16/12/2015,360.00,TOOTING BEC SURGERY,SP0008284
WANDSWORTH COUNCIL,PH,,HEALTH,Revenue,GP CHLAMYDIA SCREENING LES,826156,105141540,16/12/2015,10.00,P AND A KUMAR PRACTICE,SP0008285
WANDSWORTH COUNCIL,PH,,HEALTH,Revenue,GP CHLAMYDIA SCREENING LES,825949,105141540,17/12/2015,70.00,TUDOR LODGE HEALTH CENTRE H85682,SP0008309
WANDSWORTH COUNCIL,PH,,HEALTH,Revenue,GP CHLAMYDIA SCREENING LES,825967,105141540,16/12/2015,300.00,GRAFTON MEDICAL PARTNERS Y02423,SP0008442
WANDSWORTH COUNCIL,PH,,HEALTH,Revenue,GP CHLAMYDIA SCREENING LES,825955,105141540,16/12/2015,30.00,STREATHAM PARK SURGERY H85052,SP0008443
WANDSWORTH COUNCIL,PH,,HEALTH,Revenue,HIV RAPID TESTING PILOT,823179,105141710,10/12/2015,385.00,BATTERSEA FIELDS PRACTICE,SP0000844
WANDSWORTH COUNCIL,PH,,HEALTH,Revenue,HIV RAPID TESTING PILOT,823183,105141710,09/12/2015,440.00,BEDFORD HILL FAMILY PRACTICE H85009,SP0002543
WANDSWORTH COUNCIL,PH,,HEALTH,Revenue,HIV RAPID TESTING PILOT,825964,105141710,17/12/2015,35.00,LAVENDER HILL GROUP PRACTICE H85069,SP0003344
WANDSWORTH COUNCIL,PH,,HEALTH,Revenue,HIV RAPID TESTING PILOT,825959,105141710,16/12/2015,150.00,QUEENSTOWN ROAD MEDICAL PRACTICE H85003,SP0003591
WANDSWORTH COUNCIL,PH,,HEALTH,Revenue,HIV RAPID TESTING PILOT,814182,105141710,04/12/2015,"1,085.00",CARE UK CLINICAL SERVICES LTD,SP0005790
WANDSWORTH COUNCIL,PH,,HEALTH,Revenue,HIV RAPID TESTING PILOT,825952,105141710,16/12/2015,925.00,CARE UK CLINICAL SERVICES LTD,SP0005790
WANDSWORTH COUNCIL,PH,,HEALTH,Revenue,HIV RAPID TESTING PILOT,819130,105141710,07/12/2015,"3,233.00",PASSANTE HEALTHCARE LTD,SP0006465
WANDSWORTH COUNCIL,PH,,HEALTH,Revenue,HIV RAPID TESTING PILOT,823614,105141710,11/12/2015,5.00,PUTNEYMEAD GROUP MEDICAL PRACTICE H85012,SP0006951
WANDSWORTH COUNCIL,PH,,HEALTH,Revenue,HIV RAPID TESTING PILOT,823184,105141710,10/12/2015,25.00,DR K BEGG H85659,SP0007574
WANDSWORTH COUNCIL,PH,,HEALTH,Revenue,HIV RAPID TESTING PILOT,825957,105141710,16/12/2015,165.00,SOUTHFIELDS GROUP PRACTICE H85007,SP0007583
WANDSWORTH COUNCIL,PH,,HEALTH,Revenue,HIV RAPID TESTING PILOT,823186,105141710,09/12/2015,280.00,BROCKLEBANK GROUP PRACTICE,SP0007967
WANDSWORTH COUNCIL,PH,,HEALTH,Revenue,HIV RAPID TESTING PILOT,825968,105141710,16/12/2015,40.00,ELBOROUGH STREET SURGERY H85057,SP0007971
WANDSWORTH COUNCIL,PH,,HEALTH,Revenue,HIV RAPID TESTING PILOT,825956,105141710,16/12/2015,125.00,ST PAULS COTTAGE PRACTICE,SP0007978
WANDSWORTH COUNCIL,PH,,HEALTH,Revenue,HIV RAPID TESTING PILOT,825960,105141710,16/12/2015,500.00,THE OPEN DOOR SURGERY H85087,SP0008280
WANDSWORTH COUNCIL,PH,,HEALTH,Revenue,HIV RAPID TESTING PILOT,825953,105141710,16/12/2015,5.00,THE HAIDER PRACTICE H85075,SP0008283
WANDSWORTH COUNCIL,PH,,HEALTH,Revenue,HIV RAPID TESTING PILOT,825967,105141710,16/12/2015,55.00,GRAFTON MEDICAL PARTNERS Y02423,SP0008442
WANDSWORTH COUNCIL,PH,,HEALTH,Revenue,CHLAMYDIA SCREENING,829289,105141760,18/12/2015,30.00,PEARL CHEMIST LTD,SP0004997
WANDSWORTH COUNCIL,PH,,HEALTH,Revenue,CHLAMYDIA SCREENING,830176,105141760,18/12/2015,20.00,WANDSWORTH PHARMACY FGJ32,SP0004998
WANDSWORTH COUNCIL,PH,,HEALTH,Revenue,CHLAMYDIA SCREENING,828399,105141760,18/12/2015,80.00,SALASJI LTD FG443 T/A DUMLERS PHARMACY,SP0005003
WANDSWORTH COUNCIL,PH,,HEALTH,Revenue,CHLAMYDIA SCREENING,828394,105141760,18/12/2015,30.00,BOOTS THE CHEMISTS LTD,SP0006952
WANDSWORTH COUNCIL,PH,,HEALTH,Revenue,CHLAMYDIA SCREENING,828625,105141760,18/12/2015,10.00,NSK LTD,SP0007000
WANDSWORTH COUNCIL,PH,,HEALTH,Revenue,CHLAMYDIA SCREENING,828376,105141760,18/12/2015,10.00,PATEL JG & KG LLP T/A AURA PHARMAC FV302,SP0007457
WANDSWORTH COUNCIL,PH,,HEALTH,Revenue,CHLAMYDIA SCREENING,830175,105141760,18/12/2015,10.00,CANTERBURY PHARMACIES LTD,SP0007593
WANDSWORTH COUNCIL,PH,,HEALTH,Revenue,CHLAMYDIA SCREENING,828397,105141760,18/12/2015,20.00,MEDIPHARMACY LIMITED FY644 T/A COOKS PH,SP0008377
WANDSWORTH COUNCIL,PH,,HEALTH,Revenue,CHLAMYDIA SCREENING,816810,105141760,04/12/2015,10.00,OAKLON LIMITED FMC 35 T/A EAST HILL PHAR,SP0008379
WANDSWORTH COUNCIL,PH,,HEALTH,Revenue,CHLAMYDIA SCREENING,828663,105141760,18/12/2015,30.00,OAKLON LIMITED FMC 35 T/A EAST HILL PHAR,SP0008379
WANDSWORTH COUNCIL,PH,,HEALTH,Revenue,CHLAMYDIA SCREENING,828381,105141760,18/12/2015,30.00,BOOTS UK LTD FYN24 T/A BOOTS THE CHEMIST,SP0008391
WANDSWORTH COUNCIL,PH,,PRINTING STAT & GEN OFFICE EXP,Revenue,PRINTING AND STATIONERY,822913,105233420,11/12/2015,655.20,WEM CONSULTANCY LTD,SP0006617
WANDSWORTH COUNCIL,PH,,HEALTH,Revenue,HIV HLTH SUPPORT SERVICE,827993,105241820,17/12/2015,"2,225.00",WEM CONSULTANCY LTD,SP0006617
WANDSWORTH COUNCIL,PH,,HEALTH,Revenue,ADVICE AND ADVOCACY SERVICES,822903,105241840,10/12/2015,"1,000.00",WEM CONSULTANCY LTD,SP0006617
WANDSWORTH COUNCIL,PH,,HEALTH,Revenue,ADVICE AND ADVOCACY SERVICES,822904,105241840,10/12/2015,"1,000.00",WEM CONSULTANCY LTD,SP0006617
WANDSWORTH COUNCIL,PH,,HEALTH,Revenue,ADVICE AND ADVOCACY SERVICES,822912,105241840,10/12/2015,"1,000.00",WEM CONSULTANCY LTD,SP0006617
WANDSWORTH COUNCIL,PH,,HEALTH,Revenue,ADVICE AND ADVOCACY SERVICES,827911,105241840,17/12/2015,"2,000.00",WEM CONSULTANCY LTD,SP0006617
WANDSWORTH COUNCIL,PH,,HEALTH,Revenue,THIRD PARTY PAYMENTS- TRAINING,814149,105340530,02/12/2015,"1,039.50",SMART HEALTH SOLUTIONS,SP0006629
WANDSWORTH COUNCIL,PH,,HEALTH,Revenue,THIRD PARTY PAYMENTS- TRAINING,831015,105340530,21/12/2015,"1,100.00",MARKEY PRIMARY SERVICES LTD,SP0006636
WANDSWORTH COUNCIL,PH,,HEALTH,Revenue,LOCALLY ENHANCED SERVICES,823185,105341380,10/12/2015,"3,631.20",BRIDGE LANE GROUP PRACTICE,SP0000516
WANDSWORTH COUNCIL,PH,,HEALTH,Revenue,LOCALLY ENHANCED SERVICES,823179,105341380,10/12/2015,998.58,BATTERSEA FIELDS PRACTICE,SP0000844
WANDSWORTH COUNCIL,PH,,HEALTH,Revenue,LOCALLY ENHANCED SERVICES,823178,105341380,10/12/2015,"2,390.54",BALHAM PARK SURGERY,SP0000925
WANDSWORTH COUNCIL,PH,,HEALTH,Revenue,LOCALLY ENHANCED SERVICES,825969,105341380,16/12/2015,"1,724.82",DR P ILVES T/A DANEBURY SURGERY H85067,SP0002029
WANDSWORTH COUNCIL,PH,,HEALTH,Revenue,LOCALLY ENHANCED SERVICES,825962,105341380,17/12/2015,193.61,MAYFIELD SURGERY,SP0002209
WANDSWORTH COUNCIL,PH,,HEALTH,Revenue,LOCALLY ENHANCED SERVICES,825962,105341380,17/12/2015,786.76,MAYFIELD SURGERY,SP0002209
WANDSWORTH COUNCIL,PH,,HEALTH,Revenue,LOCALLY ENHANCED SERVICES,823183,105341380,09/12/2015,877.54,BEDFORD HILL FAMILY PRACTICE H85009,SP0002543
WANDSWORTH COUNCIL,PH,,HEALTH,Revenue,LOCALLY ENHANCED SERVICES,825964,105341380,17/12/2015,"1,482.74",LAVENDER HILL GROUP PRACTICE H85069,SP0003344
WANDSWORTH COUNCIL,PH,,HEALTH,Revenue,LOCALLY ENHANCED SERVICES,825959,105341380,16/12/2015,"1,573.52",QUEENSTOWN ROAD MEDICAL PRACTICE H85003,SP0003591
WANDSWORTH COUNCIL,PH,,HEALTH,Revenue,LOCALLY ENHANCED SERVICES,825950,105341380,16/12/2015,"3,631.20",TRINITY MEDICAL CENTRE,SP0003735
WANDSWORTH COUNCIL,PH,,HEALTH,Revenue,LOCALLY ENHANCED SERVICES,814182,105341380,04/12/2015,242.08,CARE UK CLINICAL SERVICES LTD,SP0005790
WANDSWORTH COUNCIL,PH,,HEALTH,Revenue,LOCALLY ENHANCED SERVICES,825952,105341380,16/12/2015,121.04,CARE UK CLINICAL SERVICES LTD,SP0005790
WANDSWORTH COUNCIL,PH,,HEALTH,Revenue,LOCALLY ENHANCED SERVICES,835377,105341380,23/12/2015,"1,573.52",THE GREYSWOOD PRACTICE,SP0006936
WANDSWORTH COUNCIL,PH,,HEALTH,Revenue,LOCALLY ENHANCED SERVICES,823614,105341380,11/12/2015,"2,170.47",PUTNEYMEAD GROUP MEDICAL PRACTICE H85012,SP0006951
WANDSWORTH COUNCIL,PH,,HEALTH,Revenue,LOCALLY ENHANCED SERVICES,823614,105341380,11/12/2015,"6,657.20",PUTNEYMEAD GROUP MEDICAL PRACTICE H85012,SP0006951
WANDSWORTH COUNCIL,PH,,HEALTH,Revenue,LOCALLY ENHANCED SERVICES,825971,105341380,16/12/2015,"3,147.04",WANDSWORTH MEDICAL CENTRE,SP0007088
WANDSWORTH COUNCIL,PH,,HEALTH,Revenue,LOCALLY ENHANCED SERVICES,823181,105341380,09/12/2015,756.50,BATTERSEA RISE GROUP PRACTICE H85049,SP0007572
WANDSWORTH COUNCIL,PH,,HEALTH,Revenue,LOCALLY ENHANCED SERVICES,823184,105341380,10/12/2015,393.38,DR K BEGG H85659,SP0007574
WANDSWORTH COUNCIL,PH,,HEALTH,Revenue,LOCALLY ENHANCED SERVICES,826326,105341380,15/12/2015,"2,057.68",EARLSFIELD PRACTICE,SP0007581
WANDSWORTH COUNCIL,PH,,HEALTH,Revenue,LOCALLY ENHANCED SERVICES,835376,105341380,29/12/2015,"1,724.82",EARLSFIELD PRACTICE,SP0007581
WANDSWORTH COUNCIL,PH,,HEALTH,Revenue,LOCALLY ENHANCED SERVICES,825957,105341380,16/12/2015,"1,664.30",SOUTHFIELDS GROUP PRACTICE H85007,SP0007583
WANDSWORTH COUNCIL,PH,,HEALTH,Revenue,LOCALLY ENHANCED SERVICES,825954,105341380,16/12/2015,"1,089.36",THE FALCON ROAD MEDICAL CENTRE H85002,SP0007953
WANDSWORTH COUNCIL,PH,,HEALTH,Revenue,LOCALLY ENHANCED SERVICES,825996,105341380,16/12/2015,"2,390.54",TOOTING SOUTH MEDICAL CENTRE,SP0007962
WANDSWORTH COUNCIL,PH,,HEALTH,Revenue,LOCALLY ENHANCED SERVICES,823186,105341380,09/12/2015,"4,932.38",BROCKLEBANK GROUP PRACTICE,SP0007967
WANDSWORTH COUNCIL,PH,,HEALTH,Revenue,LOCALLY ENHANCED SERVICES,825968,105341380,16/12/2015,"1,210.40",ELBOROUGH STREET SURGERY H85057,SP0007971
WANDSWORTH COUNCIL,PH,,HEALTH,Revenue,LOCALLY ENHANCED SERVICES,825956,105341380,16/12/2015,"1,361.70",ST PAULS COTTAGE PRACTICE,SP0007978
WANDSWORTH COUNCIL,PH,,HEALTH,Revenue,LOCALLY ENHANCED SERVICES,823986,105341380,11/12/2015,605.20,CLAPHAM JUNCTION MEDICAL PRACTICE,SP0008135
WANDSWORTH COUNCIL,PH,,HEALTH,Revenue,LOCALLY ENHANCED SERVICES,825958,105341380,16/12/2015,"3,042.70",THE ROEHAMPTON SURGERY,SP0008174
WANDSWORTH COUNCIL,PH,,HEALTH,Revenue,LOCALLY ENHANCED SERVICES,823613,105341380,11/12/2015,"4,054.84",HEATHBRIDGE PRACTICE,SP0008179
WANDSWORTH COUNCIL,PH,,HEALTH,Revenue,LOCALLY ENHANCED SERVICES,825960,105341380,16/12/2015,"3,358.86",THE OPEN DOOR SURGERY H85087,SP0008280
WANDSWORTH COUNCIL,PH,,HEALTH,Revenue,LOCALLY ENHANCED SERVICES,825953,105341380,16/12/2015,665.72,THE HAIDER PRACTICE H85075,SP0008283
WANDSWORTH COUNCIL,PH,,HEALTH,Revenue,LOCALLY ENHANCED SERVICES,825951,105341380,16/12/2015,514.42,TOOTING BEC SURGERY,SP0008284
WANDSWORTH COUNCIL,PH,,HEALTH,Revenue,LOCALLY ENHANCED SERVICES,826156,105341380,16/12/2015,635.46,P AND A KUMAR PRACTICE,SP0008285
WANDSWORTH COUNCIL,PH,,HEALTH,Revenue,LOCALLY ENHANCED SERVICES,825949,105341380,17/12/2015,998.58,TUDOR LODGE HEALTH CENTRE H85682,SP0008309
WANDSWORTH COUNCIL,PH,,HEALTH,Revenue,LOCALLY ENHANCED SERVICES,823176,105341380,09/12/2015,"1,080.14",INNER PARK ROAD HEALTH CENTRE  H85643,SP0008368
WANDSWORTH COUNCIL,PH,,HEALTH,Revenue,LOCALLY ENHANCED SERVICES,823176,105341380,09/12/2015,"3,358.86",INNER PARK ROAD HEALTH CENTRE  H85643,SP0008368
WANDSWORTH COUNCIL,PH,,HEALTH,Revenue,LOCALLY ENHANCED SERVICES,825965,105341380,16/12/2015,"2,790.43",INNER PARK ROAD HEALTH CENTRE  H85643,SP0008368
WANDSWORTH COUNCIL,PH,,HEALTH,Revenue,LOCALLY ENHANCED SERVICES,826154,105341380,16/12/2015,"1,331.44",THE ALTON PRACTICE H85065,SP0008381
WANDSWORTH COUNCIL,PH,,HEALTH,Revenue,LOCALLY ENHANCED SERVICES,826154,105341380,16/12/2015,407.60,THE ALTON PRACTICE H85065,SP0008381
WANDSWORTH COUNCIL,PH,,HEALTH,Revenue,LOCALLY ENHANCED SERVICES,825967,105341380,16/12/2015,"3,964.06",GRAFTON MEDICAL PARTNERS Y02423,SP0008442
WANDSWORTH COUNCIL,PH,,HEALTH,Revenue,LOCALLY ENHANCED SERVICES,825955,105341380,16/12/2015,"1,180.14",STREATHAM PARK SURGERY H85052,SP0008443
WANDSWORTH COUNCIL,PH,,HEALTH,Revenue,PHARMACY LES,829289,105341410,18/12/2015,147.00,PEARL CHEMIST LTD,SP0004997
WANDSWORTH COUNCIL,PH,,HEALTH,Revenue,PHARMACY LES,828625,105341410,18/12/2015,168.00,NSK LTD,SP0007000
WANDSWORTH COUNCIL,PH,,HEALTH,Revenue,PHARMACY LES,829286,105341410,18/12/2015,42.00,PEARL CHEMIST LTD FHL06 T/A AUCKLAND ROG,SP0008417
WANDSWORTH COUNCIL,PH,,MISC,Revenue,MISCELLANEOUS EXPENSES,818221,106338500,04/12/2015,644.00,ST GEORGES HEALTHCARE NHS TRUST,SP0001205
WANDSWORTH COUNCIL,PH,,HEALTH,Revenue,PHARMACY LES,829289,106341410,18/12/2015,420.00,PEARL CHEMIST LTD,SP0004997
WANDSWORTH COUNCIL,PH,,HEALTH,Revenue,PHARMACY LES,828399,106341410,18/12/2015,490.00,SALASJI LTD FG443 T/A DUMLERS PHARMACY,SP0005003
WANDSWORTH COUNCIL,PH,,HEALTH,Revenue,PHARMACY LES,834885,106341410,29/12/2015,140.00,POLYPHARM LTD FNG23,SP0005011
WANDSWORTH COUNCIL,PH,,HEALTH,Revenue,PHARMACY LES,828624,106341410,18/12/2015,210.00,MARKRISE PHARMACY,SP0006464
WANDSWORTH COUNCIL,PH,,HEALTH,Revenue,PHARMACY LES,828625,106341410,18/12/2015,140.00,NSK LTD,SP0007000
WANDSWORTH COUNCIL,PH,,HEALTH,Revenue,PHARMACY LES,828376,106341410,18/12/2015,140.00,PATEL JG & KG LLP T/A AURA PHARMAC FV302,SP0007457
WANDSWORTH COUNCIL,PH,,HEALTH,Revenue,PHARMACY LES,828623,106341410,18/12/2015,210.00,QUIZCHOICE LTD FCL10,SP0007577
WANDSWORTH COUNCIL,PH,,HEALTH,Revenue,PHARMACY LES,830177,106341410,18/12/2015,350.00,RIZPHARM LTD T/A R. WALJI CHEMIST FCK89,SP0007578
WANDSWORTH COUNCIL,PH,,HEALTH,Revenue,PHARMACY LES,828379,106341410,18/12/2015,210.00,DAY LEWIS PLC,SP0007580
WANDSWORTH COUNCIL,PH,,HEALTH,Revenue,PHARMACY LES,830175,106341410,18/12/2015,140.00,CANTERBURY PHARMACIES LTD,SP0007593
WANDSWORTH COUNCIL,PH,,HEALTH,Revenue,PHARMACY LES,828672,106341410,18/12/2015,70.00,GLENHAZEL LTD T/A BARKERS CHEMIST FMW60,SP0008163
WANDSWORTH COUNCIL,PH,,HEALTH,Revenue,PHARMACY LES,828629,106341410,18/12/2015,140.00,I PATEL T/A TOOTING PHARMACY PRACT FK076,SP0008373
WANDSWORTH COUNCIL,PH,,HEALTH,Revenue,PHARMACY LES,816810,106341410,04/12/2015,140.00,OAKLON LIMITED FMC 35 T/A EAST HILL PHAR,SP0008379
WANDSWORTH COUNCIL,PH,,HEALTH,Revenue,PHARMACY LES,828663,106341410,18/12/2015,70.00,OAKLON LIMITED FMC 35 T/A EAST HILL PHAR,SP0008379
WANDSWORTH COUNCIL,PH,,HEALTH,Revenue,PHARMACY LES,828392,106341410,18/12/2015,70.00,BOOTS UK LTD FVK09 T/A BOOTS THE CHEMIST,SP0008393
WANDSWORTH COUNCIL,PH,,HEALTH,Revenue,PHARMACY LES,829288,106341410,18/12/2015,700.00,PEARL CHEMIST LTD FDV93 T/A LORDS PHARMA,SP0008419
WANDSWORTH COUNCIL,PH,,HEALTH,Revenue,PHARMACY LES,828382,106341410,18/12/2015,70.00,ABC PHARMACY FGT10,SP0008446
WANDSWORTH COUNCIL,PH,,HEALTH,Revenue,GP LES CONTRACTS,823185,106341520,10/12/2015,"2,240.00",BRIDGE LANE GROUP PRACTICE,SP0000516
WANDSWORTH COUNCIL,PH,,HEALTH,Revenue,GP LES CONTRACTS,823179,106341520,10/12/2015,140.00,BATTERSEA FIELDS PRACTICE,SP0000844
WANDSWORTH COUNCIL,PH,,HEALTH,Revenue,GP LES CONTRACTS,823178,106341520,10/12/2015,70.00,BALHAM PARK SURGERY,SP0000925
WANDSWORTH COUNCIL,PH,,HEALTH,Revenue,GP LES CONTRACTS,823183,106341520,09/12/2015,70.00,BEDFORD HILL FAMILY PRACTICE H85009,SP0002543
WANDSWORTH COUNCIL,PH,,HEALTH,Revenue,GP LES CONTRACTS,825959,106341520,16/12/2015,210.00,QUEENSTOWN ROAD MEDICAL PRACTICE H85003,SP0003591
WANDSWORTH COUNCIL,PH,,HEALTH,Revenue,GP LES CONTRACTS,825952,106341520,16/12/2015,210.00,CARE UK CLINICAL SERVICES LTD,SP0005790
WANDSWORTH COUNCIL,PH,,HEALTH,Revenue,GP LES CONTRACTS,835377,106341520,23/12/2015,140.00,THE GREYSWOOD PRACTICE,SP0006936
WANDSWORTH COUNCIL,PH,,HEALTH,Revenue,GP LES CONTRACTS,823614,106341520,11/12/2015,"1,330.00",PUTNEYMEAD GROUP MEDICAL PRACTICE H85012,SP0006951
WANDSWORTH COUNCIL,PH,,HEALTH,Revenue,GP LES CONTRACTS,825971,106341520,16/12/2015,420.00,WANDSWORTH MEDICAL CENTRE,SP0007088
WANDSWORTH COUNCIL,PH,,HEALTH,Revenue,GP LES CONTRACTS,823184,106341520,10/12/2015,140.00,DR K BEGG H85659,SP0007574
WANDSWORTH COUNCIL,PH,,HEALTH,Revenue,GP LES CONTRACTS,826326,106341520,15/12/2015,"1,400.00",EARLSFIELD PRACTICE,SP0007581
WANDSWORTH COUNCIL,PH,,HEALTH,Revenue,GP LES CONTRACTS,835376,106341520,29/12/2015,"2,800.00",EARLSFIELD PRACTICE,SP0007581
WANDSWORTH COUNCIL,PH,,HEALTH,Revenue,GP LES CONTRACTS,825957,106341520,16/12/2015,350.00,SOUTHFIELDS GROUP PRACTICE H85007,SP0007583
WANDSWORTH COUNCIL,PH,,HEALTH,Revenue,GP LES CONTRACTS,825954,106341520,16/12/2015,350.00,THE FALCON ROAD MEDICAL CENTRE H85002,SP0007953
WANDSWORTH COUNCIL,PH,,HEALTH,Revenue,GP LES CONTRACTS,825996,106341520,16/12/2015,140.00,TOOTING SOUTH MEDICAL CENTRE,SP0007962
WANDSWORTH COUNCIL,PH,,HEALTH,Revenue,GP LES CONTRACTS,823613,106341520,11/12/2015,140.00,HEATHBRIDGE PRACTICE,SP0008179
WANDSWORTH COUNCIL,PH,,HEALTH,Revenue,GP LES CONTRACTS,825953,106341520,16/12/2015,210.00,THE HAIDER PRACTICE H85075,SP0008283
WANDSWORTH COUNCIL,PH,,HEALTH,Revenue,GP LES CONTRACTS,825967,106341520,16/12/2015,350.00,GRAFTON MEDICAL PARTNERS Y02423,SP0008442
WANDSWORTH COUNCIL,PH,,HEALTH,Revenue,GP LES CONTRACTS,825955,106341520,16/12/2015,70.00,STREATHAM PARK SURGERY H85052,SP0008443
WANDSWORTH COUNCIL,PH,,SERVICES,Revenue,PROJECT WORK,829282,107134800,21/12/2015,680.00,WILLIAMS & ASSOCIATES,SP0008775
WANDSWORTH COUNCIL,PH,,HEALTH,Revenue,SCREENING IN COMMUNTIES,830515,107141990,21/12/2015,"16,926.66",WILLIAMS & ASSOCIATES,SP0008775
WANDSWORTH COUNCIL,PH,,SERVICES,Revenue,PROJECT WORK,823155,108034800,10/12/2015,"1,917.00",STORM FAMILY CENTRE LTD,SP0002613
WANDSWORTH COUNCIL,PH,,SERVICES,Revenue,PROJECT WORK,831802,108034800,23/12/2015,"2,886.60",HOME START WANDSWORTH LTD,SP0007079
WANDSWORTH COUNCIL,PH,,SERVICES,Revenue,PROJECT WORK,834845,108134800,23/12/2015,"10,000.00",AIR SPORTS NETWORK,SP0006715
WANDSWORTH COUNCIL,PH,,SERVICES,Revenue,PROJECT WORK,834869,108134800,23/12/2015,"12,000.00",AIR SPORTS NETWORK,SP0006715
WANDSWORTH COUNCIL,NGF HS,,SERVICES,Revenue,HIPS,826665,110034460,15/12/2015,660.00,GORDON BROWN,SP0002176
WANDSWORTH COUNCIL,NGF HS,,CENTRAL SUPPORT SERVICES,Revenue,CSS - VALUERS,819135,110060820,08/12/2015,"1,750.00",G L HEARN LTD,SP0009602
WANDSWORTH COUNCIL,NGF CS,,PRIVATE,Revenue,REFUSE COLLECTN & PEST CONTROL,829308,111045500,17/12/2015,534.79,SITA UK LTD,SP0000507
WANDSWORTH COUNCIL,NGF CS,,PRIVATE,Revenue,REFUSE COLLECTN & PEST CONTROL,829309,111045500,17/12/2015,"1,202.69",SITA UK LTD,SP0000507
WANDSWORTH COUNCIL,NGF CS,,PRIVATE,Revenue,GENERAL CONTRACT WORK,819531,111545370,04/12/2015,900.00,DDS ENVIRONMENTAL,SP0008409
WANDSWORTH COUNCIL,NGF CS,,PRIVATE,Revenue,GENERAL CONTRACT WORK,819533,111545370,04/12/2015,680.00,DDS ENVIRONMENTAL,SP0008409
WANDSWORTH COUNCIL,NGF CS,,PRIVATE,Revenue,REFUSE COLLECTN & PEST CONTROL,837801,111545500,29/12/2015,683.43,SITA UK LTD,SP0000507
WANDSWORTH COUNCIL,NGF CS,,PRIVATE,Revenue,REFUSE COLLECTN & PEST CONTROL,823160,112145500,10/12/2015,690.83,SITA UK LTD,SP0000507
WANDSWORTH COUNCIL,NGF CS,,PRIVATE,Revenue,REFUSE COLLECTN & PEST CONTROL,823158,112945500,10/12/2015,690.83,SITA UK LTD,SP0000507
WANDSWORTH COUNCIL,NGF CS,,CLEANING & DOMESTIC SUPPLIES,Revenue,CLEANING & DOMESTIC SUPPLIES,799544,113813010,29/12/2015,"2,105.35",WESSEX PRODUCTS (LEASING) LTD,SP0002972
WANDSWORTH COUNCIL,NGF CS,,CLEANING & DOMESTIC SUPPLIES,Revenue,CLEANING CONTRACT,829702,113813020,17/12/2015,"58,616.26",OCEAN INTEGRATED SERVICES LTD,SP0001062
WANDSWORTH COUNCIL,NGF CS,,"EQUIPMENT, FURNITURE & MATS",Revenue,"EQUIPMENT, FURNITURE & MATS",802282,114030000,14/12/2015,819.00,INNOVISE PLC,SP0003868
WANDSWORTH COUNCIL,NGF CS,,"EQUIPMENT, FURNITURE & MATS",Revenue,"EQUIPMENT, FURNITURE & MATS",802282,114030000,14/12/2015,25.00,INNOVISE PLC,SP0003868
WANDSWORTH COUNCIL,NGF CS,,INDIRECT,Revenue,TRAINING - APPROVED QUALS,822252,114100760,09/12/2015,"1,485.00",CADLINE LTD,SP0005973
WANDSWORTH COUNCIL,NGF CDC,,PRIVATE,Revenue,GENERAL CONTRACT WORK,819424,11424537K07291,04/12/2015,"1,402.50",DH CROFTS LTD,SP0000076
WANDSWORTH COUNCIL,NGF CDC,,PRIVATE,Revenue,GENERAL CONTRACT WORK,819564,11424537K07321,04/12/2015,"8,776.60",DH CROFTS LTD,SP0000076
WANDSWORTH COUNCIL,NGF CDC,,PRIVATE,Revenue,GENERAL CONTRACT WORK,819440,11424537K07321,04/12/2015,"2,430.00",DOWNS FLOORING LTD,SP0000833
WANDSWORTH COUNCIL,NGF CDC,,PRIVATE,Revenue,GENERAL CONTRACT WORK,819440,11424537K07321,04/12/2015,850.00,DOWNS FLOORING LTD,SP0000833
WANDSWORTH COUNCIL,NGF CDC,,PRIVATE,Revenue,GENERAL CONTRACT WORK,819447,11424537K07341,04/12/2015,"5,159.00",DH CROFTS LTD,SP0000076
WANDSWORTH COUNCIL,NGF CDC,,PRIVATE,Revenue,GENERAL CONTRACT WORK,819565,11424537K07341,04/12/2015,"4,176.40",DH CROFTS LTD,SP0000076
WANDSWORTH COUNCIL,NGF CDC,,PRIVATE,Revenue,GENERAL CONTRACT WORK,819593,11424537K07341,04/12/2015,"9,510.22",PHOENIX ECS LTD,SP0001284
WANDSWORTH COUNCIL,NGF CDC,,PRIVATE,Revenue,GENERAL CONTRACT WORK,819595,11424537K07341,04/12/2015,"7,900.10",PHOENIX ECS LTD,SP0001284
WANDSWORTH COUNCIL,NGF CDC,,PRIVATE,Revenue,GENERAL CONTRACT WORK,819563,11424537K07361,04/12/2015,"3,856.30",DH CROFTS LTD,SP0000076
WANDSWORTH COUNCIL,NGF CDC,,PRIVATE,Revenue,GENERAL CONTRACT WORK,819594,11424537K07361,04/12/2015,"8,200.70",PHOENIX ECS LTD,SP0001284
WANDSWORTH COUNCIL,NGF CS,,CLEANING & DOMESTIC SUPPLIES,Revenue,CLEANING & DOMESTIC SUPPLIES,837802,114413010,29/12/2015,"2,948.00",PHS GROUP PLC,SP0001063
WANDSWORTH COUNCIL,NGF CS,,WATER,Revenue,SEWERAGE & ENVIRONMENTAL SVCS,814146,114413800,03/12/2015,"2,446.99",BIFFA WASTE SERVICES LTD,SP0002818
WANDSWORTH COUNCIL,NGF CS,,"EQUIPMENT, FURNITURE & MATS",Revenue,"EQUIPMENT, FURNITURE & MATS",819585,114830000,04/12/2015,456.36,DH CROFTS LTD,SP0000076
WANDSWORTH COUNCIL,NGF CS,,"EQUIPMENT, FURNITURE & MATS",Revenue,"EQUIPMENT, FURNITURE & MATS",819157,115030000,04/12/2015,510.00,THE GREEN TEAM (GMC) LIMITED,SP0000949
WANDSWORTH COUNCIL,NGF CS,,COMMUNICATIONS & COMP,Revenue,COMMUNICATIONS - POSTAGE,818768,120136000,07/12/2015,750.00,DX NETWORK SERVICES LTD,SP0003147
WANDSWORTH COUNCIL,NGF CS,,GRANTS & SUBSCRIPTIONS,Revenue,SUBSCRIPTIONS,830516,120137640,21/12/2015,670.00,E S SINGLETON,SP0006206
WANDSWORTH COUNCIL,NGF CS,,GRANTS & SUBSCRIPTIONS,Revenue,SUBSCRIPTIONS,828174,120537640,17/12/2015,620.00,ROYAL INSTITUTE OF CHARTERED SURVEYORS,SP0003072
WANDSWORTH COUNCIL,NGF CS,,GRANTS & SUBSCRIPTIONS,Revenue,SUBSCRIPTIONS,828175,120537640,17/12/2015,509.00,ROYAL INSTITUTE OF CHARTERED SURVEYORS,SP0003072
WANDSWORTH COUNCIL,NGF CS,ADMINISTRATION,OTHER AGENCIES,Revenue,DISBURSEMENTS,838499,120643250,29/12/2015,612.00,BLAKE MORGAN LLP,RG0000001
WANDSWORTH COUNCIL,NGF CS,,OTHER AGENCIES,Revenue,DISBURSEMENTS,830384,120643250,21/12/2015,446.47,BEVERLEY F NUNNERY & CO,SP0003376
WANDSWORTH COUNCIL,NGF CS,,OTHER AGENCIES,Revenue,DISBURSEMENTS,813708,120643250,02/12/2015,"7,636.00",SHARPE PRITCHARD LLP,SP0003677
WANDSWORTH COUNCIL,NGF CS,,OTHER AGENCIES,Revenue,DISBURSEMENTS,813708,120643250,02/12/2015,"1,440.00",SHARPE PRITCHARD LLP,SP0003677
WANDSWORTH COUNCIL,NGF CS,,OTHER AGENCIES,Revenue,DISBURSEMENTS,818766,120643250,07/12/2015,"1,850.00",CORNERSTONE BACS,SP0004477
WANDSWORTH COUNCIL,NGF CS,,OTHER AGENCIES,Revenue,DISBURSEMENTS,824011,120643250,11/12/2015,700.00,CORNERSTONE BACS,SP0004477
WANDSWORTH COUNCIL,NGF CS,,OTHER AGENCIES,Revenue,DISBURSEMENTS,824013,120643250,21/12/2015,600.00,CORNERSTONE BACS,SP0004477
WANDSWORTH COUNCIL,NGF CS,,OTHER AGENCIES,Revenue,DISBURSEMENTS,819296,120643250,07/12/2015,"7,863.00",BINDMANS LLP,SP0005334
WANDSWORTH COUNCIL,NGF CS,,OTHER AGENCIES,Revenue,DISBURSEMENTS,827870,120643250,16/12/2015,"1,425.00",WINCKWORTH SHERWOOD LLP,SP0006926
WANDSWORTH COUNCIL,NGF CS,,OTHER AGENCIES,Revenue,DISBURSEMENTS,830379,120643250,21/12/2015,864.00,DR JUDITH FREEDMAN,SP0009242
WANDSWORTH COUNCIL,NGF CS,,OTHER AGENCIES,Revenue,DISBURSEMENTS,818765,120643250,07/12/2015,500.00,1 GARDEN COURT CHAMBERS,SP0009291
WANDSWORTH COUNCIL,NGF CS,,OTHER AGENCIES,Revenue,DISBURSEMENTS,830381,120643250,21/12/2015,"2,125.00",1 GARDEN COURT CHAMBERS,SP0009291
WANDSWORTH COUNCIL,NGF CS,,OTHER AGENCIES,Revenue,DISBURSEMENTS,835589,120643250,29/12/2015,500.00,1 GARDEN COURT CHAMBERS,SP0009291
WANDSWORTH COUNCIL,NGF CS,,OTHER AGENCIES,Revenue,DISBURSEMENTS,828341,120643250,17/12/2015,525.00,42 BEDFORD ROW CHAMBERS,SP0009440
WANDSWORTH COUNCIL,NGF CS,,OTHER AGENCIES,Revenue,DISBURSEMENTS,830382,120643250,21/12/2015,"4,300.00",42 BEDFORD ROW CHAMBERS,SP0009440
WANDSWORTH COUNCIL,NGF CS,,OTHER AGENCIES,Revenue,DISBURSEMENTS,827884,120643250,16/12/2015,826.50,DSP PSYCHOLOGY,SP0009444
WANDSWORTH COUNCIL,NGF CS,,OTHER AGENCIES,Revenue,DISBURSEMENTS,825995,120643250,16/12/2015,825.00,FOURTEEN,SP0009555
WANDSWORTH COUNCIL,NGF CS,,OTHER AGENCIES,Revenue,DISBURSEMENTS,828343,120643250,17/12/2015,825.00,FOURTEEN,SP0009555
WANDSWORTH COUNCIL,NGF CS,,OTHER AGENCIES,Revenue,DISBURSEMENTS,828344,120643250,17/12/2015,625.00,FOURTEEN,SP0009555
WANDSWORTH COUNCIL,NGF CS,,OTHER AGENCIES,Revenue,DISBURSEMENTS,829471,120643250,18/12/2015,700.00,FOURTEEN,SP0009555
WANDSWORTH COUNCIL,NGF CS,,OTHER AGENCIES,Revenue,DISBURSEMENTS,830378,120643250,18/12/2015,"1,555.00",FOURTEEN,SP0009555
WANDSWORTH COUNCIL,NGF CS,,OTHER AGENCIES,Revenue,DISBURSEMENTS,826333,120643250,16/12/2015,432.00,DR SUMI RATNAM,SP0009603
WANDSWORTH COUNCIL,NGF CS,,OTHER AGENCIES,Revenue,DISBURSEMENTS,824012,120643250,11/12/2015,675.00,DR RODGER KENNEDY,SP0009927
WANDSWORTH COUNCIL,NGF CS,,OTHER AGENCIES,Revenue,DISBURSEMENTS,828387,120643250,18/12/2015,558.60,DR STEPHEN CHAPMAN,SP0009957
WANDSWORTH COUNCIL,NGF CS,,OTHER AGENCIES,Revenue,DISBURSEMENTS,828345,120643250,17/12/2015,967.00,CANSFORD LABORATORIES LTD,SP0009990
WANDSWORTH COUNCIL,NGF CS,,PRIVATE,Revenue,LOT 1 - LLORD SERVS PROP MGMT,833618,120746180,23/12/2015,"14,088.54",LAMBERT SMITH HAMPTON,SP0002515
WANDSWORTH COUNCIL,NGF CS,,PRINTING STAT & GEN OFFICE EXP,Revenue,PHOTOCOPYING,813745,120833380,04/12/2015,513.30,RICOH UK LTD,SP0002316
WANDSWORTH COUNCIL,NGF CS,,PRINTING STAT & GEN OFFICE EXP,Revenue,PHOTOCOPYING,830941,120833380,21/12/2015,674.79,RICOH UK LTD,SP0002316
WANDSWORTH COUNCIL,NGF CS,,GRANTS & SUBSCRIPTIONS,Revenue,SUBSCRIPTIONS,822643,120837640,10/12/2015,560.00,RICS BOOKS,SP0000300
WANDSWORTH COUNCIL,NGF CS,,PRINTING STAT & GEN OFFICE EXP,Revenue,OUTWORK - WEB OFFSET,819390,121333580,04/12/2015,"10,999.32",ST IVES MANAGEMENT SERVICES LTD,SP0010254
WANDSWORTH COUNCIL,NGF CS,,PRINTING STAT & GEN OFFICE EXP,Revenue,OUTWORK - LITHO,819381,121333590,04/12/2015,602.88,HALSTAN & CO LTD,SP0001850
WANDSWORTH COUNCIL,NGF CS,,PRINTING STAT & GEN OFFICE EXP,Revenue,OUTWORK - LITHO,837967,121333590,24/12/2015,849.00,PURBROOKS LTD,SP0001851
WANDSWORTH COUNCIL,NGF CS,,PRINTING STAT & GEN OFFICE EXP,Revenue,OUTWORK - LITHO,827347,121333590,14/12/2015,480.00,KALL KWIK,SP0003093
WANDSWORTH COUNCIL,NGF CS,,PRINTING STAT & GEN OFFICE EXP,Revenue,OUTWORK - LITHO,837956,121333590,24/12/2015,453.40,KALL KWIK,SP0003093
WANDSWORTH COUNCIL,NGF CS,,PRINTING STAT & GEN OFFICE EXP,Revenue,OUTWORK - LITHO,837963,121333590,24/12/2015,600.00,KALL KWIK,SP0003093
WANDSWORTH COUNCIL,NGF CS,,PRINTING STAT & GEN OFFICE EXP,Revenue,OUTWORK - LITHO,819387,121333590,04/12/2015,"1,225.00",IMPRESS PRINT SERVICES LTD,SP0003209
WANDSWORTH COUNCIL,NGF CS,,PRINTING STAT & GEN OFFICE EXP,Revenue,OUTWORK - LITHO,817653,121333590,02/12/2015,"1,100.00",FINANCIAL DATA MANAGEMENT LTD,SP0007048
WANDSWORTH COUNCIL,NGF CS,,PRINTING STAT & GEN OFFICE EXP,Revenue,OUTWORK - LITHO,827336,121333590,14/12/2015,490.89,FINANCIAL DATA MANAGEMENT LTD,SP0007048
WANDSWORTH COUNCIL,NGF CS,,PRINTING STAT & GEN OFFICE EXP,Revenue,PAPER - QUICKPRINT,720300,121433370,09/12/2015,"3,699.03",CANON (UK) LTD,SP0000262
WANDSWORTH COUNCIL,NGF CS,,INDIRECT,Revenue,IN-SERVICE TRAINING-SLA,823142,123000740,10/12/2015,"1,000.00",TRAINING OUTSOURCE LIMITED,SP0008861
WANDSWORTH COUNCIL,NGF CS,,SERVICES,Revenue,SERVICES - GENERAL,822652,123034870,11/12/2015,"5,655.48",ALLEN & YORK LTD,SP0010304
WANDSWORTH COUNCIL,NGF CS,,INDIRECT,Revenue,HEALTH CARE PROMOTIONAL,817661,123200630,04/12/2015,"1,080.00",PENELOPE TAYLOR LTD,SP0010212
WANDSWORTH COUNCIL,NGF CS,,INDIRECT,Revenue,CHILDCARE VOUCHERS,818230,123200650,04/12/2015,608.94,COMPUTERSHARE VOUCHER SERVICES,SP0003037
WANDSWORTH COUNCIL,NGF CS,,INDIRECT,Revenue,CHILDCARE VOUCHERS,835617,123200650,29/12/2015,122.57,COMPUTERSHARE VOUCHER SERVICES,SP0003037
WANDSWORTH COUNCIL,NGF CS,,INDIRECT,Revenue,STAFF ADVERTISING - VACANCIES,835738,123200960,24/12/2015,"5,036.85",HAYS SPECIALIST RECRUITMENT GROUP,SP0000087
WANDSWORTH COUNCIL,NGF CS,,INDIRECT,Revenue,STAFF ADVERTISING - VACANCIES,823991,123200960,15/12/2015,"3,075.81",CHEVIOT RECRUITMENT LTD,SP0005273
WANDSWORTH COUNCIL,NGF CS,ADMINISTRATION,SERVICES,Revenue,OHS SESSIONAL DOCTOR,832291,123234690,18/12/2015,600.00,MR FADEL DERRY,RG0000001
WANDSWORTH COUNCIL,NGF CS,ADMINISTRATION,SERVICES,Revenue,OHS SESSIONAL DOCTOR,838494,123234690,29/12/2015,900.00,JULIA HELLER,SP0004520
WANDSWORTH COUNCIL,NGF CS,,SERVICES,Revenue,SERVICES - GENERAL,823987,123234870,11/12/2015,846.54,QUEST INFORMATION SYSTEMS LTD - DICTATEN,SP0002265
WANDSWORTH COUNCIL,NGF CDC,,PRINTING STAT & GEN OFFICE EXP,Revenue,GENERAL OFFICE EXPENSES,826677,124033190,16/12/2015,890.90,DANWOOD GROUP LTD,SP0002739
WANDSWORTH COUNCIL,NGF CDC,,MISC,Revenue,MISCELLANEOUS EXPENSES,819340,124038500,07/12/2015,"1,090.08",CHUBB FIRE & SECURITY LTD,SP0001053
WANDSWORTH COUNCIL,NGF CDC,,COMMUNICATIONS & COMP,Revenue,WEBSITE,817992,124236550,04/12/2015,650.00,MODERN MINDSET LTD,SP0007534
WANDSWORTH COUNCIL,PH,ADMINISTRATION,MISC,Revenue,MISCELLANEOUS EXPENSES,828632,125038500,16/12/2015,"2,500.00",WCEN,RG0000001
WANDSWORTH COUNCIL,NGF CS,,COMMUNICATIONS & COMP,Revenue,I.T. EQUIPMENT & MAINTENANCE,808696,126036210,24/12/2015,79.93,ACS LTD,SP0004000
WANDSWORTH COUNCIL,NGF CS,,COMMUNICATIONS & COMP,Revenue,I.T. EQUIPMENT & MAINTENANCE,808696,126036210,24/12/2015,29.98,ACS LTD,SP0004000
WANDSWORTH COUNCIL,NGF CS,,COMMUNICATIONS & COMP,Revenue,I.T. EQUIPMENT & MAINTENANCE,808696,126036210,24/12/2015,9.95,ACS LTD,SP0004000
WANDSWORTH COUNCIL,NGF CS,,COMMUNICATIONS & COMP,Revenue,I.T. EQUIPMENT & MAINTENANCE,808696,126036210,24/12/2015,33.38,ACS LTD,SP0004000
WANDSWORTH COUNCIL,NGF CS,,COMMUNICATIONS & COMP,Revenue,I.T. EQUIPMENT & MAINTENANCE,808696,126036210,24/12/2015,867.88,ACS LTD,SP0004000
WANDSWORTH COUNCIL,NGF CS,,"EQUIPMENT, FURNITURE & MATS",Revenue,ADAPTATIONS - COUNCIL,813733,126130020,02/12/2015,600.00,SUNA COMMUNICATION LTD,SP0000491
WANDSWORTH COUNCIL,NGF CS,,"EQUIPMENT, FURNITURE & MATS",Revenue,CCTV CONTROL ROOM DEVELOPMENT,819297,126130030,07/12/2015,"9,263.80",VIRGIN MEDIA BUSINESS,SP0003737
WANDSWORTH COUNCIL,NGF CS,,"EQUIPMENT, FURNITURE & MATS",Revenue,CCTV CONTROL ROOM DEVELOPMENT,828678,126130030,17/12/2015,"2,402.72",VIRGIN MEDIA BUSINESS,SP0003737
WANDSWORTH COUNCIL,NGF CS,,"EQUIPMENT, FURNITURE & MATS",Revenue,CCTV FIBRE RENTALS,815867,126130040,02/12/2015,"9,360.00",VODAFONE CORPORATE,SP0001107
WANDSWORTH COUNCIL,NGF CS,,"EQUIPMENT, FURNITURE & MATS",Revenue,CCTV FIBRE RENTALS,828679,126130040,18/12/2015,"1,205.00",VODAFONE CORPORATE,SP0001107
WANDSWORTH COUNCIL,NGF CS,,"EQUIPMENT, FURNITURE & MATS",Revenue,CONSUMABLES,815858,126130080,14/12/2015,440.00,BT PAYMENT SERVICES LTD,SP0001093
WANDSWORTH COUNCIL,NGF CS,,"EQUIPMENT, FURNITURE & MATS",Revenue,CONSUMABLES,815858,126130080,14/12/2015,"8,906.20",BT PAYMENT SERVICES LTD,SP0001093
WANDSWORTH COUNCIL,NGF CS,,"EQUIPMENT, FURNITURE & MATS",Revenue,"EQUIPMENT, FURNITURE & MATS",830500,126330000,18/12/2015,840.00,INCOM TELECOMMUNICATIONS,SP0000568
WANDSWORTH COUNCIL,NGF CS,,"EQUIPMENT, FURNITURE & MATS",Revenue,"EQUIPMENT, FURNITURE & MATS",831019,126330000,18/12/2015,"1,099.09",RED BOX RECORDERS LTD,SP0001262
WANDSWORTH COUNCIL,NGF CS,,"EQUIPMENT, FURNITURE & MATS",Revenue,"EQUIPMENT, FURNITURE & MATS",823628,126530000,11/12/2015,"9,597.00",INCOM TELECOMMUNICATIONS,SP0000568
WANDSWORTH COUNCIL,NGF CS,,"EQUIPMENT, FURNITURE & MATS",Revenue,"EQUIPMENT, FURNITURE & MATS",835609,126530000,30/12/2015,"6,398.00",INCOM TELECOMMUNICATIONS,SP0000568
WANDSWORTH COUNCIL,NGF CS,,"EQUIPMENT, FURNITURE & MATS",Revenue,"EQUIPMENT, FURNITURE & MATS",835609,126530000,30/12/2015,8.75,INCOM TELECOMMUNICATIONS,SP0000568
WANDSWORTH COUNCIL,NGF CS,,"EQUIPMENT, FURNITURE & MATS",Revenue,"EQUIPMENT, FURNITURE & MATS",799465,126530000,02/12/2015,"1,185.00",LRQA LIMITED,SP0003365
WANDSWORTH COUNCIL,NGF CS,,SERVICES,Revenue,SERVICES - GENERAL,803562,126534870,22/12/2015,"1,250.00",END2END SERVICES LIMITED,SP0004101
WANDSWORTH COUNCIL,NGF CS,,COMMUNICATIONS & COMP,Revenue,I.T. DEVELOPMENTS,834886,126536200,23/12/2015,950.00,PRO2COL,SP0008975
WANDSWORTH COUNCIL,NGF CS,,COMMUNICATIONS & COMP,Revenue,UPGRADE INFRASTRUCTURE,819262,126536530,07/12/2015,500.00,CIVICA UK LTD,SP0000394
WANDSWORTH COUNCIL,NGF CS,,COMMUNICATIONS & COMP,Revenue,UPGRADE INFRASTRUCTURE,819262,126536530,07/12/2015,500.00,CIVICA UK LTD,SP0000394
WANDSWORTH COUNCIL,NGF CS,,COMMUNICATIONS & COMP,Revenue,UPGRADE INFRASTRUCTURE,819262,126536530,07/12/2015,750.00,CIVICA UK LTD,SP0000394
WANDSWORTH COUNCIL,NGF CS,,"EQUIPMENT, FURNITURE & MATS",Revenue,"EQUIPMENT, FURNITURE & MATS",829320,126630000,18/12/2015,"2,000.00",JADU LIMITED LCB,SP0003050
WANDSWORTH COUNCIL,NGF CS,,"EQUIPMENT, FURNITURE & MATS",Revenue,"EQUIPMENT, FURNITURE & MATS",834906,126630000,23/12/2015,"2,100.00",EBASE TECHNOLOGY LTD,SP0006389
WANDSWORTH COUNCIL,NGF CS,,COMMUNICATIONS & COMP,Revenue,I.T. EQUIPMENT & MAINTENANCE,818173,126836210,04/12/2015,774.00,E FILE UK LTD,SP0005876
WANDSWORTH COUNCIL,NGF CS,,COMMUNICATIONS & COMP,Revenue,I.T. SLA RECHARGE,819336,126836230,07/12/2015,"2,812.50",QMATIC UK LTD,SP0000660
WANDSWORTH COUNCIL,NGF CS,,COMMUNICATIONS & COMP,Revenue,I.T. SLA RECHARGE,819337,126836230,07/12/2015,775.49,QMATIC UK LTD,SP0000660
WANDSWORTH COUNCIL,NGF CS,,COMMUNICATIONS & COMP,Revenue,I.T. SLA RECHARGE,833344,126836230,24/12/2015,885.00,NCC SERVICES LTD,SP0000702
WANDSWORTH COUNCIL,NGF CS,,COMMUNICATIONS & COMP,Revenue,I.T. SLA RECHARGE,818772,126836230,04/12/2015,"14,625.00",DORSET SOFTWARE SERVICES LIMITED,SP0001072
WANDSWORTH COUNCIL,NGF CS,,COMMUNICATIONS & COMP,Revenue,I.T. SLA RECHARGE,818773,126836230,04/12/2015,"9,500.00",DORSET SOFTWARE SERVICES LIMITED,SP0001072
WANDSWORTH COUNCIL,NGF CS,,COMMUNICATIONS & COMP,Revenue,I.T. SLA RECHARGE,828619,126836230,18/12/2015,"1,495.00",LINUX IT EUROPE LTD,SP0001604
WANDSWORTH COUNCIL,NGF CS,,COMMUNICATIONS & COMP,Revenue,I.T. SLA RECHARGE,813691,126836230,01/12/2015,480.00,LEGAL ESCROW & ARBITRATION SERVICES LTD,SP0006406
WANDSWORTH COUNCIL,NGF CS,,COMMUNICATIONS & COMP,Revenue,I.T. - SAFFRON,815458,126836260,02/12/2015,257.08,BANNER MANAGED COMMUNICATION,SP0003555
WANDSWORTH COUNCIL,CS,,DIRECT2,Revenue,AGENCY STAFF,813687,128000510,02/12/2015,"16,953.15",MATRIX SCM LIMITED,SP0004572
WANDSWORTH COUNCIL,CS,,DIRECT2,Revenue,AGENCY STAFF,819260,128000510,07/12/2015,"14,181.01",MATRIX SCM LIMITED,SP0004572
WANDSWORTH COUNCIL,CS,,DIRECT2,Revenue,AGENCY STAFF,831002,128000510,21/12/2015,"11,724.89",MATRIX SCM LIMITED,SP0004572
WANDSWORTH COUNCIL,CS,,INDIRECT,Revenue,STAFF ADVERTISING - VACANCIES,815457,128000960,02/12/2015,791.00,PENNA PLC,SP0006290
WANDSWORTH COUNCIL,CS,,INDIRECT,Revenue,STAFF ADVERTISING - VACANCIES,822282,128000960,09/12/2015,550.03,PENNA PLC,SP0006290
WANDSWORTH COUNCIL,CS,,INDIRECT,Revenue,STAFF ADVERTISING - VACANCIES,825678,128000960,16/12/2015,791.00,PENNA PLC,SP0006290
WANDSWORTH COUNCIL,CS,,INDIRECT,Revenue,STAFF ADVERTISING - VACANCIES,825679,128000960,16/12/2015,932.75,PENNA PLC,SP0006290
WANDSWORTH COUNCIL,CS,,INDIRECT,Revenue,STAFF ADVERTISING - VACANCIES,829306,128000960,21/12/2015,781.00,PENNA PLC,SP0006290
WANDSWORTH COUNCIL,CS,,INDIRECT,Revenue,STAFF ADVERTISING - VACANCIES,830948,128000960,21/12/2015,975.50,PENNA PLC,SP0006290
WANDSWORTH COUNCIL,CS,,INDIRECT,Revenue,STAFF ADVERTISING - VACANCIES,833346,128000960,23/12/2015,840.50,PENNA PLC,SP0006290
WANDSWORTH COUNCIL,CS,,INDIRECT,Revenue,STAFF ADVERTISING - VACANCIES,833473,128000960,23/12/2015,550.03,PENNA PLC,SP0006290
WANDSWORTH COUNCIL,CS,,HEALTH,Revenue,THIRD PARTY PYMT - HEALTH,819929,128041130,09/12/2015,"1,858.00",MARKRISE PHARMACY,SP0006464
WANDSWORTH COUNCIL,CS,,HEALTH,Revenue,THIRD PARTY PYMT - HEALTH,819930,128041130,09/12/2015,"1,746.50",MARKRISE PHARMACY,SP0006464
WANDSWORTH COUNCIL,CS,,HEALTH,Revenue,THIRD PARTY PYMT - HEALTH,819931,128041130,09/12/2015,"1,636.50",MARKRISE PHARMACY,SP0006464
WANDSWORTH COUNCIL,CS,,HEALTH,Revenue,THIRD PARTY PYMT - HEALTH,819346,128041130,09/12/2015,762.50,PRIMARY CARE CHEMISTS LTD FKP10 -TRINITY,SP0006737
WANDSWORTH COUNCIL,CS,,HEALTH,Revenue,THIRD PARTY PYMT - HEALTH,819352,128041130,09/12/2015,504.00,LLOYDS PHARMACY LTD FQA40,SP0007582
WANDSWORTH COUNCIL,CS,,HEALTH,Revenue,THIRD PARTY PYMT - HEALTH,819353,128041130,09/12/2015,"1,483.50",GLENHAZEL LTD T/A BARKERS CHEMIST FRM45,SP0007682
WANDSWORTH COUNCIL,CS,,HEALTH,Revenue,THIRD PARTY PYMT - HEALTH,819354,128041130,09/12/2015,760.00,GLENHAZEL LTD T/A BARKERS CHEMIST FRM45,SP0007682
WANDSWORTH COUNCIL,CS,,HEALTH,Revenue,THIRD PARTY PYMT - HEALTH,819937,128041130,09/12/2015,"1,291.00",NATIONAL COOPERATIVE CHEMISTS FX183,SP0008376
WANDSWORTH COUNCIL,CS,,HEALTH,Revenue,THIRD PARTY PYMT - HEALTH,819938,128041130,09/12/2015,"1,287.00",NATIONAL COOPERATIVE CHEMISTS FX183,SP0008376
WANDSWORTH COUNCIL,CS,,HEALTH,Revenue,THIRD PARTY PYMT - HEALTH,819940,128041130,09/12/2015,"1,330.00",NATIONAL COOPERATIVE CHEMISTS FX183,SP0008376
WANDSWORTH COUNCIL,ASC,SOCIAL SERVICES,HIRE,Revenue,HIRE - TRANSPORT,822442,130020410,08/12/2015,"1,566.00",BECKETT CORPORATION LTD T/A TINAS CARS,SP0000729
WANDSWORTH COUNCIL,ASC,SOCIAL SERVICES,HIRE,Revenue,HIRE - TRANSPORT,818696,130020410,03/12/2015,144.00,PARKER CARS LIMITED,SP0005826
WANDSWORTH COUNCIL,ASC,SOCIAL SERVICES,PRIVATE,Revenue,EXTERNAL DAYCARE,822421,130045290,08/12/2015,891.45,SHARE COMMUNITY,SP0000329
WANDSWORTH COUNCIL,ASC,SOCIAL SERVICES,PRIVATE,Revenue,EXTERNAL DAYCARE,831110,130045290,18/12/2015,713.16,SHARE COMMUNITY,SP0000329
WANDSWORTH COUNCIL,ASC,SOCIAL SERVICES,PRIVATE,Revenue,EXTERNAL RESIDENTIAL CARE,823203,130045330,09/12/2015,"8,914.29",LONDON CARE PARTNERSHIP LTD,SP0001138
WANDSWORTH COUNCIL,ASC,SOCIAL SERVICES,PRIVATE,Revenue,EXTERNAL RESIDENTIAL CARE,828490,130045330,16/12/2015,"9,211.43",LONDON CARE PARTNERSHIP LTD,SP0001138
WANDSWORTH COUNCIL,ASC,SOCIAL SERVICES,HIRE,Revenue,HIRE - TRANSPORT,818679,130220410,03/12/2015,"1,575.00",BECKETT CORPORATION LTD T/A TINAS CARS,SP0000729
WANDSWORTH COUNCIL,ASC,SOCIAL SERVICES,HIRE,Revenue,HIRE - TRANSPORT,818680,130220410,03/12/2015,"1,800.00",BECKETT CORPORATION LTD T/A TINAS CARS,SP0000729
WANDSWORTH COUNCIL,ASC,SOCIAL SERVICES,HIRE,Revenue,HIRE - TRANSPORT,818681,130220410,03/12/2015,"1,710.00",BECKETT CORPORATION LTD T/A TINAS CARS,SP0000729
WANDSWORTH COUNCIL,ASC,SOCIAL SERVICES,HIRE,Revenue,HIRE - TRANSPORT,818682,130220410,03/12/2015,"1,710.00",BECKETT CORPORATION LTD T/A TINAS CARS,SP0000729
WANDSWORTH COUNCIL,ASC,SOCIAL SERVICES,HIRE,Revenue,HIRE - TRANSPORT,818683,130220410,03/12/2015,"1,800.00",BECKETT CORPORATION LTD T/A TINAS CARS,SP0000729
WANDSWORTH COUNCIL,ASC,SOCIAL SERVICES,HIRE,Revenue,HIRE - TRANSPORT,818708,130220410,03/12/2015,442.00,BECKETT CORPORATION LTD T/A TINAS CARS,SP0000729
WANDSWORTH COUNCIL,ASC,SOCIAL SERVICES,HIRE,Revenue,HIRE - TRANSPORT,818713,130220410,03/12/2015,"1,430.00",BECKETT CORPORATION LTD T/A TINAS CARS,SP0000729
WANDSWORTH COUNCIL,ASC,SOCIAL SERVICES,HIRE,Revenue,HIRE - TRANSPORT,818714,130220410,03/12/2015,870.74,BECKETT CORPORATION LTD T/A TINAS CARS,SP0000729
WANDSWORTH COUNCIL,ASC,SOCIAL SERVICES,HIRE,Revenue,HIRE - TRANSPORT,818716,130220410,03/12/2015,"2,035.00",BECKETT CORPORATION LTD T/A TINAS CARS,SP0000729
WANDSWORTH COUNCIL,ASC,SOCIAL SERVICES,HIRE,Revenue,HIRE - TRANSPORT,822437,130220410,08/12/2015,671.67,BECKETT CORPORATION LTD T/A TINAS CARS,SP0000729
WANDSWORTH COUNCIL,ASC,SOCIAL SERVICES,HIRE,Revenue,HIRE - TRANSPORT,822441,130220410,08/12/2015,583.49,BECKETT CORPORATION LTD T/A TINAS CARS,SP0000729
WANDSWORTH COUNCIL,ASC,SOCIAL SERVICES,HIRE,Revenue,HIRE - TRANSPORT,822445,130220410,08/12/2015,108.48,BECKETT CORPORATION LTD T/A TINAS CARS,SP0000729
WANDSWORTH COUNCIL,ASC,SOCIAL SERVICES,HIRE,Revenue,HIRE - TRANSPORT,822447,130220410,08/12/2015,490.72,BECKETT CORPORATION LTD T/A TINAS CARS,SP0000729
WANDSWORTH COUNCIL,ASC,SOCIAL SERVICES,HIRE,Revenue,HIRE - TRANSPORT,822449,130220410,08/12/2015,"2,070.00",BECKETT CORPORATION LTD T/A TINAS CARS,SP0000729
WANDSWORTH COUNCIL,ASC,SOCIAL SERVICES,HIRE,Revenue,HIRE - TRANSPORT,822451,130220410,08/12/2015,702.00,BECKETT CORPORATION LTD T/A TINAS CARS,SP0000729
WANDSWORTH COUNCIL,ASC,SOCIAL SERVICES,HIRE,Revenue,HIRE - TRANSPORT,822452,130220410,08/12/2015,"1,320.00",BECKETT CORPORATION LTD T/A TINAS CARS,SP0000729
WANDSWORTH COUNCIL,ASC,SOCIAL SERVICES,HIRE,Revenue,HIRE - TRANSPORT,822453,130220410,08/12/2015,"1,500.00",BECKETT CORPORATION LTD T/A TINAS CARS,SP0000729
WANDSWORTH COUNCIL,ASC,SOCIAL SERVICES,HIRE,Revenue,HIRE - TRANSPORT,822454,130220410,08/12/2015,"1,200.00",BECKETT CORPORATION LTD T/A TINAS CARS,SP0000729
WANDSWORTH COUNCIL,ASC,SOCIAL SERVICES,HIRE,Revenue,HIRE - TRANSPORT,822455,130220410,08/12/2015,"1,760.00",BECKETT CORPORATION LTD T/A TINAS CARS,SP0000729
WANDSWORTH COUNCIL,ASC,SOCIAL SERVICES,HIRE,Revenue,HIRE - TRANSPORT,822456,130220410,08/12/2015,"2,200.00",BECKETT CORPORATION LTD T/A TINAS CARS,SP0000729
WANDSWORTH COUNCIL,ASC,SOCIAL SERVICES,HIRE,Revenue,HIRE - TRANSPORT,823214,130220410,09/12/2015,502.88,BECKETT CORPORATION LTD T/A TINAS CARS,SP0000729
WANDSWORTH COUNCIL,ASC,SOCIAL SERVICES,HIRE,Revenue,HIRE - TRANSPORT,823215,130220410,09/12/2015,550.32,BECKETT CORPORATION LTD T/A TINAS CARS,SP0000729
WANDSWORTH COUNCIL,ASC,SOCIAL SERVICES,HIRE,Revenue,HIRE - TRANSPORT,823216,130220410,09/12/2015,519.12,BECKETT CORPORATION LTD T/A TINAS CARS,SP0000729
WANDSWORTH COUNCIL,ASC,SOCIAL SERVICES,HIRE,Revenue,HIRE - TRANSPORT,823217,130220410,09/12/2015,917.20,BECKETT CORPORATION LTD T/A TINAS CARS,SP0000729
WANDSWORTH COUNCIL,ASC,SOCIAL SERVICES,HIRE,Revenue,HIRE - TRANSPORT,823219,130220410,09/12/2015,678.52,BECKETT CORPORATION LTD T/A TINAS CARS,SP0000729
WANDSWORTH COUNCIL,ASC,SOCIAL SERVICES,HIRE,Revenue,HIRE - TRANSPORT,823220,130220410,09/12/2015,733.76,BECKETT CORPORATION LTD T/A TINAS CARS,SP0000729
WANDSWORTH COUNCIL,ASC,SOCIAL SERVICES,HIRE,Revenue,HIRE - TRANSPORT,831160,130220410,18/12/2015,945.00,BECKETT CORPORATION LTD T/A TINAS CARS,SP0000729
WANDSWORTH COUNCIL,ASC,SOCIAL SERVICES,HIRE,Revenue,HIRE - TRANSPORT,818696,130220410,03/12/2015,321.30,PARKER CARS LIMITED,SP0005826
WANDSWORTH COUNCIL,ASC,SOCIAL SERVICES,HIRE,Revenue,HIRE - TRANSPORT,818699,130220410,03/12/2015,612.00,PARKER CARS LIMITED,SP0005826
WANDSWORTH COUNCIL,ASC,SOCIAL SERVICES,HIRE,Revenue,NEW TRANSPORT CONTRACT,822443,130220430,08/12/2015,"1,566.00",BECKETT CORPORATION LTD T/A TINAS CARS,SP0000729
WANDSWORTH COUNCIL,ASC,SOCIAL SERVICES,HIRE,Revenue,NEW TRANSPORT CONTRACT,822445,130220430,08/12/2015,396.16,BECKETT CORPORATION LTD T/A TINAS CARS,SP0000729
WANDSWORTH COUNCIL,ASC,,HIRE,Revenue,NEW TRANSPORT CONTRACT,761777,130220430,30/12/2015,"3,558.00",BALHAM GATEWAY CLUB  C/O TRINITY ST MARY,SP0005816
WANDSWORTH COUNCIL,ASC,SOCIAL SERVICES,HEALTH,Revenue,EXT RES S28A 100% OLD LONGSTAY,818629,130241010,03/12/2015,"6,064.66",VOYAGE CARE LTD,SP0000366
WANDSWORTH COUNCIL,ASC,SOCIAL SERVICES,HEALTH,Revenue,EXT RES S28A 100% OLD LONGSTAY,818646,130241010,03/12/2015,"9,174.85",VOYAGE CARE LTD,SP0000366
WANDSWORTH COUNCIL,ASC,SOCIAL SERVICES,HEALTH,Revenue,EXT RES S28A 100% OLD LONGSTAY,818647,130241010,03/12/2015,"8,878.88",VOYAGE CARE LTD,SP0000366
WANDSWORTH COUNCIL,ASC,SOCIAL SERVICES,HEALTH,Revenue,EXT RES S28A 100% OLD LONGSTAY,828450,130241010,16/12/2015,"6,266.83",VOYAGE CARE LTD,SP0000366
WANDSWORTH COUNCIL,ASC,SOCIAL SERVICES,HEALTH,Revenue,EXT RES S28A 100% OLD LONGSTAY,828457,130241010,16/12/2015,"9,174.85",VOYAGE CARE LTD,SP0000366
WANDSWORTH COUNCIL,ASC,SOCIAL SERVICES,HEALTH,Revenue,EXT RES S28A 100% OLD LONGSTAY,825531,130241010,11/12/2015,"3,865.17",PARKGATE MANOR,SP0000521
WANDSWORTH COUNCIL,ASC,SOCIAL SERVICES,HEALTH,Revenue,EXT RES S28A 100% OLD LONGSTAY,825532,130241010,11/12/2015,"3,740.48",PARKGATE MANOR,SP0000521
WANDSWORTH COUNCIL,ASC,SOCIAL SERVICES,HEALTH,Revenue,EXT RES S28A 100% OLD LONGSTAY,837975,130241010,24/12/2015,"3,072.14",PARKGATE MANOR,SP0000521
WANDSWORTH COUNCIL,ASC,SOCIAL SERVICES,HEALTH,Revenue,EXT RES S28A 100% OLD LONGSTAY,837976,130241010,24/12/2015,"3,865.17",PARKGATE MANOR,SP0000521
WANDSWORTH COUNCIL,ASC,SOCIAL SERVICES,HEALTH,Revenue,EXT RES CARE S28A 100%,818630,130241090,03/12/2015,"6,266.97",VOYAGE CARE LTD,SP0000366
WANDSWORTH COUNCIL,ASC,SOCIAL SERVICES,HEALTH,Revenue,EXT RES CARE S28A 100%,818631,130241090,03/12/2015,"6,064.80",VOYAGE CARE LTD,SP0000366
WANDSWORTH COUNCIL,ASC,SOCIAL SERVICES,HEALTH,Revenue,EXT RES CARE S28A 100%,828451,130241090,16/12/2015,"6,266.97",VOYAGE CARE LTD,SP0000366
WANDSWORTH COUNCIL,ASC,SOCIAL SERVICES,HEALTH,Revenue,EXT RES CARE S28A 100%,820919,130241090,07/12/2015,"6,746.04",HOME FROM HOME CARE LIMITED,SP0001373
WANDSWORTH COUNCIL,ASC,SOCIAL SERVICES,HEALTH,Revenue,EXT RES CARE S28A 100%,822366,130241090,08/12/2015,"6,934.57",HOME FROM HOME CARE LIMITED,SP0001373
WANDSWORTH COUNCIL,ASC,SOCIAL SERVICES,HEALTH,Revenue,EXT RES S28A OLD LONG STAY,825509,130241110,17/12/2015,"2,975.96",ELEANOR NURSING & SOCIAL CARE,SP0000110
WANDSWORTH COUNCIL,ASC,SOCIAL SERVICES,HEALTH,Revenue,EXT RES S28A OLD LONG STAY,828474,130241110,16/12/2015,"4,892.73",THE COMMUNITY CARE COMPANY UK LTD,SP0000576
WANDSWORTH COUNCIL,ASC,SOCIAL SERVICES,HEALTH,Revenue,EXT RES S28A OLD LONG STAY,818627,130241110,03/12/2015,"4,709.79",METROPOLITAN HOUSING TRUST,SP0000626
WANDSWORTH COUNCIL,ASC,SOCIAL SERVICES,HEALTH,Revenue,EXT RES S28A OLD LONG STAY,836683,130241110,23/12/2015,"4,351.72",ANTHONY TOBY HOMES TRUST,SP0000755
WANDSWORTH COUNCIL,ASC,SOCIAL SERVICES,HEALTH,Revenue,EXT RES S28A OLD LONG STAY,836684,130241110,23/12/2015,"4,351.72",ANTHONY TOBY HOMES TRUST,SP0000755
WANDSWORTH COUNCIL,ASC,,INDEPENDENT UNITS,Revenue,DAY CARE MUTUAL,770371,130242040,16/12/2015,"552,636.40",ONE TRUST,SP0010206
WANDSWORTH COUNCIL,ASC,SOCIAL SERVICES,OTHER AGENCIES,Revenue,ENABLERS/EDUCATION FEES,825533,130243280,11/12/2015,"16,466.67",ST  JOHN'S SCHOOL & COLLEGE,SP0001374
WANDSWORTH COUNCIL,ASC,SOCIAL SERVICES,OTHER AGENCIES,Revenue,ENABLERS/EDUCATION FEES,828499,130243280,16/12/2015,"15,020.81",CAMBIAN WHINFELL SCHOOL LTD,SP0008913
WANDSWORTH COUNCIL,ASC,SOCIAL SERVICES,OTHER AGENCIES,Revenue,EXTERNAL LODGINGS,822430,130243320,08/12/2015,"1,085.00",M RAZA T/A CLOCK HOUSE HOTEL,SP0001280
WANDSWORTH COUNCIL,ASC,SOCIAL SERVICES,OTHER AGENCIES,Revenue,EXTERNAL LODGINGS,822431,130243320,08/12/2015,"1,085.00",M RAZA T/A CLOCK HOUSE HOTEL,SP0001280
WANDSWORTH COUNCIL,ASC,SOCIAL SERVICES,OTHER AGENCIES,Revenue,EXTERNAL OUTREACH,819247,130243330,04/12/2015,458.58,RAINBOW MEDICAL SERVICES,SP0000037
WANDSWORTH COUNCIL,ASC,SOCIAL SERVICES,OTHER AGENCIES,Revenue,EXTERNAL OUTREACH,819248,130243330,04/12/2015,460.84,RAINBOW MEDICAL SERVICES,SP0000037
WANDSWORTH COUNCIL,ASC,SOCIAL SERVICES,OTHER AGENCIES,Revenue,EXTERNAL OUTREACH,822434,130243330,08/12/2015,456.32,RAINBOW MEDICAL SERVICES,SP0000037
WANDSWORTH COUNCIL,ASC,SOCIAL SERVICES,OTHER AGENCIES,Revenue,EXTERNAL OUTREACH,819245,130243330,04/12/2015,950.00,PROTOCOL EDUCATION  LTD,SP0000171
WANDSWORTH COUNCIL,ASC,SOCIAL SERVICES,OTHER AGENCIES,Revenue,EXTERNAL OUTREACH,833598,130243330,21/12/2015,950.00,PROTOCOL EDUCATION  LTD,SP0000171
WANDSWORTH COUNCIL,ASC,SOCIAL SERVICES,OTHER AGENCIES,Revenue,EXTERNAL OUTREACH,838014,130243330,24/12/2015,950.00,PROTOCOL EDUCATION  LTD,SP0000171
WANDSWORTH COUNCIL,ASC,SOCIAL SERVICES,OTHER AGENCIES,Revenue,EXTERNAL OUTREACH,830529,130243330,17/12/2015,506.56,HARINGEY ASSOCIATION FOR INDEPENDENT LIV,SP0000222
WANDSWORTH COUNCIL,ASC,SOCIAL SERVICES,OTHER AGENCIES,Revenue,EXTERNAL OUTREACH,830530,130243330,17/12/2015,753.60,HARINGEY ASSOCIATION FOR INDEPENDENT LIV,SP0000222
WANDSWORTH COUNCIL,ASC,SOCIAL SERVICES,OTHER AGENCIES,Revenue,EXTERNAL OUTREACH,830533,130243330,17/12/2015,628.00,HARINGEY ASSOCIATION FOR INDEPENDENT LIV,SP0000222
WANDSWORTH COUNCIL,ASC,SOCIAL SERVICES,OTHER AGENCIES,Revenue,EXTERNAL OUTREACH,828559,130243330,16/12/2015,"2,185.32",C M CARE LTD,SP0000455
WANDSWORTH COUNCIL,ASC,SOCIAL SERVICES,OTHER AGENCIES,Revenue,EXTERNAL OUTREACH,828561,130243330,16/12/2015,"1,287.20",C M CARE LTD,SP0000455
WANDSWORTH COUNCIL,ASC,SOCIAL SERVICES,OTHER AGENCIES,Revenue,EXTERNAL OUTREACH,828562,130243330,16/12/2015,576.00,C M CARE LTD,SP0000455
WANDSWORTH COUNCIL,ASC,SOCIAL SERVICES,OTHER AGENCIES,Revenue,EXTERNAL OUTREACH,828563,130243330,16/12/2015,"1,540.00",C M CARE LTD,SP0000455
WANDSWORTH COUNCIL,ASC,SOCIAL SERVICES,OTHER AGENCIES,Revenue,EXTERNAL OUTREACH,839477,130243330,31/12/2015,717.84,GENERATE OPPORTUNITIES LTD,SP0000503
WANDSWORTH COUNCIL,ASC,SOCIAL SERVICES,OTHER AGENCIES,Revenue,EXTERNAL OUTREACH,839481,130243330,31/12/2015,239.28,GENERATE OPPORTUNITIES LTD,SP0000503
WANDSWORTH COUNCIL,ASC,SOCIAL SERVICES,OTHER AGENCIES,Revenue,EXTERNAL OUTREACH,839482,130243330,31/12/2015,677.96,GENERATE OPPORTUNITIES LTD,SP0000503
WANDSWORTH COUNCIL,ASC,SOCIAL SERVICES,OTHER AGENCIES,Revenue,EXTERNAL OUTREACH,839487,130243330,31/12/2015,638.08,GENERATE OPPORTUNITIES LTD,SP0000503
WANDSWORTH COUNCIL,ASC,SOCIAL SERVICES,OTHER AGENCIES,Revenue,EXTERNAL OUTREACH,839488,130243330,31/12/2015,797.60,GENERATE OPPORTUNITIES LTD,SP0000503
WANDSWORTH COUNCIL,ASC,SOCIAL SERVICES,OTHER AGENCIES,Revenue,EXTERNAL OUTREACH,839808,130243330,31/12/2015,576.00,GENERATE OPPORTUNITIES LTD,SP0000503
WANDSWORTH COUNCIL,ASC,SOCIAL SERVICES,OTHER AGENCIES,Revenue,EXTERNAL OUTREACH,838775,130243330,30/12/2015,641.94,SOUTHSIDE PARTNERSHIP,SP0000692
WANDSWORTH COUNCIL,ASC,SOCIAL SERVICES,OTHER AGENCIES,Revenue,EXTERNAL OUTREACH,838782,130243330,30/12/2015,641.94,SOUTHSIDE PARTNERSHIP,SP0000692
WANDSWORTH COUNCIL,ASC,SOCIAL SERVICES,OTHER AGENCIES,Revenue,EXTERNAL OUTREACH,830525,130243330,17/12/2015,"1,500.00",ROYAL ASSOCIATION FOR DEAF PEOPLE,SP0001251
WANDSWORTH COUNCIL,ASC,SOCIAL SERVICES,OTHER AGENCIES,Revenue,EXTERNAL OUTREACH,817035,130243330,02/12/2015,331.20,THE BRANDON TRUST,SP0005337
WANDSWORTH COUNCIL,ASC,SOCIAL SERVICES,OTHER AGENCIES,Revenue,EXTERNAL OUTREACH,817050,130243330,02/12/2015,757.92,THE BRANDON TRUST,SP0005337
WANDSWORTH COUNCIL,ASC,SOCIAL SERVICES,OTHER AGENCIES,Revenue,EXTERNAL OUTREACH,817083,130243330,02/12/2015,631.60,THE BRANDON TRUST,SP0005337
WANDSWORTH COUNCIL,ASC,SOCIAL SERVICES,OTHER AGENCIES,Revenue,EXTERNAL OUTREACH,817093,130243330,02/12/2015,568.44,THE BRANDON TRUST,SP0005337
WANDSWORTH COUNCIL,ASC,SOCIAL SERVICES,OTHER AGENCIES,Revenue,EXTERNAL OUTREACH,817094,130243330,02/12/2015,505.28,THE BRANDON TRUST,SP0005337
WANDSWORTH COUNCIL,ASC,SOCIAL SERVICES,OTHER AGENCIES,Revenue,EXTERNAL OUTREACH,817099,130243330,02/12/2015,"1,170.80",THE BRANDON TRUST,SP0005337
WANDSWORTH COUNCIL,ASC,SOCIAL SERVICES,OTHER AGENCIES,Revenue,EXTERNAL OUTREACH,817117,130243330,02/12/2015,189.48,THE BRANDON TRUST,SP0005337
WANDSWORTH COUNCIL,ASC,SOCIAL SERVICES,OTHER AGENCIES,Revenue,EXTERNAL OUTREACH,818692,130243330,03/12/2015,947.40,THE BRANDON TRUST,SP0005337
WANDSWORTH COUNCIL,ASC,SOCIAL SERVICES,OTHER AGENCIES,Revenue,EXTERNAL OUTREACH,821014,130243330,07/12/2015,"2,640.00",RELIABLE PERSONNEL LTD,SP0005657
WANDSWORTH COUNCIL,ASC,SOCIAL SERVICES,OTHER AGENCIES,Revenue,EXTERNAL OUTREACH,839513,130243330,31/12/2015,720.00,LIVE TOO LIMITED,SP0010112
WANDSWORTH COUNCIL,ASC,,OTHER AGENCIES,Revenue,APS SHARED LIVES SCHEME,798864,130243820,30/12/2015,"55,406.44",SOUTHSIDE PARTNERSHIP,SP0000692
WANDSWORTH COUNCIL,ASC,SOCIAL SERVICES,PRIVATE,Revenue,EXTERNAL DAYCARE,816141,130245290,02/12/2015,"1,158.59",RESIDENTIAL CARE SERVICES T/A FRANKLYN L,SP0000147
WANDSWORTH COUNCIL,ASC,SOCIAL SERVICES,PRIVATE,Revenue,EXTERNAL DAYCARE,838001,130245290,24/12/2015,"1,268.93",RESIDENTIAL CARE SERVICES T/A FRANKLYN L,SP0000147
WANDSWORTH COUNCIL,ASC,SOCIAL SERVICES,PRIVATE,Revenue,EXTERNAL DAYCARE,829813,130245290,17/12/2015,"2,171.05",ST MARYS RESIDENTIAL HOME,SP0000215
WANDSWORTH COUNCIL,ASC,SOCIAL SERVICES,PRIVATE,Revenue,EXTERNAL DAYCARE,829814,130245290,17/12/2015,885.65,ST MARYS RESIDENTIAL HOME,SP0000215
WANDSWORTH COUNCIL,ASC,SOCIAL SERVICES,PRIVATE,Revenue,EXTERNAL DAYCARE,829815,130245290,17/12/2015,500.00,ST MARYS RESIDENTIAL HOME,SP0000215
WANDSWORTH COUNCIL,ASC,SOCIAL SERVICES,PRIVATE,Revenue,EXTERNAL DAYCARE,829816,130245290,17/12/2015,516.10,ST MARYS RESIDENTIAL HOME,SP0000215
WANDSWORTH COUNCIL,ASC,SOCIAL SERVICES,PRIVATE,Revenue,EXTERNAL DAYCARE,829817,130245290,17/12/2015,516.50,ST MARYS RESIDENTIAL HOME,SP0000215
WANDSWORTH COUNCIL,ASC,SOCIAL SERVICES,PRIVATE,Revenue,EXTERNAL DAYCARE,829818,130245290,17/12/2015,"1,196.00",ST MARYS RESIDENTIAL HOME,SP0000215
WANDSWORTH COUNCIL,ASC,SOCIAL SERVICES,PRIVATE,Revenue,EXTERNAL DAYCARE,829819,130245290,17/12/2015,516.10,ST MARYS RESIDENTIAL HOME,SP0000215
WANDSWORTH COUNCIL,ASC,SOCIAL SERVICES,PRIVATE,Revenue,EXTERNAL DAYCARE,829820,130245290,17/12/2015,667.85,ST MARYS RESIDENTIAL HOME,SP0000215
WANDSWORTH COUNCIL,ASC,SOCIAL SERVICES,PRIVATE,Revenue,EXTERNAL DAYCARE,830103,130245290,17/12/2015,500.00,ST MARYS RESIDENTIAL HOME,SP0000215
WANDSWORTH COUNCIL,ASC,SOCIAL SERVICES,PRIVATE,Revenue,EXTERNAL DAYCARE,830104,130245290,17/12/2015,516.10,ST MARYS RESIDENTIAL HOME,SP0000215
WANDSWORTH COUNCIL,ASC,SOCIAL SERVICES,PRIVATE,Revenue,EXTERNAL DAYCARE,830105,130245290,17/12/2015,516.50,ST MARYS RESIDENTIAL HOME,SP0000215
WANDSWORTH COUNCIL,ASC,SOCIAL SERVICES,PRIVATE,Revenue,EXTERNAL DAYCARE,830106,130245290,17/12/2015,"1,196.00",ST MARYS RESIDENTIAL HOME,SP0000215
WANDSWORTH COUNCIL,ASC,SOCIAL SERVICES,PRIVATE,Revenue,EXTERNAL DAYCARE,830107,130245290,17/12/2015,516.10,ST MARYS RESIDENTIAL HOME,SP0000215
WANDSWORTH COUNCIL,ASC,SOCIAL SERVICES,PRIVATE,Revenue,EXTERNAL DAYCARE,830108,130245290,17/12/2015,667.85,ST MARYS RESIDENTIAL HOME,SP0000215
WANDSWORTH COUNCIL,ASC,SOCIAL SERVICES,PRIVATE,Revenue,EXTERNAL DAYCARE,830110,130245290,17/12/2015,"2,171.05",ST MARYS RESIDENTIAL HOME,SP0000215
WANDSWORTH COUNCIL,ASC,SOCIAL SERVICES,PRIVATE,Revenue,EXTERNAL DAYCARE,830111,130245290,17/12/2015,885.65,ST MARYS RESIDENTIAL HOME,SP0000215
WANDSWORTH COUNCIL,ASC,SOCIAL SERVICES,PRIVATE,Revenue,EXTERNAL DAYCARE,837998,130245290,24/12/2015,"2,314.80",NAS SERVICES LIMITED,SP0000217
WANDSWORTH COUNCIL,ASC,SOCIAL SERVICES,PRIVATE,Revenue,EXTERNAL DAYCARE,835861,130245290,23/12/2015,546.00,PARCHMENT TRUST LTD,SP0000255
WANDSWORTH COUNCIL,ASC,SOCIAL SERVICES,PRIVATE,Revenue,EXTERNAL DAYCARE,837060,130245290,23/12/2015,806.04,CRAEGMOOR FACILITIES CO LTD,SP0000306
WANDSWORTH COUNCIL,ASC,SOCIAL SERVICES,PRIVATE,Revenue,EXTERNAL DAYCARE,818674,130245290,03/12/2015,594.30,SHARE COMMUNITY,SP0000329
WANDSWORTH COUNCIL,ASC,SOCIAL SERVICES,PRIVATE,Revenue,EXTERNAL DAYCARE,818675,130245290,03/12/2015,891.45,SHARE COMMUNITY,SP0000329
WANDSWORTH COUNCIL,ASC,SOCIAL SERVICES,PRIVATE,Revenue,EXTERNAL DAYCARE,822420,130245290,08/12/2015,594.30,SHARE COMMUNITY,SP0000329
WANDSWORTH COUNCIL,ASC,SOCIAL SERVICES,PRIVATE,Revenue,EXTERNAL DAYCARE,831099,130245290,18/12/2015,713.16,SHARE COMMUNITY,SP0000329
WANDSWORTH COUNCIL,ASC,SOCIAL SERVICES,PRIVATE,Revenue,EXTERNAL DAYCARE,831101,130245290,18/12/2015,950.84,SHARE COMMUNITY,SP0000329
WANDSWORTH COUNCIL,ASC,SOCIAL SERVICES,PRIVATE,Revenue,EXTERNAL DAYCARE,831102,130245290,18/12/2015,713.16,SHARE COMMUNITY,SP0000329
WANDSWORTH COUNCIL,ASC,SOCIAL SERVICES,PRIVATE,Revenue,EXTERNAL DAYCARE,831105,130245290,18/12/2015,713.16,SHARE COMMUNITY,SP0000329
WANDSWORTH COUNCIL,ASC,SOCIAL SERVICES,PRIVATE,Revenue,EXTERNAL DAYCARE,831107,130245290,18/12/2015,950.84,SHARE COMMUNITY,SP0000329
WANDSWORTH COUNCIL,ASC,SOCIAL SERVICES,PRIVATE,Revenue,EXTERNAL DAYCARE,831108,130245290,18/12/2015,950.84,SHARE COMMUNITY,SP0000329
WANDSWORTH COUNCIL,ASC,SOCIAL SERVICES,PRIVATE,Revenue,EXTERNAL DAYCARE,831109,130245290,18/12/2015,"1,188.56",SHARE COMMUNITY,SP0000329
WANDSWORTH COUNCIL,ASC,SOCIAL SERVICES,PRIVATE,Revenue,EXTERNAL DAYCARE,831111,130245290,18/12/2015,594.28,SHARE COMMUNITY,SP0000329
WANDSWORTH COUNCIL,ASC,SOCIAL SERVICES,PRIVATE,Revenue,EXTERNAL DAYCARE,831112,130245290,18/12/2015,713.16,SHARE COMMUNITY,SP0000329
WANDSWORTH COUNCIL,ASC,SOCIAL SERVICES,PRIVATE,Revenue,EXTERNAL DAYCARE,831113,130245290,18/12/2015,950.84,SHARE COMMUNITY,SP0000329
WANDSWORTH COUNCIL,ASC,SOCIAL SERVICES,PRIVATE,Revenue,EXTERNAL DAYCARE,831116,130245290,18/12/2015,713.16,SHARE COMMUNITY,SP0000329
WANDSWORTH COUNCIL,ASC,SOCIAL SERVICES,PRIVATE,Revenue,EXTERNAL DAYCARE,831118,130245290,18/12/2015,594.28,SHARE COMMUNITY,SP0000329
WANDSWORTH COUNCIL,ASC,SOCIAL SERVICES,PRIVATE,Revenue,EXTERNAL DAYCARE,831119,130245290,18/12/2015,713.16,SHARE COMMUNITY,SP0000329
WANDSWORTH COUNCIL,ASC,SOCIAL SERVICES,PRIVATE,Revenue,EXTERNAL DAYCARE,831120,130245290,18/12/2015,713.16,SHARE COMMUNITY,SP0000329
WANDSWORTH COUNCIL,ASC,SOCIAL SERVICES,PRIVATE,Revenue,EXTERNAL DAYCARE,831124,130245290,18/12/2015,713.16,SHARE COMMUNITY,SP0000329
WANDSWORTH COUNCIL,ASC,SOCIAL SERVICES,PRIVATE,Revenue,EXTERNAL DAYCARE,835062,130245290,22/12/2015,713.16,SHARE COMMUNITY,SP0000329
WANDSWORTH COUNCIL,ASC,SOCIAL SERVICES,PRIVATE,Revenue,EXTERNAL DAYCARE,835063,130245290,22/12/2015,713.16,SHARE COMMUNITY,SP0000329
WANDSWORTH COUNCIL,ASC,SOCIAL SERVICES,PRIVATE,Revenue,EXTERNAL DAYCARE,835064,130245290,22/12/2015,713.16,SHARE COMMUNITY,SP0000329
WANDSWORTH COUNCIL,ASC,SOCIAL SERVICES,PRIVATE,Revenue,EXTERNAL DAYCARE,835066,130245290,22/12/2015,950.84,SHARE COMMUNITY,SP0000329
WANDSWORTH COUNCIL,ASC,SOCIAL SERVICES,PRIVATE,Revenue,EXTERNAL DAYCARE,835068,130245290,22/12/2015,713.16,SHARE COMMUNITY,SP0000329
WANDSWORTH COUNCIL,ASC,SOCIAL SERVICES,PRIVATE,Revenue,EXTERNAL DAYCARE,835071,130245290,22/12/2015,713.16,SHARE COMMUNITY,SP0000329
WANDSWORTH COUNCIL,ASC,SOCIAL SERVICES,PRIVATE,Revenue,EXTERNAL DAYCARE,835072,130245290,22/12/2015,713.16,SHARE COMMUNITY,SP0000329
WANDSWORTH COUNCIL,ASC,SOCIAL SERVICES,PRIVATE,Revenue,EXTERNAL DAYCARE,835075,130245290,22/12/2015,713.16,SHARE COMMUNITY,SP0000329
WANDSWORTH COUNCIL,ASC,SOCIAL SERVICES,PRIVATE,Revenue,EXTERNAL DAYCARE,835077,130245290,22/12/2015,713.16,SHARE COMMUNITY,SP0000329
WANDSWORTH COUNCIL,ASC,SOCIAL SERVICES,PRIVATE,Revenue,EXTERNAL DAYCARE,835081,130245290,22/12/2015,713.16,SHARE COMMUNITY,SP0000329
WANDSWORTH COUNCIL,ASC,SOCIAL SERVICES,PRIVATE,Revenue,EXTERNAL DAYCARE,835082,130245290,22/12/2015,713.16,SHARE COMMUNITY,SP0000329
WANDSWORTH COUNCIL,ASC,SOCIAL SERVICES,PRIVATE,Revenue,EXTERNAL DAYCARE,835083,130245290,22/12/2015,950.84,SHARE COMMUNITY,SP0000329
WANDSWORTH COUNCIL,ASC,SOCIAL SERVICES,PRIVATE,Revenue,EXTERNAL DAYCARE,828553,130245290,16/12/2015,"2,000.16",NORWOOD SCHOOLS LTD,SP0000332
WANDSWORTH COUNCIL,ASC,SOCIAL SERVICES,PRIVATE,Revenue,EXTERNAL DAYCARE,828554,130245290,16/12/2015,"2,055.64",NORWOOD SCHOOLS LTD,SP0000332
WANDSWORTH COUNCIL,ASC,SOCIAL SERVICES,PRIVATE,Revenue,EXTERNAL DAYCARE,818671,130245290,03/12/2015,"1,654.08",VOYAGE CARE LTD,SP0000366
WANDSWORTH COUNCIL,ASC,SOCIAL SERVICES,PRIVATE,Revenue,EXTERNAL DAYCARE,818672,130245290,03/12/2015,"1,654.08",VOYAGE CARE LTD,SP0000366
WANDSWORTH COUNCIL,ASC,SOCIAL SERVICES,PRIVATE,Revenue,EXTERNAL DAYCARE,818673,130245290,03/12/2015,"1,654.08",VOYAGE CARE LTD,SP0000366
WANDSWORTH COUNCIL,ASC,SOCIAL SERVICES,PRIVATE,Revenue,EXTERNAL DAYCARE,816143,130245290,02/12/2015,"1,057.00",ST DAVIDS CARE IN THE COMMUNITY,SP0000379
WANDSWORTH COUNCIL,ASC,SOCIAL SERVICES,PRIVATE,Revenue,EXTERNAL DAYCARE,816144,130245290,02/12/2015,"1,057.00",ST DAVIDS CARE IN THE COMMUNITY,SP0000379
WANDSWORTH COUNCIL,ASC,SOCIAL SERVICES,PRIVATE,Revenue,EXTERNAL DAYCARE,816145,130245290,02/12/2015,"1,057.00",ST DAVIDS CARE IN THE COMMUNITY,SP0000379
WANDSWORTH COUNCIL,ASC,SOCIAL SERVICES,PRIVATE,Revenue,EXTERNAL DAYCARE,816148,130245290,02/12/2015,760.00,WANDSWORTH BENGALI WELFARE ASSOCIATION,SP0000479
WANDSWORTH COUNCIL,ASC,SOCIAL SERVICES,PRIVATE,Revenue,EXTERNAL DAYCARE,837019,130245290,23/12/2015,760.00,WANDSWORTH BENGALI WELFARE ASSOCIATION,SP0000479
WANDSWORTH COUNCIL,ASC,SOCIAL SERVICES,PRIVATE,Revenue,EXTERNAL DAYCARE,829823,130245290,17/12/2015,566.95,SURREY & BORDERS PARTNERSHIP NHS TRUST,SP0000501
WANDSWORTH COUNCIL,ASC,SOCIAL SERVICES,PRIVATE,Revenue,EXTERNAL DAYCARE,830100,130245290,17/12/2015,"1,001.76",SURREY & BORDERS PARTNERSHIP NHS TRUST,SP0000501
WANDSWORTH COUNCIL,ASC,SOCIAL SERVICES,PRIVATE,Revenue,EXTERNAL DAYCARE,839474,130245290,31/12/2015,576.00,GENERATE OPPORTUNITIES LTD,SP0000503
WANDSWORTH COUNCIL,ASC,SOCIAL SERVICES,PRIVATE,Revenue,EXTERNAL DAYCARE,839475,130245290,31/12/2015,640.00,GENERATE OPPORTUNITIES LTD,SP0000503
WANDSWORTH COUNCIL,ASC,SOCIAL SERVICES,PRIVATE,Revenue,EXTERNAL DAYCARE,839481,130245290,31/12/2015,560.00,GENERATE OPPORTUNITIES LTD,SP0000503
WANDSWORTH COUNCIL,ASC,SOCIAL SERVICES,PRIVATE,Revenue,EXTERNAL DAYCARE,839482,130245290,31/12/2015,439.64,GENERATE OPPORTUNITIES LTD,SP0000503
WANDSWORTH COUNCIL,ASC,SOCIAL SERVICES,PRIVATE,Revenue,EXTERNAL DAYCARE,839485,130245290,31/12/2015,800.00,GENERATE OPPORTUNITIES LTD,SP0000503
WANDSWORTH COUNCIL,ASC,SOCIAL SERVICES,PRIVATE,Revenue,EXTERNAL DAYCARE,828474,130245290,16/12/2015,74.98,THE COMMUNITY CARE COMPANY UK LTD,SP0000576
WANDSWORTH COUNCIL,ASC,SOCIAL SERVICES,PRIVATE,Revenue,EXTERNAL DAYCARE,817021,130245290,02/12/2015,914.13,ASHFIELD CARE HOMES LTD,SP0000590
WANDSWORTH COUNCIL,ASC,SOCIAL SERVICES,PRIVATE,Revenue,EXTERNAL DAYCARE,823210,130245290,09/12/2015,892.50,DORSET SCOPE,SP0000591
WANDSWORTH COUNCIL,ASC,SOCIAL SERVICES,PRIVATE,Revenue,EXTERNAL DAYCARE,837017,130245290,23/12/2015,602.56,HIGH HURLANDS HOMES,SP0000668
WANDSWORTH COUNCIL,ASC,SOCIAL SERVICES,PRIVATE,Revenue,EXTERNAL DAYCARE,828558,130245290,16/12/2015,951.30,THE MANOR HOUSE,SP0000728
WANDSWORTH COUNCIL,ASC,SOCIAL SERVICES,PRIVATE,Revenue,EXTERNAL DAYCARE,831064,130245290,18/12/2015,527.36,UNITED RESPONSE,SP0000797
WANDSWORTH COUNCIL,ASC,SOCIAL SERVICES,PRIVATE,Revenue,EXTERNAL DAYCARE,822409,130245290,08/12/2015,540.00,PROSPECTS,SP0000800
WANDSWORTH COUNCIL,ASC,SOCIAL SERVICES,PRIVATE,Revenue,EXTERNAL DAYCARE,835058,130245290,22/12/2015,540.00,PROSPECTS,SP0000800
WANDSWORTH COUNCIL,ASC,SOCIAL SERVICES,PRIVATE,Revenue,EXTERNAL DAYCARE,830057,130245290,17/12/2015,942.23,CHATSWORTH CARE,SP0000831
WANDSWORTH COUNCIL,ASC,SOCIAL SERVICES,PRIVATE,Revenue,EXTERNAL DAYCARE,831097,130245290,18/12/2015,515.52,MENCAP OPEN DOOR,SP0000832
WANDSWORTH COUNCIL,ASC,SOCIAL SERVICES,PRIVATE,Revenue,EXTERNAL DAYCARE,831179,130245290,18/12/2015,504.80,MENCAP OPEN DOOR,SP0000832
WANDSWORTH COUNCIL,ASC,SOCIAL SERVICES,PRIVATE,Revenue,EXTERNAL DAYCARE,830099,130245290,17/12/2015,"1,586.84",STALLCOMBE HOUSE,SP0000843
WANDSWORTH COUNCIL,ASC,SOCIAL SERVICES,PRIVATE,Revenue,EXTERNAL DAYCARE,837055,130245290,23/12/2015,"1,586.84",STALLCOMBE HOUSE,SP0000843
WANDSWORTH COUNCIL,ASC,SOCIAL SERVICES,PRIVATE,Revenue,EXTERNAL DAYCARE,826581,130245290,14/12/2015,814.03,SCOPE,SP0000852
WANDSWORTH COUNCIL,ASC,SOCIAL SERVICES,PRIVATE,Revenue,EXTERNAL DAYCARE,831178,130245290,18/12/2015,833.52,SCOPE,SP0000852
WANDSWORTH COUNCIL,ASC,SOCIAL SERVICES,PRIVATE,Revenue,EXTERNAL DAYCARE,833541,130245290,21/12/2015,814.03,SCOPE,SP0000852
WANDSWORTH COUNCIL,ASC,SOCIAL SERVICES,PRIVATE,Revenue,EXTERNAL DAYCARE,816142,130245290,02/12/2015,"1,416.24",WINSLOW COURT,SP0000886
WANDSWORTH COUNCIL,ASC,SOCIAL SERVICES,PRIVATE,Revenue,EXTERNAL DAYCARE,829826,130245290,17/12/2015,609.83,ORIONE CARE,SP0000961
WANDSWORTH COUNCIL,ASC,SOCIAL SERVICES,PRIVATE,Revenue,EXTERNAL DAYCARE,835859,130245290,23/12/2015,750.56,ORIONE CARE,SP0000961
WANDSWORTH COUNCIL,ASC,SOCIAL SERVICES,PRIVATE,Revenue,EXTERNAL DAYCARE,821007,130245290,07/12/2015,"1,138.40",RIDGEWOOD CARE SERVICES LTD,SP0000969
WANDSWORTH COUNCIL,ASC,SOCIAL SERVICES,PRIVATE,Revenue,EXTERNAL DAYCARE,825664,130245290,11/12/2015,"1,138.40",RIDGEWOOD CARE SERVICES LTD,SP0000969
WANDSWORTH COUNCIL,ASC,SOCIAL SERVICES,PRIVATE,Revenue,EXTERNAL DAYCARE,828441,130245290,16/12/2015,"1,200.00",RIDGEWOOD CARE SERVICES LTD,SP0000969
WANDSWORTH COUNCIL,ASC,SOCIAL SERVICES,PRIVATE,Revenue,EXTERNAL DAYCARE,828556,130245290,16/12/2015,596.80,SCOPE,SP0000991
WANDSWORTH COUNCIL,ASC,SOCIAL SERVICES,PRIVATE,Revenue,EXTERNAL DAYCARE,831093,130245290,18/12/2015,935.00,THE HOME FARM TRUST LTD,SP0001048
WANDSWORTH COUNCIL,ASC,SOCIAL SERVICES,PRIVATE,Revenue,EXTERNAL DAYCARE,823197,130245290,09/12/2015,"1,451.16",LONDON CARE PARTNERSHIP LTD,SP0001138
WANDSWORTH COUNCIL,ASC,SOCIAL SERVICES,PRIVATE,Revenue,EXTERNAL DAYCARE,828484,130245290,16/12/2015,"1,501.20",LONDON CARE PARTNERSHIP LTD,SP0001138
WANDSWORTH COUNCIL,ASC,SOCIAL SERVICES,PRIVATE,Revenue,EXTERNAL DAYCARE,830059,130245290,17/12/2015,563.04,WORKSHOP 305,SP0001403
WANDSWORTH COUNCIL,ASC,SOCIAL SERVICES,PRIVATE,Revenue,EXTERNAL DAYCARE,830060,130245290,17/12/2015,"1,126.08",WORKSHOP 305,SP0001403
WANDSWORTH COUNCIL,ASC,SOCIAL SERVICES,PRIVATE,Revenue,EXTERNAL DAYCARE,830067,130245290,17/12/2015,962.88,WORKSHOP 305,SP0001403
WANDSWORTH COUNCIL,ASC,SOCIAL SERVICES,PRIVATE,Revenue,EXTERNAL DAYCARE,830071,130245290,17/12/2015,722.16,WORKSHOP 305,SP0001403
WANDSWORTH COUNCIL,ASC,SOCIAL SERVICES,PRIVATE,Revenue,EXTERNAL DAYCARE,830078,130245290,17/12/2015,844.56,WORKSHOP 305,SP0001403
WANDSWORTH COUNCIL,ASC,SOCIAL SERVICES,PRIVATE,Revenue,EXTERNAL DAYCARE,830079,130245290,17/12/2015,722.16,WORKSHOP 305,SP0001403
WANDSWORTH COUNCIL,ASC,SOCIAL SERVICES,PRIVATE,Revenue,EXTERNAL DAYCARE,830081,130245290,17/12/2015,722.16,WORKSHOP 305,SP0001403
WANDSWORTH COUNCIL,ASC,SOCIAL SERVICES,PRIVATE,Revenue,EXTERNAL DAYCARE,830085,130245290,17/12/2015,563.04,WORKSHOP 305,SP0001403
WANDSWORTH COUNCIL,ASC,SOCIAL SERVICES,PRIVATE,Revenue,EXTERNAL DAYCARE,830097,130245290,17/12/2015,962.88,WORKSHOP 305,SP0001403
WANDSWORTH COUNCIL,ASC,SOCIAL SERVICES,PRIVATE,Revenue,EXTERNAL DAYCARE,828445,130245290,16/12/2015,108.72,CRAEGMOOR OLD RECTORY BREDE PRIORY,SP0001621
WANDSWORTH COUNCIL,ASC,SOCIAL SERVICES,PRIVATE,Revenue,EXTERNAL DAYCARE,830047,130245290,17/12/2015,520.00,THE CAMDEN SOCIETY,SP0001674
WANDSWORTH COUNCIL,ASC,SOCIAL SERVICES,PRIVATE,Revenue,EXTERNAL DAYCARE,830048,130245290,17/12/2015,520.00,THE CAMDEN SOCIETY,SP0001674
WANDSWORTH COUNCIL,ASC,SOCIAL SERVICES,PRIVATE,Revenue,EXTERNAL DAYCARE,830049,130245290,17/12/2015,520.00,THE CAMDEN SOCIETY,SP0001674
WANDSWORTH COUNCIL,ASC,SOCIAL SERVICES,PRIVATE,Revenue,EXTERNAL DAYCARE,830050,130245290,17/12/2015,520.00,THE CAMDEN SOCIETY,SP0001674
WANDSWORTH COUNCIL,ASC,SOCIAL SERVICES,PRIVATE,Revenue,EXTERNAL DAYCARE,830051,130245290,17/12/2015,520.00,THE CAMDEN SOCIETY,SP0001674
WANDSWORTH COUNCIL,ASC,SOCIAL SERVICES,PRIVATE,Revenue,EXTERNAL DAYCARE,830052,130245290,17/12/2015,520.00,THE CAMDEN SOCIETY,SP0001674
WANDSWORTH COUNCIL,ASC,SOCIAL SERVICES,PRIVATE,Revenue,EXTERNAL DAYCARE,821006,130245290,07/12/2015,650.00,KENT COUNTY COUNCIL (KCC),SP0002270
WANDSWORTH COUNCIL,ASC,SOCIAL SERVICES,PRIVATE,Revenue,EXTERNAL HOMECARE,819232,130245300,04/12/2015,950.78,RAINBOW MEDICAL SERVICES,SP0000037
WANDSWORTH COUNCIL,ASC,SOCIAL SERVICES,PRIVATE,Revenue,EXTERNAL HOMECARE,822405,130245300,08/12/2015,944.00,RAINBOW MEDICAL SERVICES,SP0000037
WANDSWORTH COUNCIL,ASC,SOCIAL SERVICES,PRIVATE,Revenue,EXTERNAL HOMECARE,816979,130245300,02/12/2015,757.13,ASIAN ELDERS SUPPORT SCHEME,SP0000190
WANDSWORTH COUNCIL,ASC,SOCIAL SERVICES,PRIVATE,Revenue,EXTERNAL HOMECARE,820925,130245300,07/12/2015,761.38,ASIAN ELDERS SUPPORT SCHEME,SP0000190
WANDSWORTH COUNCIL,ASC,SOCIAL SERVICES,PRIVATE,Revenue,EXTERNAL HOMECARE,835048,130245300,22/12/2015,728.85,ASIAN ELDERS SUPPORT SCHEME,SP0000190
WANDSWORTH COUNCIL,ASC,SOCIAL SERVICES,PRIVATE,Revenue,EXTERNAL HOMECARE,816120,130245300,02/12/2015,780.88,MUSHKIL AASAAN LTD,SP0000978
WANDSWORTH COUNCIL,ASC,SOCIAL SERVICES,PRIVATE,Revenue,EXTERNAL HOMECARE,816890,130245300,02/12/2015,584.36,SOMA HEALTHCARE LTD,SP0001116
WANDSWORTH COUNCIL,ASC,SOCIAL SERVICES,PRIVATE,Revenue,EXTERNAL HOMECARE,816905,130245300,02/12/2015,"1,042.07",SOMA HEALTHCARE LTD,SP0001116
WANDSWORTH COUNCIL,ASC,SOCIAL SERVICES,PRIVATE,Revenue,EXTERNAL HOMECARE,822379,130245300,08/12/2015,"3,232.00",CHRISTIES CARE LTD,SP0005440
WANDSWORTH COUNCIL,ASC,SOCIAL SERVICES,PRIVATE,Revenue,EXTERNAL HOMECARE,836856,130245300,23/12/2015,"1,545.98",LONDON HOMECARE LTD,SP0009029
WANDSWORTH COUNCIL,ASC,SOCIAL SERVICES,PRIVATE,Revenue,EXTERNAL HOMECARE,836861,130245300,23/12/2015,616.53,LONDON HOMECARE LTD,SP0009029
WANDSWORTH COUNCIL,ASC,SOCIAL SERVICES,PRIVATE,Revenue,EXTERNAL HOMECARE,836865,130245300,23/12/2015,"1,778.88",LONDON HOMECARE LTD,SP0009029
WANDSWORTH COUNCIL,ASC,SOCIAL SERVICES,PRIVATE,Revenue,EXTERNAL HOMECARE,836915,130245300,23/12/2015,855.31,LONDON HOMECARE LTD,SP0009029
WANDSWORTH COUNCIL,ASC,SOCIAL SERVICES,PRIVATE,Revenue,EXTERNAL HOMECARE,836944,130245300,23/12/2015,673.56,LONDON HOMECARE LTD,SP0009029
WANDSWORTH COUNCIL,ASC,SOCIAL SERVICES,PRIVATE,Revenue,EXTERNAL NURSING CARE,816866,130245310,02/12/2015,"6,111.24",WINGHAM COURT,SP0000025
WANDSWORTH COUNCIL,ASC,SOCIAL SERVICES,PRIVATE,Revenue,EXTERNAL NURSING CARE,829917,130245310,17/12/2015,"3,454.30",ROSEDENE NURSING HOME,SP0000316
WANDSWORTH COUNCIL,ASC,SOCIAL SERVICES,PRIVATE,Revenue,EXTERNAL NURSING CARE,818637,130245310,03/12/2015,"5,325.08",VOYAGE CARE LTD,SP0000366
WANDSWORTH COUNCIL,ASC,SOCIAL SERVICES,PRIVATE,Revenue,EXTERNAL NURSING CARE,818638,130245310,03/12/2015,"5,325.08",VOYAGE CARE LTD,SP0000366
WANDSWORTH COUNCIL,ASC,SOCIAL SERVICES,PRIVATE,Revenue,EXTERNAL NURSING CARE,818639,130245310,03/12/2015,"5,325.08",VOYAGE CARE LTD,SP0000366
WANDSWORTH COUNCIL,ASC,SOCIAL SERVICES,PRIVATE,Revenue,EXTERNAL NURSING CARE,835853,130245310,23/12/2015,"4,181.88",VOYAGE CARE LTD,SP0000366
WANDSWORTH COUNCIL,ASC,SOCIAL SERVICES,PRIVATE,Revenue,EXTERNAL NURSING CARE,828476,130245310,16/12/2015,"8,974.81",THE COMMUNITY CARE COMPANY UK LTD,SP0000576
WANDSWORTH COUNCIL,ASC,SOCIAL SERVICES,PRIVATE,Revenue,EXTERNAL NURSING CARE,817280,130245310,02/12/2015,"3,058.12",BUPA CARE SERVICES BACS RECEIPTS,SP0000644
WANDSWORTH COUNCIL,ASC,SOCIAL SERVICES,PRIVATE,Revenue,EXTERNAL NURSING CARE,839579,130245310,31/12/2015,"3,058.12",BUPA CARE SERVICES BACS RECEIPTS,SP0000644
WANDSWORTH COUNCIL,ASC,SOCIAL SERVICES,PRIVATE,Revenue,EXTERNAL NURSING CARE,836686,130245310,23/12/2015,"5,382.08",HIGH HURLANDS HOMES,SP0000668
WANDSWORTH COUNCIL,ASC,SOCIAL SERVICES,PRIVATE,Revenue,EXTERNAL NURSING CARE,817210,130245310,02/12/2015,"3,065.91",TRINITY COURT NURSING HOME,SP0001001
WANDSWORTH COUNCIL,ASC,SOCIAL SERVICES,PRIVATE,Revenue,EXTERNAL NURSING CARE,839651,130245310,31/12/2015,"2,857.72",TRINITY COURT NURSING HOME,SP0001001
WANDSWORTH COUNCIL,ASC,SOCIAL SERVICES,PRIVATE,Revenue,EXTERNAL NURSING CARE,817240,130245310,02/12/2015,"2,675.12",YORK COURT CARE HOME,SP0006091
WANDSWORTH COUNCIL,ASC,SOCIAL SERVICES,PRIVATE,Revenue,EXTERNAL RESIDENTIAL CARE,830573,130245330,17/12/2015,"29,416.77",C.H.O.I.C.E. CARE GROUP,RG0000001
WANDSWORTH COUNCIL,ASC,SOCIAL SERVICES,PRIVATE,Revenue,EXTERNAL RESIDENTIAL CARE,830518,130245330,17/12/2015,"7,123.64",CMG HOMES LTD,SP0000075
WANDSWORTH COUNCIL,ASC,SOCIAL SERVICES,PRIVATE,Revenue,EXTERNAL RESIDENTIAL CARE,830519,130245330,17/12/2015,"7,570.24",CMG HOMES LTD,SP0000075
WANDSWORTH COUNCIL,ASC,SOCIAL SERVICES,PRIVATE,Revenue,EXTERNAL RESIDENTIAL CARE,833495,130245330,21/12/2015,"6,052.16",CMG HOMES LTD,SP0000075
WANDSWORTH COUNCIL,ASC,SOCIAL SERVICES,PRIVATE,Revenue,EXTERNAL RESIDENTIAL CARE,833496,130245330,21/12/2015,"5,517.73",CMG HOMES LTD,SP0000075
WANDSWORTH COUNCIL,ASC,SOCIAL SERVICES,PRIVATE,Revenue,EXTERNAL RESIDENTIAL CARE,833498,130245330,21/12/2015,"8,121.44",CMG HOMES LTD,SP0000075
WANDSWORTH COUNCIL,ASC,SOCIAL SERVICES,PRIVATE,Revenue,EXTERNAL RESIDENTIAL CARE,834954,130245330,22/12/2015,"5,674.36",CMG HOMES LTD,SP0000075
WANDSWORTH COUNCIL,ASC,SOCIAL SERVICES,PRIVATE,Revenue,EXTERNAL RESIDENTIAL CARE,834955,130245330,22/12/2015,"3,940.80",CMG HOMES LTD,SP0000075
WANDSWORTH COUNCIL,ASC,SOCIAL SERVICES,PRIVATE,Revenue,EXTERNAL RESIDENTIAL CARE,834956,130245330,22/12/2015,"6,052.16",CMG HOMES LTD,SP0000075
WANDSWORTH COUNCIL,ASC,SOCIAL SERVICES,PRIVATE,Revenue,EXTERNAL RESIDENTIAL CARE,834957,130245330,22/12/2015,"5,594.64",CMG HOMES LTD,SP0000075
WANDSWORTH COUNCIL,ASC,SOCIAL SERVICES,PRIVATE,Revenue,EXTERNAL RESIDENTIAL CARE,834958,130245330,22/12/2015,"4,404.80",CMG HOMES LTD,SP0000075
WANDSWORTH COUNCIL,ASC,SOCIAL SERVICES,PRIVATE,Revenue,EXTERNAL RESIDENTIAL CARE,834959,130245330,22/12/2015,"3,909.12",CMG HOMES LTD,SP0000075
WANDSWORTH COUNCIL,ASC,SOCIAL SERVICES,PRIVATE,Revenue,EXTERNAL RESIDENTIAL CARE,834960,130245330,22/12/2015,"8,121.44",CMG HOMES LTD,SP0000075
WANDSWORTH COUNCIL,ASC,SOCIAL SERVICES,PRIVATE,Revenue,EXTERNAL RESIDENTIAL CARE,834961,130245330,22/12/2015,"4,902.84",CMG HOMES LTD,SP0000075
WANDSWORTH COUNCIL,ASC,SOCIAL SERVICES,PRIVATE,Revenue,EXTERNAL RESIDENTIAL CARE,834962,130245330,22/12/2015,"4,680.84",CMG HOMES LTD,SP0000075
WANDSWORTH COUNCIL,ASC,SOCIAL SERVICES,PRIVATE,Revenue,EXTERNAL RESIDENTIAL CARE,834963,130245330,22/12/2015,"7,177.08",CMG HOMES LTD,SP0000075
WANDSWORTH COUNCIL,ASC,SOCIAL SERVICES,PRIVATE,Revenue,EXTERNAL RESIDENTIAL CARE,834964,130245330,22/12/2015,"4,402.75",CMG HOMES LTD,SP0000075
WANDSWORTH COUNCIL,ASC,SOCIAL SERVICES,PRIVATE,Revenue,EXTERNAL RESIDENTIAL CARE,829900,130245330,17/12/2015,"6,623.15",NATIONAL SOCIETY FOR EPILEPSY,SP0000120
WANDSWORTH COUNCIL,ASC,SOCIAL SERVICES,PRIVATE,Revenue,EXTERNAL RESIDENTIAL CARE,817381,130245330,02/12/2015,"2,481.72",SANCTUARY CARE LTD,SP0000121
WANDSWORTH COUNCIL,ASC,SOCIAL SERVICES,PRIVATE,Revenue,EXTERNAL RESIDENTIAL CARE,839733,130245330,31/12/2015,"2,481.72",SANCTUARY CARE LTD,SP0000121
WANDSWORTH COUNCIL,ASC,SOCIAL SERVICES,PRIVATE,Revenue,EXTERNAL RESIDENTIAL CARE,816868,130245330,02/12/2015,"5,058.84",IN CHORUS LTD,SP0000129
WANDSWORTH COUNCIL,ASC,SOCIAL SERVICES,PRIVATE,Revenue,EXTERNAL RESIDENTIAL CARE,833504,130245330,21/12/2015,"3,975.08",CENTRUST CARE HOMES LTD,SP0000141
WANDSWORTH COUNCIL,ASC,SOCIAL SERVICES,PRIVATE,Revenue,EXTERNAL RESIDENTIAL CARE,836687,130245330,23/12/2015,"4,835.91",FRANCES TAYLOR FOUNDATION,SP0000142
WANDSWORTH COUNCIL,ASC,SOCIAL SERVICES,PRIVATE,Revenue,EXTERNAL RESIDENTIAL CARE,836688,130245330,23/12/2015,"4,343.46",FRANCES TAYLOR FOUNDATION,SP0000142
WANDSWORTH COUNCIL,ASC,SOCIAL SERVICES,PRIVATE,Revenue,EXTERNAL RESIDENTIAL CARE,836689,130245330,23/12/2015,"4,191.15",FRANCES TAYLOR FOUNDATION,SP0000142
WANDSWORTH COUNCIL,ASC,SOCIAL SERVICES,PRIVATE,Revenue,EXTERNAL RESIDENTIAL CARE,836690,130245330,23/12/2015,"4,259.13",FRANCES TAYLOR FOUNDATION,SP0000142
WANDSWORTH COUNCIL,ASC,SOCIAL SERVICES,PRIVATE,Revenue,EXTERNAL RESIDENTIAL CARE,834951,130245330,22/12/2015,"4,062.44",RESIDENTIAL CARE SERVICES T/A FRANKLYN L,SP0000147
WANDSWORTH COUNCIL,ASC,SOCIAL SERVICES,PRIVATE,Revenue,EXTERNAL RESIDENTIAL CARE,829714,130245330,17/12/2015,"9,223.48",THE MAPLES,SP0000154
WANDSWORTH COUNCIL,ASC,SOCIAL SERVICES,PRIVATE,Revenue,EXTERNAL RESIDENTIAL CARE,829878,130245330,17/12/2015,"5,555.20",THE CHESTNUTS,SP0000182
WANDSWORTH COUNCIL,ASC,SOCIAL SERVICES,PRIVATE,Revenue,EXTERNAL RESIDENTIAL CARE,826409,130245330,14/12/2015,"3,269.48",ST MARYS RESIDENTIAL HOME,SP0000215
WANDSWORTH COUNCIL,ASC,SOCIAL SERVICES,PRIVATE,Revenue,EXTERNAL RESIDENTIAL CARE,829716,130245330,17/12/2015,"3,956.18",ST MARYS RESIDENTIAL HOME,SP0000215
WANDSWORTH COUNCIL,ASC,SOCIAL SERVICES,PRIVATE,Revenue,EXTERNAL RESIDENTIAL CARE,829717,130245330,17/12/2015,"3,898.74",ST MARYS RESIDENTIAL HOME,SP0000215
WANDSWORTH COUNCIL,ASC,SOCIAL SERVICES,PRIVATE,Revenue,EXTERNAL RESIDENTIAL CARE,829718,130245330,17/12/2015,"2,313.48",ST MARYS RESIDENTIAL HOME,SP0000215
WANDSWORTH COUNCIL,ASC,SOCIAL SERVICES,PRIVATE,Revenue,EXTERNAL RESIDENTIAL CARE,829719,130245330,17/12/2015,"3,569.83",ST MARYS RESIDENTIAL HOME,SP0000215
WANDSWORTH COUNCIL,ASC,SOCIAL SERVICES,PRIVATE,Revenue,EXTERNAL RESIDENTIAL CARE,829720,130245330,17/12/2015,"3,711.63",ST MARYS RESIDENTIAL HOME,SP0000215
WANDSWORTH COUNCIL,ASC,SOCIAL SERVICES,PRIVATE,Revenue,EXTERNAL RESIDENTIAL CARE,829721,130245330,17/12/2015,"3,046.94",ST MARYS RESIDENTIAL HOME,SP0000215
WANDSWORTH COUNCIL,ASC,SOCIAL SERVICES,PRIVATE,Revenue,EXTERNAL RESIDENTIAL CARE,829722,130245330,17/12/2015,"5,040.24",ST MARYS RESIDENTIAL HOME,SP0000215
WANDSWORTH COUNCIL,ASC,SOCIAL SERVICES,PRIVATE,Revenue,EXTERNAL RESIDENTIAL CARE,829723,130245330,17/12/2015,"3,619.79",ST MARYS RESIDENTIAL HOME,SP0000215
WANDSWORTH COUNCIL,ASC,SOCIAL SERVICES,PRIVATE,Revenue,EXTERNAL RESIDENTIAL CARE,829724,130245330,17/12/2015,"3,582.71",ST MARYS RESIDENTIAL HOME,SP0000215
WANDSWORTH COUNCIL,ASC,SOCIAL SERVICES,PRIVATE,Revenue,EXTERNAL RESIDENTIAL CARE,829725,130245330,17/12/2015,"3,532.45",ST MARYS RESIDENTIAL HOME,SP0000215
WANDSWORTH COUNCIL,ASC,SOCIAL SERVICES,PRIVATE,Revenue,EXTERNAL RESIDENTIAL CARE,829726,130245330,17/12/2015,"3,097.12",ST MARYS RESIDENTIAL HOME,SP0000215
WANDSWORTH COUNCIL,ASC,SOCIAL SERVICES,PRIVATE,Revenue,EXTERNAL RESIDENTIAL CARE,829727,130245330,17/12/2015,"3,539.72",ST MARYS RESIDENTIAL HOME,SP0000215
WANDSWORTH COUNCIL,ASC,SOCIAL SERVICES,PRIVATE,Revenue,EXTERNAL RESIDENTIAL CARE,831032,130245330,18/12/2015,981.02,ST MARYS RESIDENTIAL HOME,SP0000215
WANDSWORTH COUNCIL,ASC,SOCIAL SERVICES,PRIVATE,Revenue,EXTERNAL RESIDENTIAL CARE,831033,130245330,18/12/2015,"3,801.48",ST MARYS RESIDENTIAL HOME,SP0000215
WANDSWORTH COUNCIL,ASC,SOCIAL SERVICES,PRIVATE,Revenue,EXTERNAL RESIDENTIAL CARE,831034,130245330,18/12/2015,"3,678.85",ST MARYS RESIDENTIAL HOME,SP0000215
WANDSWORTH COUNCIL,ASC,SOCIAL SERVICES,PRIVATE,Revenue,EXTERNAL RESIDENTIAL CARE,819187,130245330,04/12/2015,"8,720.00",SPRING LAKE,SP0000223
WANDSWORTH COUNCIL,ASC,SOCIAL SERVICES,PRIVATE,Revenue,EXTERNAL RESIDENTIAL CARE,819188,130245330,04/12/2015,"7,600.00",SPRING LAKE,SP0000223
WANDSWORTH COUNCIL,ASC,SOCIAL SERVICES,PRIVATE,Revenue,EXTERNAL RESIDENTIAL CARE,819189,130245330,04/12/2015,"8,720.00",SPRING LAKE,SP0000223
WANDSWORTH COUNCIL,ASC,SOCIAL SERVICES,PRIVATE,Revenue,EXTERNAL RESIDENTIAL CARE,819190,130245330,04/12/2015,"7,600.00",SPRING LAKE,SP0000223
WANDSWORTH COUNCIL,ASC,SOCIAL SERVICES,PRIVATE,Revenue,EXTERNAL RESIDENTIAL CARE,819191,130245330,04/12/2015,"8,720.00",SPRING LAKE,SP0000223
WANDSWORTH COUNCIL,ASC,SOCIAL SERVICES,PRIVATE,Revenue,EXTERNAL RESIDENTIAL CARE,819192,130245330,04/12/2015,"7,600.00",SPRING LAKE,SP0000223
WANDSWORTH COUNCIL,ASC,SOCIAL SERVICES,PRIVATE,Revenue,EXTERNAL RESIDENTIAL CARE,828500,130245330,16/12/2015,"7,708.95",THE DISABILITIES TRUST,SP0000239
WANDSWORTH COUNCIL,ASC,SOCIAL SERVICES,PRIVATE,Revenue,EXTERNAL RESIDENTIAL CARE,816859,130245330,02/12/2015,"4,689.36",CAMERON LODGE LIMITED,SP0000271
WANDSWORTH COUNCIL,ASC,SOCIAL SERVICES,PRIVATE,Revenue,EXTERNAL RESIDENTIAL CARE,837986,130245330,24/12/2015,"4,689.36",CAMERON LODGE LIMITED,SP0000271
WANDSWORTH COUNCIL,ASC,SOCIAL SERVICES,PRIVATE,Revenue,EXTERNAL RESIDENTIAL CARE,829745,130245330,17/12/2015,"7,786.98",BROOKDALE CARE,SP0000282
WANDSWORTH COUNCIL,ASC,SOCIAL SERVICES,PRIVATE,Revenue,EXTERNAL RESIDENTIAL CARE,836712,130245330,23/12/2015,"2,950.92",CRAEGMOOR FACILITIES CO LTD,SP0000306
WANDSWORTH COUNCIL,ASC,SOCIAL SERVICES,PRIVATE,Revenue,EXTERNAL RESIDENTIAL CARE,816013,130245330,02/12/2015,"6,206.86",RESIDENTIAL COMMUNITY CARE,SP0000315
WANDSWORTH COUNCIL,ASC,SOCIAL SERVICES,PRIVATE,Revenue,EXTERNAL RESIDENTIAL CARE,816014,130245330,02/12/2015,"6,263.46",RESIDENTIAL COMMUNITY CARE,SP0000315
WANDSWORTH COUNCIL,ASC,SOCIAL SERVICES,PRIVATE,Revenue,EXTERNAL RESIDENTIAL CARE,822374,130245330,08/12/2015,"6,206.86",RESIDENTIAL COMMUNITY CARE,SP0000315
WANDSWORTH COUNCIL,ASC,SOCIAL SERVICES,PRIVATE,Revenue,EXTERNAL RESIDENTIAL CARE,822375,130245330,08/12/2015,"6,006.64",RESIDENTIAL COMMUNITY CARE,SP0000315
WANDSWORTH COUNCIL,ASC,SOCIAL SERVICES,PRIVATE,Revenue,EXTERNAL RESIDENTIAL CARE,836707,130245330,23/12/2015,"4,946.29",DOLPHIN HOMES LTD,SP0000331
WANDSWORTH COUNCIL,ASC,SOCIAL SERVICES,PRIVATE,Revenue,EXTERNAL RESIDENTIAL CARE,836708,130245330,23/12/2015,"3,893.95",DOLPHIN HOMES LTD,SP0000331
WANDSWORTH COUNCIL,ASC,SOCIAL SERVICES,PRIVATE,Revenue,EXTERNAL RESIDENTIAL CARE,828442,130245330,16/12/2015,"6,154.44",NORWOOD SCHOOLS LTD,SP0000332
WANDSWORTH COUNCIL,ASC,SOCIAL SERVICES,PRIVATE,Revenue,EXTERNAL RESIDENTIAL CARE,828443,130245330,16/12/2015,"6,409.80",NORWOOD SCHOOLS LTD,SP0000332
WANDSWORTH COUNCIL,ASC,SOCIAL SERVICES,PRIVATE,Revenue,EXTERNAL RESIDENTIAL CARE,816867,130245330,02/12/2015,"2,488.40",HEYWOODS GRANGE LTD,SP0000361
WANDSWORTH COUNCIL,ASC,SOCIAL SERVICES,PRIVATE,Revenue,EXTERNAL RESIDENTIAL CARE,824958,130245330,11/12/2015,"3,210.71",HEYWOODS GRANGE LTD,SP0000361
WANDSWORTH COUNCIL,ASC,SOCIAL SERVICES,PRIVATE,Revenue,EXTERNAL RESIDENTIAL CARE,828535,130245330,16/12/2015,"2,571.36",HEYWOODS GRANGE LTD,SP0000361
WANDSWORTH COUNCIL,ASC,SOCIAL SERVICES,PRIVATE,Revenue,EXTERNAL RESIDENTIAL CARE,818634,130245330,03/12/2015,"7,444.36",VOYAGE CARE LTD,SP0000366
WANDSWORTH COUNCIL,ASC,SOCIAL SERVICES,PRIVATE,Revenue,EXTERNAL RESIDENTIAL CARE,818635,130245330,03/12/2015,"7,444.36",VOYAGE CARE LTD,SP0000366
WANDSWORTH COUNCIL,ASC,SOCIAL SERVICES,PRIVATE,Revenue,EXTERNAL RESIDENTIAL CARE,818636,130245330,03/12/2015,"7,444.36",VOYAGE CARE LTD,SP0000366
WANDSWORTH COUNCIL,ASC,SOCIAL SERVICES,PRIVATE,Revenue,EXTERNAL RESIDENTIAL CARE,818640,130245330,03/12/2015,"6,091.77",VOYAGE CARE LTD,SP0000366
WANDSWORTH COUNCIL,ASC,SOCIAL SERVICES,PRIVATE,Revenue,EXTERNAL RESIDENTIAL CARE,818641,130245330,03/12/2015,"5,895.25",VOYAGE CARE LTD,SP0000366
WANDSWORTH COUNCIL,ASC,SOCIAL SERVICES,PRIVATE,Revenue,EXTERNAL RESIDENTIAL CARE,818642,130245330,03/12/2015,"6,127.81",VOYAGE CARE LTD,SP0000366
WANDSWORTH COUNCIL,ASC,SOCIAL SERVICES,PRIVATE,Revenue,EXTERNAL RESIDENTIAL CARE,818643,130245330,03/12/2015,"5,930.14",VOYAGE CARE LTD,SP0000366
WANDSWORTH COUNCIL,ASC,SOCIAL SERVICES,PRIVATE,Revenue,EXTERNAL RESIDENTIAL CARE,818644,130245330,03/12/2015,"7,370.96",VOYAGE CARE LTD,SP0000366
WANDSWORTH COUNCIL,ASC,SOCIAL SERVICES,PRIVATE,Revenue,EXTERNAL RESIDENTIAL CARE,818645,130245330,03/12/2015,"7,133.18",VOYAGE CARE LTD,SP0000366
WANDSWORTH COUNCIL,ASC,SOCIAL SERVICES,PRIVATE,Revenue,EXTERNAL RESIDENTIAL CARE,818648,130245330,03/12/2015,"6,441.12",VOYAGE CARE LTD,SP0000366
WANDSWORTH COUNCIL,ASC,SOCIAL SERVICES,PRIVATE,Revenue,EXTERNAL RESIDENTIAL CARE,818649,130245330,03/12/2015,"7,766.72",VOYAGE CARE LTD,SP0000366
WANDSWORTH COUNCIL,ASC,SOCIAL SERVICES,PRIVATE,Revenue,EXTERNAL RESIDENTIAL CARE,818650,130245330,03/12/2015,"6,441.13",VOYAGE CARE LTD,SP0000366
WANDSWORTH COUNCIL,ASC,SOCIAL SERVICES,PRIVATE,Revenue,EXTERNAL RESIDENTIAL CARE,818651,130245330,03/12/2015,"7,766.72",VOYAGE CARE LTD,SP0000366
WANDSWORTH COUNCIL,ASC,SOCIAL SERVICES,PRIVATE,Revenue,EXTERNAL RESIDENTIAL CARE,818652,130245330,03/12/2015,"7,766.72",VOYAGE CARE LTD,SP0000366
WANDSWORTH COUNCIL,ASC,SOCIAL SERVICES,PRIVATE,Revenue,EXTERNAL RESIDENTIAL CARE,818653,130245330,03/12/2015,"6,441.12",VOYAGE CARE LTD,SP0000366
WANDSWORTH COUNCIL,ASC,SOCIAL SERVICES,PRIVATE,Revenue,EXTERNAL RESIDENTIAL CARE,828454,130245330,16/12/2015,"6,091.77",VOYAGE CARE LTD,SP0000366
WANDSWORTH COUNCIL,ASC,SOCIAL SERVICES,PRIVATE,Revenue,EXTERNAL RESIDENTIAL CARE,828455,130245330,16/12/2015,"6,127.81",VOYAGE CARE LTD,SP0000366
WANDSWORTH COUNCIL,ASC,SOCIAL SERVICES,PRIVATE,Revenue,EXTERNAL RESIDENTIAL CARE,828456,130245330,16/12/2015,"7,370.96",VOYAGE CARE LTD,SP0000366
WANDSWORTH COUNCIL,ASC,SOCIAL SERVICES,PRIVATE,Revenue,EXTERNAL RESIDENTIAL CARE,829879,130245330,17/12/2015,"5,646.12",ESSEX CARE CONSORTIUM,SP0000387
WANDSWORTH COUNCIL,ASC,SOCIAL SERVICES,PRIVATE,Revenue,EXTERNAL RESIDENTIAL CARE,838774,130245330,30/12/2015,"3,135.60",POTENSIAL LTD,SP0000395
WANDSWORTH COUNCIL,ASC,SOCIAL SERVICES,PRIVATE,Revenue,EXTERNAL RESIDENTIAL CARE,834952,130245330,22/12/2015,"3,976.44",KENILWORTH RESIDENTIAL HOME,SP0000432
WANDSWORTH COUNCIL,ASC,SOCIAL SERVICES,PRIVATE,Revenue,EXTERNAL RESIDENTIAL CARE,834953,130245330,22/12/2015,"4,150.04",KENILWORTH RESIDENTIAL HOME,SP0000432
WANDSWORTH COUNCIL,ASC,SOCIAL SERVICES,PRIVATE,Revenue,EXTERNAL RESIDENTIAL CARE,829882,130245330,17/12/2015,"4,654.32",THE WELL HOUSE,SP0000448
WANDSWORTH COUNCIL,ASC,SOCIAL SERVICES,PRIVATE,Revenue,EXTERNAL RESIDENTIAL CARE,829883,130245330,17/12/2015,"4,403.64",THE WELL HOUSE,SP0000448
WANDSWORTH COUNCIL,ASC,SOCIAL SERVICES,PRIVATE,Revenue,EXTERNAL RESIDENTIAL CARE,833475,130245330,21/12/2015,"5,210.48",MACINTYRE CARE,SP0000473
WANDSWORTH COUNCIL,ASC,SOCIAL SERVICES,PRIVATE,Revenue,EXTERNAL RESIDENTIAL CARE,833476,130245330,21/12/2015,"5,429.64",MACINTYRE CARE,SP0000473
WANDSWORTH COUNCIL,ASC,SOCIAL SERVICES,PRIVATE,Revenue,EXTERNAL RESIDENTIAL CARE,833478,130245330,21/12/2015,"3,759.64",MACINTYRE CARE,SP0000473
WANDSWORTH COUNCIL,ASC,SOCIAL SERVICES,PRIVATE,Revenue,EXTERNAL RESIDENTIAL CARE,833479,130245330,21/12/2015,"5,192.48",MACINTYRE CARE,SP0000473
WANDSWORTH COUNCIL,ASC,SOCIAL SERVICES,PRIVATE,Revenue,EXTERNAL RESIDENTIAL CARE,833480,130245330,21/12/2015,"3,750.72",MACINTYRE CARE,SP0000473
WANDSWORTH COUNCIL,ASC,SOCIAL SERVICES,PRIVATE,Revenue,EXTERNAL RESIDENTIAL CARE,833481,130245330,21/12/2015,"3,813.84",MACINTYRE CARE,SP0000473
WANDSWORTH COUNCIL,ASC,SOCIAL SERVICES,PRIVATE,Revenue,EXTERNAL RESIDENTIAL CARE,833482,130245330,21/12/2015,"4,998.84",MACINTYRE CARE,SP0000473
WANDSWORTH COUNCIL,ASC,SOCIAL SERVICES,PRIVATE,Revenue,EXTERNAL RESIDENTIAL CARE,833483,130245330,21/12/2015,"5,097.20",MACINTYRE CARE,SP0000473
WANDSWORTH COUNCIL,ASC,SOCIAL SERVICES,PRIVATE,Revenue,EXTERNAL RESIDENTIAL CARE,833484,130245330,21/12/2015,"8,054.44",MACINTYRE CARE,SP0000473
WANDSWORTH COUNCIL,ASC,SOCIAL SERVICES,PRIVATE,Revenue,EXTERNAL RESIDENTIAL CARE,833485,130245330,21/12/2015,"5,030.56",MACINTYRE CARE,SP0000473
WANDSWORTH COUNCIL,ASC,SOCIAL SERVICES,PRIVATE,Revenue,EXTERNAL RESIDENTIAL CARE,833486,130245330,21/12/2015,"5,429.76",MACINTYRE CARE,SP0000473
WANDSWORTH COUNCIL,ASC,SOCIAL SERVICES,PRIVATE,Revenue,EXTERNAL RESIDENTIAL CARE,833487,130245330,21/12/2015,"4,907.76",MACINTYRE CARE,SP0000473
WANDSWORTH COUNCIL,ASC,SOCIAL SERVICES,PRIVATE,Revenue,EXTERNAL RESIDENTIAL CARE,833488,130245330,21/12/2015,"4,296.00",MACINTYRE CARE,SP0000473
WANDSWORTH COUNCIL,ASC,SOCIAL SERVICES,PRIVATE,Revenue,EXTERNAL RESIDENTIAL CARE,833489,130245330,21/12/2015,"4,909.16",MACINTYRE CARE,SP0000473
WANDSWORTH COUNCIL,ASC,SOCIAL SERVICES,PRIVATE,Revenue,EXTERNAL RESIDENTIAL CARE,833490,130245330,21/12/2015,"4,909.16",MACINTYRE CARE,SP0000473
WANDSWORTH COUNCIL,ASC,SOCIAL SERVICES,PRIVATE,Revenue,EXTERNAL RESIDENTIAL CARE,833492,130245330,21/12/2015,"5,030.56",MACINTYRE CARE,SP0000473
WANDSWORTH COUNCIL,ASC,SOCIAL SERVICES,PRIVATE,Revenue,EXTERNAL RESIDENTIAL CARE,833493,130245330,21/12/2015,"4,907.76",MACINTYRE CARE,SP0000473
WANDSWORTH COUNCIL,ASC,SOCIAL SERVICES,PRIVATE,Revenue,EXTERNAL RESIDENTIAL CARE,835855,130245330,23/12/2015,"5,210.48",MACINTYRE CARE,SP0000473
WANDSWORTH COUNCIL,ASC,SOCIAL SERVICES,PRIVATE,Revenue,EXTERNAL RESIDENTIAL CARE,831063,130245330,18/12/2015,"1,998.05",SURREY & BORDERS PARTNERSHIP NHS TRUST,SP0000501
WANDSWORTH COUNCIL,ASC,SOCIAL SERVICES,PRIVATE,Revenue,EXTERNAL RESIDENTIAL CARE,831060,130245330,18/12/2015,"7,717.76",LORING HALL LIMITED,SP0000511
WANDSWORTH COUNCIL,ASC,SOCIAL SERVICES,PRIVATE,Revenue,EXTERNAL RESIDENTIAL CARE,819185,130245330,04/12/2015,"8,292.86",SEEABILITY,SP0000572
WANDSWORTH COUNCIL,ASC,SOCIAL SERVICES,PRIVATE,Revenue,EXTERNAL RESIDENTIAL CARE,833500,130245330,21/12/2015,"7,597.03",SEEABILITY,SP0000572
WANDSWORTH COUNCIL,ASC,SOCIAL SERVICES,PRIVATE,Revenue,EXTERNAL RESIDENTIAL CARE,828477,130245330,16/12/2015,"5,644.30",THE COMMUNITY CARE COMPANY UK LTD,SP0000576
WANDSWORTH COUNCIL,ASC,SOCIAL SERVICES,PRIVATE,Revenue,EXTERNAL RESIDENTIAL CARE,828478,130245330,16/12/2015,"7,122.03",THE COMMUNITY CARE COMPANY UK LTD,SP0000576
WANDSWORTH COUNCIL,ASC,SOCIAL SERVICES,PRIVATE,Revenue,EXTERNAL RESIDENTIAL CARE,828479,130245330,16/12/2015,"6,002.71",THE COMMUNITY CARE COMPANY UK LTD,SP0000576
WANDSWORTH COUNCIL,ASC,SOCIAL SERVICES,PRIVATE,Revenue,EXTERNAL RESIDENTIAL CARE,828481,130245330,16/12/2015,"7,203.16",THE COMMUNITY CARE COMPANY UK LTD,SP0000576
WANDSWORTH COUNCIL,ASC,SOCIAL SERVICES,PRIVATE,Revenue,EXTERNAL RESIDENTIAL CARE,828483,130245330,16/12/2015,"6,188.66",THE COMMUNITY CARE COMPANY UK LTD,SP0000576
WANDSWORTH COUNCIL,ASC,SOCIAL SERVICES,PRIVATE,Revenue,EXTERNAL RESIDENTIAL CARE,836696,130245330,23/12/2015,0.43,THE COMMUNITY CARE COMPANY UK LTD,SP0000576
WANDSWORTH COUNCIL,ASC,SOCIAL SERVICES,PRIVATE,Revenue,EXTERNAL RESIDENTIAL CARE,828544,130245330,16/12/2015,"6,641.44",BIRCC,SP0000584
WANDSWORTH COUNCIL,ASC,SOCIAL SERVICES,PRIVATE,Revenue,EXTERNAL RESIDENTIAL CARE,831061,130245330,18/12/2015,"5,875.84",THE REGARD PARTNERSHIP,SP0000588
WANDSWORTH COUNCIL,ASC,SOCIAL SERVICES,PRIVATE,Revenue,EXTERNAL RESIDENTIAL CARE,837987,130245330,24/12/2015,"10,118.48",EVERGREEN PARTNERSHIP,SP0000597
WANDSWORTH COUNCIL,ASC,SOCIAL SERVICES,PRIVATE,Revenue,EXTERNAL RESIDENTIAL CARE,826398,130245330,14/12/2015,"4,792.20",LAETUS LODGE,SP0000600
WANDSWORTH COUNCIL,ASC,SOCIAL SERVICES,PRIVATE,Revenue,EXTERNAL RESIDENTIAL CARE,826399,130245330,14/12/2015,"6,096.48",LAETUS LODGE,SP0000600
WANDSWORTH COUNCIL,ASC,SOCIAL SERVICES,PRIVATE,Revenue,EXTERNAL RESIDENTIAL CARE,826400,130245330,14/12/2015,"3,759.76",LAETUS LODGE,SP0000600
WANDSWORTH COUNCIL,ASC,SOCIAL SERVICES,PRIVATE,Revenue,EXTERNAL RESIDENTIAL CARE,826401,130245330,14/12/2015,"6,193.48",LAETUS LODGE,SP0000600
WANDSWORTH COUNCIL,ASC,SOCIAL SERVICES,PRIVATE,Revenue,EXTERNAL RESIDENTIAL CARE,826402,130245330,14/12/2015,"3,669.12",LAETUS LODGE,SP0000600
WANDSWORTH COUNCIL,ASC,SOCIAL SERVICES,PRIVATE,Revenue,EXTERNAL RESIDENTIAL CARE,826403,130245330,14/12/2015,"3,759.76",LAETUS LODGE,SP0000600
WANDSWORTH COUNCIL,ASC,SOCIAL SERVICES,PRIVATE,Revenue,EXTERNAL RESIDENTIAL CARE,826404,130245330,14/12/2015,"5,238.16",LAETUS LODGE,SP0000600
WANDSWORTH COUNCIL,ASC,SOCIAL SERVICES,PRIVATE,Revenue,EXTERNAL RESIDENTIAL CARE,826405,130245330,14/12/2015,"4,558.48",LAETUS LODGE,SP0000600
WANDSWORTH COUNCIL,ASC,SOCIAL SERVICES,PRIVATE,Revenue,EXTERNAL RESIDENTIAL CARE,829735,130245330,17/12/2015,"3,454.38",MENCAP,SP0000604
WANDSWORTH COUNCIL,ASC,SOCIAL SERVICES,PRIVATE,Revenue,EXTERNAL RESIDENTIAL CARE,829736,130245330,17/12/2015,"3,454.38",MENCAP,SP0000604
WANDSWORTH COUNCIL,ASC,SOCIAL SERVICES,PRIVATE,Revenue,EXTERNAL RESIDENTIAL CARE,829737,130245330,17/12/2015,"2,391.83",MENCAP,SP0000604
WANDSWORTH COUNCIL,ASC,SOCIAL SERVICES,PRIVATE,Revenue,EXTERNAL RESIDENTIAL CARE,826411,130245330,14/12/2015,"7,800.30",HEALTHLINC INDIVIDUAL CARE,SP0000617
WANDSWORTH COUNCIL,ASC,SOCIAL SERVICES,PRIVATE,Revenue,EXTERNAL RESIDENTIAL CARE,829709,130245330,17/12/2015,"8,060.31",HEALTHLINC INDIVIDUAL CARE,SP0000617
WANDSWORTH COUNCIL,ASC,SOCIAL SERVICES,PRIVATE,Revenue,EXTERNAL RESIDENTIAL CARE,816854,130245330,02/12/2015,822.86,METROPOLITAN HOUSING TRUST,SP0000626
WANDSWORTH COUNCIL,ASC,SOCIAL SERVICES,PRIVATE,Revenue,EXTERNAL RESIDENTIAL CARE,818621,130245330,03/12/2015,"4,756.92",METROPOLITAN HOUSING TRUST,SP0000626
WANDSWORTH COUNCIL,ASC,SOCIAL SERVICES,PRIVATE,Revenue,EXTERNAL RESIDENTIAL CARE,818622,130245330,03/12/2015,"4,756.88",METROPOLITAN HOUSING TRUST,SP0000626
WANDSWORTH COUNCIL,ASC,SOCIAL SERVICES,PRIVATE,Revenue,EXTERNAL RESIDENTIAL CARE,818623,130245330,03/12/2015,"4,756.90",METROPOLITAN HOUSING TRUST,SP0000626
WANDSWORTH COUNCIL,ASC,SOCIAL SERVICES,PRIVATE,Revenue,EXTERNAL RESIDENTIAL CARE,818624,130245330,03/12/2015,"4,427.04",METROPOLITAN HOUSING TRUST,SP0000626
WANDSWORTH COUNCIL,ASC,SOCIAL SERVICES,PRIVATE,Revenue,EXTERNAL RESIDENTIAL CARE,818625,130245330,03/12/2015,"4,709.79",METROPOLITAN HOUSING TRUST,SP0000626
WANDSWORTH COUNCIL,ASC,SOCIAL SERVICES,PRIVATE,Revenue,EXTERNAL RESIDENTIAL CARE,818626,130245330,03/12/2015,"4,709.79",METROPOLITAN HOUSING TRUST,SP0000626
WANDSWORTH COUNCIL,ASC,SOCIAL SERVICES,PRIVATE,Revenue,EXTERNAL RESIDENTIAL CARE,818628,130245330,03/12/2015,"4,709.79",METROPOLITAN HOUSING TRUST,SP0000626
WANDSWORTH COUNCIL,ASC,SOCIAL SERVICES,PRIVATE,Revenue,EXTERNAL RESIDENTIAL CARE,819176,130245330,04/12/2015,"3,659.52",METROPOLITAN HOUSING TRUST,SP0000626
WANDSWORTH COUNCIL,ASC,SOCIAL SERVICES,PRIVATE,Revenue,EXTERNAL RESIDENTIAL CARE,819177,130245330,04/12/2015,"3,659.52",METROPOLITAN HOUSING TRUST,SP0000626
WANDSWORTH COUNCIL,ASC,SOCIAL SERVICES,PRIVATE,Revenue,EXTERNAL RESIDENTIAL CARE,819178,130245330,04/12/2015,"3,659.52",METROPOLITAN HOUSING TRUST,SP0000626
WANDSWORTH COUNCIL,ASC,SOCIAL SERVICES,PRIVATE,Revenue,EXTERNAL RESIDENTIAL CARE,819179,130245330,04/12/2015,"3,659.68",METROPOLITAN HOUSING TRUST,SP0000626
WANDSWORTH COUNCIL,ASC,SOCIAL SERVICES,PRIVATE,Revenue,EXTERNAL RESIDENTIAL CARE,819180,130245330,04/12/2015,"3,659.52",METROPOLITAN HOUSING TRUST,SP0000626
WANDSWORTH COUNCIL,ASC,SOCIAL SERVICES,PRIVATE,Revenue,EXTERNAL RESIDENTIAL CARE,819181,130245330,04/12/2015,"3,659.52",METROPOLITAN HOUSING TRUST,SP0000626
WANDSWORTH COUNCIL,ASC,SOCIAL SERVICES,PRIVATE,Revenue,EXTERNAL RESIDENTIAL CARE,819182,130245330,04/12/2015,"3,812.04",METROPOLITAN HOUSING TRUST,SP0000626
WANDSWORTH COUNCIL,ASC,SOCIAL SERVICES,PRIVATE,Revenue,EXTERNAL RESIDENTIAL CARE,819183,130245330,04/12/2015,"3,659.52",METROPOLITAN HOUSING TRUST,SP0000626
WANDSWORTH COUNCIL,ASC,SOCIAL SERVICES,PRIVATE,Revenue,EXTERNAL RESIDENTIAL CARE,829710,130245330,17/12/2015,"6,033.38",SUSSEX AUTISTIC COMMUNITY TRUST(CARE SER,SP0000652
WANDSWORTH COUNCIL,ASC,SOCIAL SERVICES,PRIVATE,Revenue,EXTERNAL RESIDENTIAL CARE,835858,130245330,23/12/2015,"2,395.60",LIVABILITY,SP0000669
WANDSWORTH COUNCIL,ASC,SOCIAL SERVICES,PRIVATE,Revenue,EXTERNAL RESIDENTIAL CARE,818620,130245330,03/12/2015,"11,475.88",LOVING CARE LTD,SP0000670
WANDSWORTH COUNCIL,ASC,SOCIAL SERVICES,PRIVATE,Revenue,EXTERNAL RESIDENTIAL CARE,822369,130245330,08/12/2015,"11,475.88",LOVING CARE LTD,SP0000670
WANDSWORTH COUNCIL,ASC,SOCIAL SERVICES,PRIVATE,Revenue,EXTERNAL RESIDENTIAL CARE,822370,130245330,08/12/2015,"11,475.84",LOVING CARE LTD,SP0000670
WANDSWORTH COUNCIL,ASC,SOCIAL SERVICES,PRIVATE,Revenue,EXTERNAL RESIDENTIAL CARE,822371,130245330,08/12/2015,"11,017.24",LOVING CARE LTD,SP0000670
WANDSWORTH COUNCIL,ASC,SOCIAL SERVICES,PRIVATE,Revenue,EXTERNAL RESIDENTIAL CARE,822372,130245330,08/12/2015,"11,170.12",LOVING CARE LTD,SP0000670
WANDSWORTH COUNCIL,ASC,SOCIAL SERVICES,PRIVATE,Revenue,EXTERNAL RESIDENTIAL CARE,838773,130245330,30/12/2015,"5,133.28",WHITMORE VALE HOUSING ASSOCIATION LTD,SP0000694
WANDSWORTH COUNCIL,ASC,SOCIAL SERVICES,PRIVATE,Revenue,EXTERNAL RESIDENTIAL CARE,828482,130245330,16/12/2015,"3,099.03",THE MANOR HOUSE,SP0000728
WANDSWORTH COUNCIL,ASC,SOCIAL SERVICES,PRIVATE,Revenue,EXTERNAL RESIDENTIAL CARE,828532,130245330,16/12/2015,"8,576.73",RALEIGH HOUSE LTD,SP0000760
WANDSWORTH COUNCIL,ASC,SOCIAL SERVICES,PRIVATE,Revenue,EXTERNAL RESIDENTIAL CARE,828533,130245330,16/12/2015,"7,763.33",RALEIGH HOUSE LTD,SP0000760
WANDSWORTH COUNCIL,ASC,SOCIAL SERVICES,PRIVATE,Revenue,EXTERNAL RESIDENTIAL CARE,825529,130245330,11/12/2015,"4,835.04",WHITE ROSE CARE,SP0000780
WANDSWORTH COUNCIL,ASC,SOCIAL SERVICES,PRIVATE,Revenue,EXTERNAL RESIDENTIAL CARE,825511,130245330,11/12/2015,"5,885.46",GLENCARE GROUP,SP0000791
WANDSWORTH COUNCIL,ASC,SOCIAL SERVICES,PRIVATE,Revenue,EXTERNAL RESIDENTIAL CARE,825525,130245330,11/12/2015,"3,806.64",GLENCARE GROUP,SP0000791
WANDSWORTH COUNCIL,ASC,SOCIAL SERVICES,PRIVATE,Revenue,EXTERNAL RESIDENTIAL CARE,825526,130245330,11/12/2015,"3,806.64",GLENCARE GROUP,SP0000791
WANDSWORTH COUNCIL,ASC,SOCIAL SERVICES,PRIVATE,Revenue,EXTERNAL RESIDENTIAL CARE,822367,130245330,08/12/2015,"3,151.20",PROSPECTS,SP0000800
WANDSWORTH COUNCIL,ASC,SOCIAL SERVICES,PRIVATE,Revenue,EXTERNAL RESIDENTIAL CARE,834950,130245330,22/12/2015,"3,151.20",PROSPECTS,SP0000800
WANDSWORTH COUNCIL,ASC,SOCIAL SERVICES,PRIVATE,Revenue,EXTERNAL RESIDENTIAL CARE,829889,130245330,17/12/2015,"6,312.44",WESSEX AUTISTIC SOCIETY,SP0000805
WANDSWORTH COUNCIL,ASC,SOCIAL SERVICES,PRIVATE,Revenue,EXTERNAL RESIDENTIAL CARE,829876,130245330,17/12/2015,"9,200.00",CHATSWORTH CARE,SP0000831
WANDSWORTH COUNCIL,ASC,SOCIAL SERVICES,PRIVATE,Revenue,EXTERNAL RESIDENTIAL CARE,829881,130245330,17/12/2015,"7,959.11",CHATSWORTH CARE,SP0000831
WANDSWORTH COUNCIL,ASC,SOCIAL SERVICES,PRIVATE,Revenue,EXTERNAL RESIDENTIAL CARE,816008,130245330,02/12/2015,"8,051.14",FIRCROFT,SP0000840
WANDSWORTH COUNCIL,ASC,SOCIAL SERVICES,PRIVATE,Revenue,EXTERNAL RESIDENTIAL CARE,829886,130245330,17/12/2015,"3,257.26",STALLCOMBE HOUSE,SP0000843
WANDSWORTH COUNCIL,ASC,SOCIAL SERVICES,PRIVATE,Revenue,EXTERNAL RESIDENTIAL CARE,829887,130245330,17/12/2015,"5,448.47",STALLCOMBE HOUSE,SP0000843
WANDSWORTH COUNCIL,ASC,SOCIAL SERVICES,PRIVATE,Revenue,EXTERNAL RESIDENTIAL CARE,836706,130245330,23/12/2015,"3,259.91",STALLCOMBE HOUSE,SP0000843
WANDSWORTH COUNCIL,ASC,SOCIAL SERVICES,PRIVATE,Revenue,EXTERNAL RESIDENTIAL CARE,826408,130245330,14/12/2015,"2,533.91",SCOPE,SP0000852
WANDSWORTH COUNCIL,ASC,SOCIAL SERVICES,PRIVATE,Revenue,EXTERNAL RESIDENTIAL CARE,831067,130245330,18/12/2015,"2,618.36",SCOPE,SP0000852
WANDSWORTH COUNCIL,ASC,SOCIAL SERVICES,PRIVATE,Revenue,EXTERNAL RESIDENTIAL CARE,831068,130245330,18/12/2015,"2,763.52",SCOPE,SP0000852
WANDSWORTH COUNCIL,ASC,SOCIAL SERVICES,PRIVATE,Revenue,EXTERNAL RESIDENTIAL CARE,828444,130245330,16/12/2015,"11,311.24",ASHCROFT CARE SERVICES,SP0000872
WANDSWORTH COUNCIL,ASC,SOCIAL SERVICES,PRIVATE,Revenue,EXTERNAL RESIDENTIAL CARE,836702,130245330,23/12/2015,"4,472.08",229 MITCHAM LANE LTD,SP0000884
WANDSWORTH COUNCIL,ASC,SOCIAL SERVICES,PRIVATE,Revenue,EXTERNAL RESIDENTIAL CARE,836704,130245330,23/12/2015,"5,559.01",229 MITCHAM LANE LTD,SP0000884
WANDSWORTH COUNCIL,ASC,SOCIAL SERVICES,PRIVATE,Revenue,EXTERNAL RESIDENTIAL CARE,836705,130245330,23/12/2015,"5,236.30",229 MITCHAM LANE LTD,SP0000884
WANDSWORTH COUNCIL,ASC,SOCIAL SERVICES,PRIVATE,Revenue,EXTERNAL RESIDENTIAL CARE,833509,130245330,21/12/2015,"3,957.32",THE LEO TRUST,SP0000908
WANDSWORTH COUNCIL,ASC,SOCIAL SERVICES,PRIVATE,Revenue,EXTERNAL RESIDENTIAL CARE,829712,130245330,17/12/2015,"7,271.56",CORICH COMMUNITY CARE LTD,SP0000915
WANDSWORTH COUNCIL,ASC,SOCIAL SERVICES,PRIVATE,Revenue,EXTERNAL RESIDENTIAL CARE,828501,130245330,16/12/2015,"2,930.00",MISSION CARE,SP0000958
WANDSWORTH COUNCIL,ASC,SOCIAL SERVICES,PRIVATE,Revenue,EXTERNAL RESIDENTIAL CARE,828459,130245330,16/12/2015,"4,027.12",DOWNING (CHERTSEY ROAD) LTD,SP0000959
WANDSWORTH COUNCIL,ASC,SOCIAL SERVICES,PRIVATE,Revenue,EXTERNAL RESIDENTIAL CARE,820921,130245330,07/12/2015,"6,432.68",RIDGEWOOD CARE SERVICES LTD,SP0000969
WANDSWORTH COUNCIL,ASC,SOCIAL SERVICES,PRIVATE,Revenue,EXTERNAL RESIDENTIAL CARE,825522,130245330,11/12/2015,"6,493.16",RIDGEWOOD CARE SERVICES LTD,SP0000969
WANDSWORTH COUNCIL,ASC,SOCIAL SERVICES,PRIVATE,Revenue,EXTERNAL RESIDENTIAL CARE,828439,130245330,16/12/2015,"3,538.76",RIDGEWOOD CARE SERVICES LTD,SP0000969
WANDSWORTH COUNCIL,ASC,SOCIAL SERVICES,PRIVATE,Revenue,EXTERNAL RESIDENTIAL CARE,828440,130245330,16/12/2015,"3,766.44",RIDGEWOOD CARE SERVICES LTD,SP0000969
WANDSWORTH COUNCIL,ASC,SOCIAL SERVICES,PRIVATE,Revenue,EXTERNAL RESIDENTIAL CARE,828441,130245330,16/12/2015,(24.00),RIDGEWOOD CARE SERVICES LTD,SP0000969
WANDSWORTH COUNCIL,ASC,SOCIAL SERVICES,PRIVATE,Revenue,EXTERNAL RESIDENTIAL CARE,818615,130245330,03/12/2015,"4,219.19",LEONARD CHESHIRE,SP0000976
WANDSWORTH COUNCIL,ASC,SOCIAL SERVICES,PRIVATE,Revenue,EXTERNAL RESIDENTIAL CARE,818616,130245330,03/12/2015,"6,196.41",LEONARD CHESHIRE,SP0000976
WANDSWORTH COUNCIL,ASC,SOCIAL SERVICES,PRIVATE,Revenue,EXTERNAL RESIDENTIAL CARE,835856,130245330,23/12/2015,"6,402.96",LEONARD CHESHIRE,SP0000976
WANDSWORTH COUNCIL,ASC,SOCIAL SERVICES,PRIVATE,Revenue,EXTERNAL RESIDENTIAL CARE,836697,130245330,23/12/2015,"4,208.70",LEONARD CHESHIRE,SP0000976
WANDSWORTH COUNCIL,ASC,SOCIAL SERVICES,PRIVATE,Revenue,EXTERNAL RESIDENTIAL CARE,829715,130245330,17/12/2015,"4,613.60",LOTUS CARE HOME LTD,SP0001006
WANDSWORTH COUNCIL,ASC,SOCIAL SERVICES,PRIVATE,Revenue,EXTERNAL RESIDENTIAL CARE,819186,130245330,04/12/2015,"5,365.29",M JINGREE T/A SUNLIGHT HOUSE,SP0001024
WANDSWORTH COUNCIL,ASC,SOCIAL SERVICES,PRIVATE,Revenue,EXTERNAL RESIDENTIAL CARE,835857,130245330,23/12/2015,"6,060.62",LIVING AMBITIONS LIMITED,SP0001039
WANDSWORTH COUNCIL,ASC,SOCIAL SERVICES,PRIVATE,Revenue,EXTERNAL RESIDENTIAL CARE,831028,130245330,18/12/2015,"2,743.88",THE HOME FARM TRUST LTD,SP0001048
WANDSWORTH COUNCIL,ASC,SOCIAL SERVICES,PRIVATE,Revenue,EXTERNAL RESIDENTIAL CARE,831029,130245330,18/12/2015,"2,457.40",THE HOME FARM TRUST LTD,SP0001048
WANDSWORTH COUNCIL,ASC,SOCIAL SERVICES,PRIVATE,Revenue,EXTERNAL RESIDENTIAL CARE,831030,130245330,18/12/2015,"3,708.20",THE HOME FARM TRUST LTD,SP0001048
WANDSWORTH COUNCIL,ASC,SOCIAL SERVICES,PRIVATE,Revenue,EXTERNAL RESIDENTIAL CARE,831031,130245330,18/12/2015,"2,507.40",THE HOME FARM TRUST LTD,SP0001048
WANDSWORTH COUNCIL,ASC,SOCIAL SERVICES,PRIVATE,Revenue,EXTERNAL RESIDENTIAL CARE,816856,130245330,02/12/2015,"4,332.78",ALLIED CARE (MHS) LTD,SP0001069
WANDSWORTH COUNCIL,ASC,SOCIAL SERVICES,PRIVATE,Revenue,EXTERNAL RESIDENTIAL CARE,816860,130245330,02/12/2015,"7,054.98",ALLIED CARE (MHS) LTD,SP0001069
WANDSWORTH COUNCIL,ASC,SOCIAL SERVICES,PRIVATE,Revenue,EXTERNAL RESIDENTIAL CARE,816861,130245330,02/12/2015,"5,000.30",ALLIED CARE (MHS) LTD,SP0001069
WANDSWORTH COUNCIL,ASC,SOCIAL SERVICES,PRIVATE,Revenue,EXTERNAL RESIDENTIAL CARE,816862,130245330,02/12/2015,"4,630.48",ALLIED CARE (MHS) LTD,SP0001069
WANDSWORTH COUNCIL,ASC,SOCIAL SERVICES,PRIVATE,Revenue,EXTERNAL RESIDENTIAL CARE,816863,130245330,02/12/2015,"4,630.48",ALLIED CARE (MHS) LTD,SP0001069
WANDSWORTH COUNCIL,ASC,SOCIAL SERVICES,PRIVATE,Revenue,EXTERNAL RESIDENTIAL CARE,825524,130245330,11/12/2015,"2,248.38",SAXON COURT,SP0001100
WANDSWORTH COUNCIL,ASC,SOCIAL SERVICES,PRIVATE,Revenue,EXTERNAL RESIDENTIAL CARE,828551,130245330,16/12/2015,"2,323.34",SAXON COURT,SP0001100
WANDSWORTH COUNCIL,ASC,SOCIAL SERVICES,PRIVATE,Revenue,EXTERNAL RESIDENTIAL CARE,818632,130245330,03/12/2015,"12,485.03",ILG LTD,SP0001103
WANDSWORTH COUNCIL,ASC,SOCIAL SERVICES,PRIVATE,Revenue,EXTERNAL RESIDENTIAL CARE,818633,130245330,03/12/2015,"12,082.28",ILG LTD,SP0001103
WANDSWORTH COUNCIL,ASC,SOCIAL SERVICES,PRIVATE,Revenue,EXTERNAL RESIDENTIAL CARE,828452,130245330,16/12/2015,"12,485.03",ILG LTD,SP0001103
WANDSWORTH COUNCIL,ASC,SOCIAL SERVICES,PRIVATE,Revenue,EXTERNAL RESIDENTIAL CARE,826406,130245330,14/12/2015,"7,395.80",TOTTERDOWN,SP0001113
WANDSWORTH COUNCIL,ASC,SOCIAL SERVICES,PRIVATE,Revenue,EXTERNAL RESIDENTIAL CARE,826407,130245330,14/12/2015,"3,671.24",TOTTERDOWN,SP0001113
WANDSWORTH COUNCIL,ASC,SOCIAL SERVICES,PRIVATE,Revenue,EXTERNAL RESIDENTIAL CARE,823197,130245330,09/12/2015,"6,743.56",LONDON CARE PARTNERSHIP LTD,SP0001138
WANDSWORTH COUNCIL,ASC,SOCIAL SERVICES,PRIVATE,Revenue,EXTERNAL RESIDENTIAL CARE,823198,130245330,09/12/2015,"8,550.01",LONDON CARE PARTNERSHIP LTD,SP0001138
WANDSWORTH COUNCIL,ASC,SOCIAL SERVICES,PRIVATE,Revenue,EXTERNAL RESIDENTIAL CARE,823199,130245330,09/12/2015,"7,928.57",LONDON CARE PARTNERSHIP LTD,SP0001138
WANDSWORTH COUNCIL,ASC,SOCIAL SERVICES,PRIVATE,Revenue,EXTERNAL RESIDENTIAL CARE,823200,130245330,09/12/2015,"8,035.72",LONDON CARE PARTNERSHIP LTD,SP0001138
WANDSWORTH COUNCIL,ASC,SOCIAL SERVICES,PRIVATE,Revenue,EXTERNAL RESIDENTIAL CARE,823201,130245330,09/12/2015,"8,035.72",LONDON CARE PARTNERSHIP LTD,SP0001138
WANDSWORTH COUNCIL,ASC,SOCIAL SERVICES,PRIVATE,Revenue,EXTERNAL RESIDENTIAL CARE,823202,130245330,09/12/2015,"8,250.01",LONDON CARE PARTNERSHIP LTD,SP0001138
WANDSWORTH COUNCIL,ASC,SOCIAL SERVICES,PRIVATE,Revenue,EXTERNAL RESIDENTIAL CARE,828484,130245330,16/12/2015,"6,966.66",LONDON CARE PARTNERSHIP LTD,SP0001138
WANDSWORTH COUNCIL,ASC,SOCIAL SERVICES,PRIVATE,Revenue,EXTERNAL RESIDENTIAL CARE,828485,130245330,16/12/2015,"8,834.99",LONDON CARE PARTNERSHIP LTD,SP0001138
WANDSWORTH COUNCIL,ASC,SOCIAL SERVICES,PRIVATE,Revenue,EXTERNAL RESIDENTIAL CARE,828486,130245330,16/12/2015,"8,192.86",LONDON CARE PARTNERSHIP LTD,SP0001138
WANDSWORTH COUNCIL,ASC,SOCIAL SERVICES,PRIVATE,Revenue,EXTERNAL RESIDENTIAL CARE,828487,130245330,16/12/2015,"8,303.57",LONDON CARE PARTNERSHIP LTD,SP0001138
WANDSWORTH COUNCIL,ASC,SOCIAL SERVICES,PRIVATE,Revenue,EXTERNAL RESIDENTIAL CARE,828488,130245330,16/12/2015,"8,303.56",LONDON CARE PARTNERSHIP LTD,SP0001138
WANDSWORTH COUNCIL,ASC,SOCIAL SERVICES,PRIVATE,Revenue,EXTERNAL RESIDENTIAL CARE,828489,130245330,16/12/2015,"8,524.99",LONDON CARE PARTNERSHIP LTD,SP0001138
WANDSWORTH COUNCIL,ASC,SOCIAL SERVICES,PRIVATE,Revenue,EXTERNAL RESIDENTIAL CARE,836681,130245330,23/12/2015,"7,194.44",CHOICE CARE GROUP,SP0001367
WANDSWORTH COUNCIL,ASC,SOCIAL SERVICES,PRIVATE,Revenue,EXTERNAL RESIDENTIAL CARE,822366,130245330,08/12/2015,"(5,308.94)",HOME FROM HOME CARE LIMITED,SP0001373
WANDSWORTH COUNCIL,ASC,SOCIAL SERVICES,PRIVATE,Revenue,EXTERNAL RESIDENTIAL CARE,825530,130245330,11/12/2015,"4,967.48",LARKFIELD HALL LTD T/A PEPENBURY,SP0001378
WANDSWORTH COUNCIL,ASC,SOCIAL SERVICES,PRIVATE,Revenue,EXTERNAL RESIDENTIAL CARE,825516,130245330,11/12/2015,"9,000.75",MIGHOUSE RESIDENTIAL CARE HOME LTD,SP0001402
WANDSWORTH COUNCIL,ASC,SOCIAL SERVICES,PRIVATE,Revenue,EXTERNAL RESIDENTIAL CARE,826410,130245330,14/12/2015,"7,200.60",MIGHOUSE RESIDENTIAL CARE HOME LTD,SP0001402
WANDSWORTH COUNCIL,ASC,SOCIAL SERVICES,PRIVATE,Revenue,EXTERNAL RESIDENTIAL CARE,837983,130245330,24/12/2015,"9,000.75",MIGHOUSE RESIDENTIAL CARE HOME LTD,SP0001402
WANDSWORTH COUNCIL,ASC,SOCIAL SERVICES,PRIVATE,Revenue,EXTERNAL RESIDENTIAL CARE,816012,130245330,02/12/2015,"8,784.64",ROOKERY HOVE PRIORY,SP0001498
WANDSWORTH COUNCIL,ASC,SOCIAL SERVICES,PRIVATE,Revenue,EXTERNAL RESIDENTIAL CARE,829738,130245330,17/12/2015,"7,523.88",MCCH SOCIETY LIMITED,SP0001531
WANDSWORTH COUNCIL,ASC,SOCIAL SERVICES,PRIVATE,Revenue,EXTERNAL RESIDENTIAL CARE,829739,130245330,17/12/2015,"7,523.88",MCCH SOCIETY LIMITED,SP0001531
WANDSWORTH COUNCIL,ASC,SOCIAL SERVICES,PRIVATE,Revenue,EXTERNAL RESIDENTIAL CARE,829744,130245330,17/12/2015,"4,383.39",NUTLEY HALL LTD,SP0001581
WANDSWORTH COUNCIL,ASC,SOCIAL SERVICES,PRIVATE,Revenue,EXTERNAL RESIDENTIAL CARE,828445,130245330,16/12/2015,"3,792.06",CRAEGMOOR OLD RECTORY BREDE PRIORY,SP0001621
WANDSWORTH COUNCIL,ASC,SOCIAL SERVICES,PRIVATE,Revenue,EXTERNAL RESIDENTIAL CARE,831035,130245330,18/12/2015,"7,928.57",CONDOVER COLLEGE LTD,SP0001641
WANDSWORTH COUNCIL,ASC,SOCIAL SERVICES,PRIVATE,Revenue,EXTERNAL RESIDENTIAL CARE,831036,130245330,18/12/2015,"8,192.86",CONDOVER COLLEGE LTD,SP0001641
WANDSWORTH COUNCIL,ASC,SOCIAL SERVICES,PRIVATE,Revenue,EXTERNAL RESIDENTIAL CARE,831037,130245330,18/12/2015,"8,192.86",CONDOVER COLLEGE LTD,SP0001641
WANDSWORTH COUNCIL,ASC,SOCIAL SERVICES,PRIVATE,Revenue,EXTERNAL RESIDENTIAL CARE,831038,130245330,18/12/2015,"3,480.00",CONDOVER COLLEGE LTD,SP0001641
WANDSWORTH COUNCIL,ASC,SOCIAL SERVICES,PRIVATE,Revenue,EXTERNAL RESIDENTIAL CARE,831597,130245330,18/12/2015,"1,740.00",CONDOVER COLLEGE LTD,SP0001641
WANDSWORTH COUNCIL,ASC,SOCIAL SERVICES,PRIVATE,Revenue,EXTERNAL RESIDENTIAL CARE,819172,130245330,04/12/2015,"34,361.41",ACH OF LONDON LLP,SP0001688
WANDSWORTH COUNCIL,ASC,SOCIAL SERVICES,PRIVATE,Revenue,EXTERNAL RESIDENTIAL CARE,826391,130245330,14/12/2015,"8,243.32",ACH OF LONDON LLP,SP0001688
WANDSWORTH COUNCIL,ASC,SOCIAL SERVICES,PRIVATE,Revenue,EXTERNAL RESIDENTIAL CARE,837978,130245330,24/12/2015,"12,833.78",ACH OF LONDON LLP,SP0001688
WANDSWORTH COUNCIL,ASC,SOCIAL SERVICES,PRIVATE,Revenue,EXTERNAL RESIDENTIAL CARE,839469,130245330,31/12/2015,"8,532.58",ACH OF LONDON LLP,SP0001688
WANDSWORTH COUNCIL,ASC,SOCIAL SERVICES,PRIVATE,Revenue,EXTERNAL RESIDENTIAL CARE,839470,130245330,31/12/2015,"5,095.91",ACH OF LONDON LLP,SP0001688
WANDSWORTH COUNCIL,ASC,SOCIAL SERVICES,PRIVATE,Revenue,EXTERNAL RESIDENTIAL CARE,829752,130245330,17/12/2015,"7,581.49",PATHWAY HEALTHCARE,SP0001779
WANDSWORTH COUNCIL,ASC,SOCIAL SERVICES,PRIVATE,Revenue,EXTERNAL RESIDENTIAL CARE,829753,130245330,17/12/2015,"7,134.21",PATHWAY HEALTHCARE,SP0001779
WANDSWORTH COUNCIL,ASC,SOCIAL SERVICES,PRIVATE,Revenue,EXTERNAL RESIDENTIAL CARE,837988,130245330,24/12/2015,"11,057.48",KISIMUL GROUP LTD,SP0002487
WANDSWORTH COUNCIL,ASC,SOCIAL SERVICES,PRIVATE,Revenue,EXTERNAL RESIDENTIAL CARE,816855,130245330,02/12/2015,"6,408.96",THE BRANDON TRUST,SP0005337
WANDSWORTH COUNCIL,ASC,SOCIAL SERVICES,PRIVATE,Revenue,EXTERNAL RESIDENTIAL CARE,837974,130245330,24/12/2015,"2,755.56",HASTINGS & BEXHILL MENCAP SOCIETY,SP0005380
WANDSWORTH COUNCIL,ASC,SOCIAL SERVICES,PRIVATE,Revenue,EXTERNAL RESIDENTIAL CARE,818617,130245330,03/12/2015,"3,207.55",INGLESIDE CHILDRENS HOME LTD,SP0005426
WANDSWORTH COUNCIL,ASC,SOCIAL SERVICES,PRIVATE,Revenue,EXTERNAL RESIDENTIAL CARE,818618,130245330,03/12/2015,"3,207.55",INGLESIDE CHILDRENS HOME LTD,SP0005426
WANDSWORTH COUNCIL,ASC,SOCIAL SERVICES,PRIVATE,Revenue,EXTERNAL RESIDENTIAL CARE,828550,130245330,16/12/2015,"3,314.48",INGLESIDE CHILDRENS HOME LTD,SP0005426
WANDSWORTH COUNCIL,ASC,SOCIAL SERVICES,PRIVATE,Revenue,EXTERNAL RESIDENTIAL CARE,825494,130245330,11/12/2015,"7,528.57",LD CARE,SP0005447
WANDSWORTH COUNCIL,ASC,SOCIAL SERVICES,PRIVATE,Revenue,EXTERNAL RESIDENTIAL CARE,825495,130245330,11/12/2015,"7,285.71",LD CARE,SP0005447
WANDSWORTH COUNCIL,ASC,SOCIAL SERVICES,PRIVATE,Revenue,EXTERNAL RESIDENTIAL CARE,825496,130245330,11/12/2015,"7,528.57",LD CARE,SP0005447
WANDSWORTH COUNCIL,ASC,SOCIAL SERVICES,PRIVATE,Revenue,EXTERNAL RESIDENTIAL CARE,825497,130245330,11/12/2015,"7,528.57",LD CARE,SP0005447
WANDSWORTH COUNCIL,ASC,SOCIAL SERVICES,PRIVATE,Revenue,EXTERNAL RESIDENTIAL CARE,825498,130245330,11/12/2015,"6,800.00",LD CARE,SP0005447
WANDSWORTH COUNCIL,ASC,SOCIAL SERVICES,PRIVATE,Revenue,EXTERNAL RESIDENTIAL CARE,825499,130245330,11/12/2015,"7,528.57",LD CARE,SP0005447
WANDSWORTH COUNCIL,ASC,SOCIAL SERVICES,PRIVATE,Revenue,EXTERNAL RESIDENTIAL CARE,825500,130245330,11/12/2015,"8,051.14",LD CARE,SP0005447
WANDSWORTH COUNCIL,ASC,SOCIAL SERVICES,PRIVATE,Revenue,EXTERNAL RESIDENTIAL CARE,825501,130245330,11/12/2015,"7,528.57",LD CARE,SP0005447
WANDSWORTH COUNCIL,ASC,SOCIAL SERVICES,PRIVATE,Revenue,EXTERNAL RESIDENTIAL CARE,825502,130245330,11/12/2015,"7,791.43",LD CARE,SP0005447
WANDSWORTH COUNCIL,ASC,SOCIAL SERVICES,PRIVATE,Revenue,EXTERNAL RESIDENTIAL CARE,825503,130245330,11/12/2015,"7,285.71",LD CARE,SP0005447
WANDSWORTH COUNCIL,ASC,SOCIAL SERVICES,PRIVATE,Revenue,EXTERNAL RESIDENTIAL CARE,825504,130245330,11/12/2015,"8,051.14",LD CARE,SP0005447
WANDSWORTH COUNCIL,ASC,SOCIAL SERVICES,PRIVATE,Revenue,EXTERNAL RESIDENTIAL CARE,825505,130245330,11/12/2015,"7,528.57",LD CARE,SP0005447
WANDSWORTH COUNCIL,ASC,SOCIAL SERVICES,PRIVATE,Revenue,EXTERNAL RESIDENTIAL CARE,825510,130245330,11/12/2015,"5,980.80",ENHAM,SP0005845
WANDSWORTH COUNCIL,ASC,SOCIAL SERVICES,PRIVATE,Revenue,EXTERNAL RESIDENTIAL CARE,836698,130245330,23/12/2015,"5,980.80",ENHAM,SP0005845
WANDSWORTH COUNCIL,ASC,SOCIAL SERVICES,PRIVATE,Revenue,EXTERNAL RESIDENTIAL CARE,819193,130245330,04/12/2015,"7,501.72",NORCREST (2000) HOME LTD,SP0008343
WANDSWORTH COUNCIL,ASC,SOCIAL SERVICES,PRIVATE,Revenue,EXTERNAL RESIDENTIAL CARE,819194,130245330,04/12/2015,"7,501.72",NORCREST (2000) HOME LTD,SP0008343
WANDSWORTH COUNCIL,ASC,SOCIAL SERVICES,PRIVATE,Revenue,EXTERNAL RESIDENTIAL CARE,831059,130245330,18/12/2015,"7,501.72",NORCREST (2000) HOME LTD,SP0008343
WANDSWORTH COUNCIL,ASC,SOCIAL SERVICES,PRIVATE,Revenue,EXTERNAL RESIDENTIAL CARE,831062,130245330,18/12/2015,"10,566.57",SEQUENCE CARE GROUP,SP0009709
WANDSWORTH COUNCIL,ASC,SOCIAL SERVICES,PRIVATE,Revenue,EXTERNAL RESIDENTIAL CARE,837984,130245330,24/12/2015,"4,566.84",ALLIED CARE LTD T/A ASHSTEAD HOUSE LTD,SP0009950
WANDSWORTH COUNCIL,ASC,SOCIAL SERVICES,PRIVATE,Revenue,EXTERNAL RESI RESPITE CARE,833503,130245340,21/12/2015,720.02,ST MARYS RESIDENTIAL HOME,SP0000215
WANDSWORTH COUNCIL,ASC,SOCIAL SERVICES,PRIVATE,Revenue,EXTERNAL RESI RESPITE CARE,820922,130245340,07/12/2015,"2,137.50",SEASHELL TRUST,SP0005836
WANDSWORTH COUNCIL,ASC,SOCIAL SERVICES,PRIVATE,Revenue,EXTERNAL RESI RESPITE CARE,825527,130245340,11/12/2015,"1,068.75",SEASHELL TRUST,SP0005836
WANDSWORTH COUNCIL,ASC,SOCIAL SERVICES,PRIVATE,Revenue,EXTERNAL RESI RESPITE CARE,835854,130245340,23/12/2015,"1,068.75",SEASHELL TRUST,SP0005836
WANDSWORTH COUNCIL,ASC,SOCIAL SERVICES,PRIVATE,Revenue,EXTERNAL RESI RESPITE CARE,822378,130245340,08/12/2015,800.00,CAMBIAN WHINFELL SCHOOL LTD,SP0008913
WANDSWORTH COUNCIL,ASC,SOCIAL SERVICES,PRIVATE,Revenue,ONE TO ONE CARE,822432,130246220,08/12/2015,822.96,RAINBOW MEDICAL SERVICES,SP0000037
WANDSWORTH COUNCIL,ASC,SOCIAL SERVICES,PRIVATE,Revenue,ONE TO ONE CARE,822433,130246220,08/12/2015,"2,133.60",RAINBOW MEDICAL SERVICES,SP0000037
WANDSWORTH COUNCIL,ASC,SOCIAL SERVICES,PRIVATE,Revenue,ONE TO ONE CARE,822435,130246220,08/12/2015,"1,470.00",RAINBOW MEDICAL SERVICES,SP0000037
WANDSWORTH COUNCIL,ASC,SOCIAL SERVICES,PRIVATE,Revenue,ONE TO ONE CARE,837076,130246220,23/12/2015,979.69,FRANCES TAYLOR FOUNDATION,SP0000142
WANDSWORTH COUNCIL,ASC,SOCIAL SERVICES,PRIVATE,Revenue,ONE TO ONE CARE,817025,130246220,02/12/2015,"1,619.00",ASIAN ELDERS SUPPORT SCHEME,SP0000190
WANDSWORTH COUNCIL,ASC,SOCIAL SERVICES,PRIVATE,Revenue,ONE TO ONE CARE,822426,130246220,08/12/2015,"1,538.05",ASIAN ELDERS SUPPORT SCHEME,SP0000190
WANDSWORTH COUNCIL,ASC,SOCIAL SERVICES,PRIVATE,Revenue,ONE TO ONE CARE,835091,130246220,22/12/2015,"1,619.00",ASIAN ELDERS SUPPORT SCHEME,SP0000190
WANDSWORTH COUNCIL,ASC,SOCIAL SERVICES,PRIVATE,Revenue,ONE TO ONE CARE,829869,130246220,17/12/2015,693.78,ST MARYS RESIDENTIAL HOME,SP0000215
WANDSWORTH COUNCIL,ASC,SOCIAL SERVICES,PRIVATE,Revenue,ONE TO ONE CARE,829870,130246220,17/12/2015,648.83,ST MARYS RESIDENTIAL HOME,SP0000215
WANDSWORTH COUNCIL,ASC,SOCIAL SERVICES,PRIVATE,Revenue,ONE TO ONE CARE,816013,130246220,02/12/2015,"1,963.85",RESIDENTIAL COMMUNITY CARE,SP0000315
WANDSWORTH COUNCIL,ASC,SOCIAL SERVICES,PRIVATE,Revenue,ONE TO ONE CARE,822374,130246220,08/12/2015,"1,963.85",RESIDENTIAL COMMUNITY CARE,SP0000315
WANDSWORTH COUNCIL,ASC,SOCIAL SERVICES,PRIVATE,Revenue,ONE TO ONE CARE,822375,130246220,08/12/2015,"1,900.50",RESIDENTIAL COMMUNITY CARE,SP0000315
WANDSWORTH COUNCIL,ASC,SOCIAL SERVICES,PRIVATE,Revenue,ONE TO ONE CARE,829834,130246220,17/12/2015,547.60,LIFEWAYS COMMUNITY CARE LTD,SP0000364
WANDSWORTH COUNCIL,ASC,SOCIAL SERVICES,PRIVATE,Revenue,ONE TO ONE CARE,818693,130246220,03/12/2015,"1,062.86",VOYAGE CARE LTD,SP0000366
WANDSWORTH COUNCIL,ASC,SOCIAL SERVICES,PRIVATE,Revenue,ONE TO ONE CARE,818694,130246220,03/12/2015,"1,028.57",VOYAGE CARE LTD,SP0000366
WANDSWORTH COUNCIL,ASC,SOCIAL SERVICES,PRIVATE,Revenue,ONE TO ONE CARE,828566,130246220,16/12/2015,"1,062.86",VOYAGE CARE LTD,SP0000366
WANDSWORTH COUNCIL,ASC,SOCIAL SERVICES,PRIVATE,Revenue,ONE TO ONE CARE,833873,130246220,21/12/2015,"1,350.52",MACINTYRE CARE,SP0000473
WANDSWORTH COUNCIL,ASC,SOCIAL SERVICES,PRIVATE,Revenue,ONE TO ONE CARE,833874,130246220,21/12/2015,"1,350.52",MACINTYRE CARE,SP0000473
WANDSWORTH COUNCIL,ASC,SOCIAL SERVICES,PRIVATE,Revenue,ONE TO ONE CARE,833875,130246220,21/12/2015,"1,910.04",MACINTYRE CARE,SP0000473
WANDSWORTH COUNCIL,ASC,SOCIAL SERVICES,PRIVATE,Revenue,ONE TO ONE CARE,833876,130246220,21/12/2015,"1,350.52",MACINTYRE CARE,SP0000473
WANDSWORTH COUNCIL,ASC,SOCIAL SERVICES,PRIVATE,Revenue,ONE TO ONE CARE,833877,130246220,21/12/2015,694.56,MACINTYRE CARE,SP0000473
WANDSWORTH COUNCIL,ASC,SOCIAL SERVICES,PRIVATE,Revenue,ONE TO ONE CARE,828568,130246220,16/12/2015,"1,164.40",THE COMMUNITY CARE COMPANY UK LTD,SP0000576
WANDSWORTH COUNCIL,ASC,SOCIAL SERVICES,PRIVATE,Revenue,ONE TO ONE CARE,828569,130246220,16/12/2015,"1,327.95",THE COMMUNITY CARE COMPANY UK LTD,SP0000576
WANDSWORTH COUNCIL,ASC,SOCIAL SERVICES,PRIVATE,Revenue,ONE TO ONE CARE,818684,130246220,03/12/2015,"2,718.72",METROPOLITAN HOUSING TRUST,SP0000626
WANDSWORTH COUNCIL,ASC,SOCIAL SERVICES,PRIVATE,Revenue,ONE TO ONE CARE,818687,130246220,03/12/2015,"2,459.52",METROPOLITAN HOUSING TRUST,SP0000626
WANDSWORTH COUNCIL,ASC,SOCIAL SERVICES,PRIVATE,Revenue,ONE TO ONE CARE,818688,130246220,03/12/2015,"2,039.04",METROPOLITAN HOUSING TRUST,SP0000626
WANDSWORTH COUNCIL,ASC,SOCIAL SERVICES,PRIVATE,Revenue,ONE TO ONE CARE,818690,130246220,03/12/2015,"1,698.24",METROPOLITAN HOUSING TRUST,SP0000626
WANDSWORTH COUNCIL,ASC,SOCIAL SERVICES,PRIVATE,Revenue,ONE TO ONE CARE,829713,130246220,17/12/2015,"1,600.44",CORICH COMMUNITY CARE LTD,SP0000915
WANDSWORTH COUNCIL,ASC,SOCIAL SERVICES,PRIVATE,Revenue,ONE TO ONE CARE,828567,130246220,16/12/2015,"2,884.77",DOWNING (CHERTSEY ROAD) LTD,SP0000959
WANDSWORTH COUNCIL,ASC,SOCIAL SERVICES,PRIVATE,Revenue,ONE TO ONE CARE,826585,130246220,14/12/2015,"1,597.44",TOTTERDOWN,SP0001113
WANDSWORTH COUNCIL,ASC,SOCIAL SERVICES,PRIVATE,Revenue,ONE TO ONE CARE,825591,130246220,11/12/2015,590.40,FRONTIER SUPPORT SERVICES LTD,SP0001132
WANDSWORTH COUNCIL,ASC,SOCIAL SERVICES,PRIVATE,Revenue,ONE TO ONE CARE,825592,130246220,11/12/2015,44.25,FRONTIER SUPPORT SERVICES LTD,SP0001132
WANDSWORTH COUNCIL,ASC,SOCIAL SERVICES,PRIVATE,Revenue,ONE TO ONE CARE,825597,130246220,11/12/2015,708.24,FRONTIER SUPPORT SERVICES LTD,SP0001132
WANDSWORTH COUNCIL,ASC,SOCIAL SERVICES,PRIVATE,Revenue,ONE TO ONE CARE,825610,130246220,11/12/2015,802.08,LARKFIELD HALL LTD T/A PEPENBURY,SP0001378
WANDSWORTH COUNCIL,ASC,SOCIAL SERVICES,PRIVATE,Revenue,ONE TO ONE CARE,828565,130246220,16/12/2015,"3,321.43",CRAEGMOOR OLD RECTORY BREDE PRIORY,SP0001621
WANDSWORTH COUNCIL,ASC,SOCIAL SERVICES,PRIVATE,Revenue,ONE TO ONE CARE,826583,130246220,14/12/2015,914.29,ACH OF LONDON LLP,SP0001688
WANDSWORTH COUNCIL,ASC,SOCIAL SERVICES,PRIVATE,Revenue,ONE TO ONE CARE,839497,130246220,31/12/2015,"2,018.10",ACH OF LONDON LLP,SP0001688
WANDSWORTH COUNCIL,ASC,SOCIAL SERVICES,PRIVATE,Revenue,ONE TO ONE CARE,817033,130246220,02/12/2015,324.00,THE BRANDON TRUST,SP0005337
WANDSWORTH COUNCIL,ASC,SOCIAL SERVICES,PRIVATE,Revenue,ONE TO ONE CARE,817064,130246220,02/12/2015,"1,987.20",THE BRANDON TRUST,SP0005337
WANDSWORTH COUNCIL,ASC,SOCIAL SERVICES,PRIVATE,Revenue,ONE TO ONE CARE,817065,130246220,02/12/2015,"1,312.00",THE BRANDON TRUST,SP0005337
WANDSWORTH COUNCIL,ASC,SOCIAL SERVICES,PRIVATE,Revenue,ONE TO ONE CARE,817068,130246220,02/12/2015,"2,450.88",THE BRANDON TRUST,SP0005337
WANDSWORTH COUNCIL,ASC,SOCIAL SERVICES,PRIVATE,Revenue,ONE TO ONE CARE,817112,130246220,02/12/2015,600.04,THE BRANDON TRUST,SP0005337
WANDSWORTH COUNCIL,ASC,SOCIAL SERVICES,PRIVATE,Revenue,ONE TO ONE CARE,817122,130246220,02/12/2015,331.20,THE BRANDON TRUST,SP0005337
WANDSWORTH COUNCIL,ASC,SOCIAL SERVICES,PRIVATE,Revenue,ONE TO ONE CARE,817124,130246220,02/12/2015,331.20,THE BRANDON TRUST,SP0005337
WANDSWORTH COUNCIL,ASC,SOCIAL SERVICES,VOL ASS,Revenue,SUPPORTED HOUSING PROGRAMME,830042,130248030,17/12/2015,833.06,HARINGEY ASSOCIATION FOR INDEPENDENT LIV,SP0000222
WANDSWORTH COUNCIL,ASC,SOCIAL SERVICES,VOL ASS,Revenue,SUPPORTED HOUSING PROGRAMME,830045,130248030,17/12/2015,"1,521.52",HARINGEY ASSOCIATION FOR INDEPENDENT LIV,SP0000222
WANDSWORTH COUNCIL,ASC,SOCIAL SERVICES,VOL ASS,Revenue,SUPPORTED HOUSING PROGRAMME,822428,130248030,08/12/2015,"5,543.72",NORWOOD SCHOOLS LTD,SP0000332
WANDSWORTH COUNCIL,ASC,SOCIAL SERVICES,VOL ASS,Revenue,SUPPORTED HOUSING PROGRAMME,822383,130248030,08/12/2015,"7,336.00",LIFEWAYS COMMUNITY CARE LTD,SP0000364
WANDSWORTH COUNCIL,ASC,SOCIAL SERVICES,VOL ASS,Revenue,SUPPORTED HOUSING PROGRAMME,829835,130248030,17/12/2015,"3,885.44",LIFEWAYS COMMUNITY CARE LTD,SP0000364
WANDSWORTH COUNCIL,ASC,SOCIAL SERVICES,VOL ASS,Revenue,SUPPORTED HOUSING PROGRAMME,829836,130248030,17/12/2015,"2,596.04",LIFEWAYS COMMUNITY CARE LTD,SP0000364
WANDSWORTH COUNCIL,ASC,SOCIAL SERVICES,VOL ASS,Revenue,SUPPORTED HOUSING PROGRAMME,829837,130248030,17/12/2015,"2,166.24",LIFEWAYS COMMUNITY CARE LTD,SP0000364
WANDSWORTH COUNCIL,ASC,SOCIAL SERVICES,VOL ASS,Revenue,SUPPORTED HOUSING PROGRAMME,829838,130248030,17/12/2015,"2,227.64",LIFEWAYS COMMUNITY CARE LTD,SP0000364
WANDSWORTH COUNCIL,ASC,SOCIAL SERVICES,VOL ASS,Revenue,SUPPORTED HOUSING PROGRAMME,829839,130248030,17/12/2015,"1,982.04",LIFEWAYS COMMUNITY CARE LTD,SP0000364
WANDSWORTH COUNCIL,ASC,SOCIAL SERVICES,VOL ASS,Revenue,SUPPORTED HOUSING PROGRAMME,829840,130248030,17/12/2015,"2,289.04",LIFEWAYS COMMUNITY CARE LTD,SP0000364
WANDSWORTH COUNCIL,ASC,SOCIAL SERVICES,VOL ASS,Revenue,SUPPORTED HOUSING PROGRAMME,829841,130248030,17/12/2015,"1,982.04",LIFEWAYS COMMUNITY CARE LTD,SP0000364
WANDSWORTH COUNCIL,ASC,SOCIAL SERVICES,VOL ASS,Revenue,SUPPORTED HOUSING PROGRAMME,829842,130248030,17/12/2015,"2,227.64",LIFEWAYS COMMUNITY CARE LTD,SP0000364
WANDSWORTH COUNCIL,ASC,SOCIAL SERVICES,VOL ASS,Revenue,SUPPORTED HOUSING PROGRAMME,829843,130248030,17/12/2015,"2,411.84",LIFEWAYS COMMUNITY CARE LTD,SP0000364
WANDSWORTH COUNCIL,ASC,SOCIAL SERVICES,VOL ASS,Revenue,SUPPORTED HOUSING PROGRAMME,829844,130248030,17/12/2015,"1,736.44",LIFEWAYS COMMUNITY CARE LTD,SP0000364
WANDSWORTH COUNCIL,ASC,SOCIAL SERVICES,VOL ASS,Revenue,SUPPORTED HOUSING PROGRAMME,829845,130248030,17/12/2015,"1,920.64",LIFEWAYS COMMUNITY CARE LTD,SP0000364
WANDSWORTH COUNCIL,ASC,SOCIAL SERVICES,VOL ASS,Revenue,SUPPORTED HOUSING PROGRAMME,829846,130248030,17/12/2015,"3,210.04",LIFEWAYS COMMUNITY CARE LTD,SP0000364
WANDSWORTH COUNCIL,ASC,SOCIAL SERVICES,VOL ASS,Revenue,SUPPORTED HOUSING PROGRAMME,829847,130248030,17/12/2015,"1,142.40",LIFEWAYS COMMUNITY CARE LTD,SP0000364
WANDSWORTH COUNCIL,ASC,SOCIAL SERVICES,VOL ASS,Revenue,SUPPORTED HOUSING PROGRAMME,829850,130248030,17/12/2015,"3,335.96",LIFEWAYS COMMUNITY CARE LTD,SP0000364
WANDSWORTH COUNCIL,ASC,SOCIAL SERVICES,VOL ASS,Revenue,SUPPORTED HOUSING PROGRAMME,829851,130248030,17/12/2015,"2,394.20",LIFEWAYS COMMUNITY CARE LTD,SP0000364
WANDSWORTH COUNCIL,ASC,SOCIAL SERVICES,VOL ASS,Revenue,SUPPORTED HOUSING PROGRAMME,829852,130248030,17/12/2015,"2,551.16",LIFEWAYS COMMUNITY CARE LTD,SP0000364
WANDSWORTH COUNCIL,ASC,SOCIAL SERVICES,VOL ASS,Revenue,SUPPORTED HOUSING PROGRAMME,829853,130248030,17/12/2015,"3,335.96",LIFEWAYS COMMUNITY CARE LTD,SP0000364
WANDSWORTH COUNCIL,ASC,SOCIAL SERVICES,VOL ASS,Revenue,SUPPORTED HOUSING PROGRAMME,829854,130248030,17/12/2015,"2,603.48",LIFEWAYS COMMUNITY CARE LTD,SP0000364
WANDSWORTH COUNCIL,ASC,SOCIAL SERVICES,VOL ASS,Revenue,SUPPORTED HOUSING PROGRAMME,829855,130248030,17/12/2015,"2,969.72",LIFEWAYS COMMUNITY CARE LTD,SP0000364
WANDSWORTH COUNCIL,ASC,SOCIAL SERVICES,VOL ASS,Revenue,SUPPORTED HOUSING PROGRAMME,829856,130248030,17/12/2015,"2,341.88",LIFEWAYS COMMUNITY CARE LTD,SP0000364
WANDSWORTH COUNCIL,ASC,SOCIAL SERVICES,VOL ASS,Revenue,SUPPORTED HOUSING PROGRAMME,829857,130248030,17/12/2015,"2,551.16",LIFEWAYS COMMUNITY CARE LTD,SP0000364
WANDSWORTH COUNCIL,ASC,SOCIAL SERVICES,VOL ASS,Revenue,SUPPORTED HOUSING PROGRAMME,829858,130248030,17/12/2015,"2,025.24",LIFEWAYS COMMUNITY CARE LTD,SP0000364
WANDSWORTH COUNCIL,ASC,SOCIAL SERVICES,VOL ASS,Revenue,SUPPORTED HOUSING PROGRAMME,829859,130248030,17/12/2015,"2,025.24",LIFEWAYS COMMUNITY CARE LTD,SP0000364
WANDSWORTH COUNCIL,ASC,SOCIAL SERVICES,VOL ASS,Revenue,SUPPORTED HOUSING PROGRAMME,829860,130248030,17/12/2015,"2,025.24",LIFEWAYS COMMUNITY CARE LTD,SP0000364
WANDSWORTH COUNCIL,ASC,SOCIAL SERVICES,VOL ASS,Revenue,SUPPORTED HOUSING PROGRAMME,829861,130248030,17/12/2015,"2,244.28",LIFEWAYS COMMUNITY CARE LTD,SP0000364
WANDSWORTH COUNCIL,ASC,SOCIAL SERVICES,VOL ASS,Revenue,SUPPORTED HOUSING PROGRAMME,829862,130248030,17/12/2015,"2,518.08",LIFEWAYS COMMUNITY CARE LTD,SP0000364
WANDSWORTH COUNCIL,ASC,SOCIAL SERVICES,VOL ASS,Revenue,SUPPORTED HOUSING PROGRAMME,829863,130248030,17/12/2015,"2,025.24",LIFEWAYS COMMUNITY CARE LTD,SP0000364
WANDSWORTH COUNCIL,ASC,SOCIAL SERVICES,VOL ASS,Revenue,SUPPORTED HOUSING PROGRAMME,829864,130248030,17/12/2015,"2,244.28",LIFEWAYS COMMUNITY CARE LTD,SP0000364
WANDSWORTH COUNCIL,ASC,SOCIAL SERVICES,VOL ASS,Revenue,SUPPORTED HOUSING PROGRAMME,829865,130248030,17/12/2015,"1,860.96",LIFEWAYS COMMUNITY CARE LTD,SP0000364
WANDSWORTH COUNCIL,ASC,SOCIAL SERVICES,VOL ASS,Revenue,SUPPORTED HOUSING PROGRAMME,829866,130248030,17/12/2015,"2,345.32",LIFEWAYS COMMUNITY CARE LTD,SP0000364
WANDSWORTH COUNCIL,ASC,SOCIAL SERVICES,VOL ASS,Revenue,SUPPORTED HOUSING PROGRAMME,829867,130248030,17/12/2015,"2,867.20",LIFEWAYS COMMUNITY CARE LTD,SP0000364
WANDSWORTH COUNCIL,ASC,SOCIAL SERVICES,VOL ASS,Revenue,SUPPORTED HOUSING PROGRAMME,829872,130248030,17/12/2015,"1,444.56",LIFEWAYS COMMUNITY CARE LTD,SP0000364
WANDSWORTH COUNCIL,ASC,SOCIAL SERVICES,VOL ASS,Revenue,SUPPORTED HOUSING PROGRAMME,828570,130248030,16/12/2015,"8,080.68",CHOICE SUPPORT,SP0000398
WANDSWORTH COUNCIL,ASC,SOCIAL SERVICES,VOL ASS,Revenue,SUPPORTED HOUSING PROGRAMME,829746,130248030,17/12/2015,"7,972.24",CHOICE SUPPORT,SP0000398
WANDSWORTH COUNCIL,ASC,SOCIAL SERVICES,VOL ASS,Revenue,SUPPORTED HOUSING PROGRAMME,828622,130248030,16/12/2015,"1,687.76",C M CARE LTD,SP0000455
WANDSWORTH COUNCIL,ASC,SOCIAL SERVICES,VOL ASS,Revenue,SUPPORTED HOUSING PROGRAMME,822108,130248030,08/12/2015,"2,570.08",ROTHERHAM METROPOLITAN BOROUGH COUNCIL,SP0000720
WANDSWORTH COUNCIL,ASC,SOCIAL SERVICES,VOL ASS,Revenue,SUPPORTED HOUSING PROGRAMME,822109,130248030,08/12/2015,"2,570.08",ROTHERHAM METROPOLITAN BOROUGH COUNCIL,SP0000720
WANDSWORTH COUNCIL,ASC,SOCIAL SERVICES,VOL ASS,Revenue,SUPPORTED HOUSING PROGRAMME,822110,130248030,08/12/2015,"2,570.08",ROTHERHAM METROPOLITAN BOROUGH COUNCIL,SP0000720
WANDSWORTH COUNCIL,ASC,SOCIAL SERVICES,VOL ASS,Revenue,SUPPORTED HOUSING PROGRAMME,825592,130248030,11/12/2015,"1,502.79",FRONTIER SUPPORT SERVICES LTD,SP0001132
WANDSWORTH COUNCIL,ASC,SOCIAL SERVICES,VOL ASS,Revenue,SUPPORTED HOUSING PROGRAMME,825593,130248030,11/12/2015,"2,509.20",FRONTIER SUPPORT SERVICES LTD,SP0001132
WANDSWORTH COUNCIL,ASC,SOCIAL SERVICES,VOL ASS,Revenue,SUPPORTED HOUSING PROGRAMME,825594,130248030,11/12/2015,"1,535.04",FRONTIER SUPPORT SERVICES LTD,SP0001132
WANDSWORTH COUNCIL,ASC,SOCIAL SERVICES,VOL ASS,Revenue,SUPPORTED HOUSING PROGRAMME,825595,130248030,11/12/2015,"1,097.56",FRONTIER SUPPORT SERVICES LTD,SP0001132
WANDSWORTH COUNCIL,ASC,SOCIAL SERVICES,VOL ASS,Revenue,SUPPORTED HOUSING PROGRAMME,825596,130248030,11/12/2015,"1,251.12",FRONTIER SUPPORT SERVICES LTD,SP0001132
WANDSWORTH COUNCIL,ASC,SOCIAL SERVICES,VOL ASS,Revenue,SUPPORTED HOUSING PROGRAMME,825597,130248030,11/12/2015,"1,097.60",FRONTIER SUPPORT SERVICES LTD,SP0001132
WANDSWORTH COUNCIL,ASC,SOCIAL SERVICES,VOL ASS,Revenue,SUPPORTED HOUSING PROGRAMME,825598,130248030,11/12/2015,"1,533.00",FRONTIER SUPPORT SERVICES LTD,SP0001132
WANDSWORTH COUNCIL,ASC,SOCIAL SERVICES,VOL ASS,Revenue,SUPPORTED HOUSING PROGRAMME,825599,130248030,11/12/2015,"1,864.88",FRONTIER SUPPORT SERVICES LTD,SP0001132
WANDSWORTH COUNCIL,ASC,SOCIAL SERVICES,VOL ASS,Revenue,SUPPORTED HOUSING PROGRAMME,825600,130248030,11/12/2015,"1,353.32",FRONTIER SUPPORT SERVICES LTD,SP0001132
WANDSWORTH COUNCIL,ASC,SOCIAL SERVICES,VOL ASS,Revenue,SUPPORTED HOUSING PROGRAMME,825603,130248030,11/12/2015,"15,870.84",FRONTIER SUPPORT SERVICES LTD,SP0001132
WANDSWORTH COUNCIL,ASC,SOCIAL SERVICES,VOL ASS,Revenue,SUPPORTED HOUSING PROGRAMME,825604,130248030,11/12/2015,"1,097.52",FRONTIER SUPPORT SERVICES LTD,SP0001132
WANDSWORTH COUNCIL,ASC,SOCIAL SERVICES,VOL ASS,Revenue,SUPPORTED HOUSING PROGRAMME,825605,130248030,11/12/2015,"1,685.92",FRONTIER SUPPORT SERVICES LTD,SP0001132
WANDSWORTH COUNCIL,ASC,SOCIAL SERVICES,VOL ASS,Revenue,SUPPORTED HOUSING PROGRAMME,825607,130248030,11/12/2015,657.80,FRONTIER SUPPORT SERVICES LTD,SP0001132
WANDSWORTH COUNCIL,ASC,SOCIAL SERVICES,VOL ASS,Revenue,SUPPORTED HOUSING PROGRAMME,825608,130248030,11/12/2015,"1,353.88",FRONTIER SUPPORT SERVICES LTD,SP0001132
WANDSWORTH COUNCIL,ASC,SOCIAL SERVICES,VOL ASS,Revenue,SUPPORTED HOUSING PROGRAMME,835862,130248030,23/12/2015,"9,036.32",PRECIOUS HOMES LTD,SP0001459
WANDSWORTH COUNCIL,ASC,SOCIAL SERVICES,VOL ASS,Revenue,SUPPORTED HOUSING PROGRAMME,835863,130248030,23/12/2015,"2,869.71",PRECIOUS HOMES LTD,SP0001459
WANDSWORTH COUNCIL,ASC,SOCIAL SERVICES,VOL ASS,Revenue,SUPPORTED HOUSING PROGRAMME,837080,130248030,23/12/2015,"5,362.48",INDEPENDENCE HOMES LTD,SP0004378
WANDSWORTH COUNCIL,ASC,SOCIAL SERVICES,VOL ASS,Revenue,SUPPORTED HOUSING PROGRAMME,837081,130248030,23/12/2015,"5,614.28",INDEPENDENCE HOMES LTD,SP0004378
WANDSWORTH COUNCIL,ASC,,VOL ASS,Revenue,SUPPORTED HOUSING PROGRAMME,787511,130248030,03/12/2015,"10,557.40",THE BRANDON TRUST,SP0005337
WANDSWORTH COUNCIL,ASC,,VOL ASS,Revenue,SUPPORTED HOUSING PROGRAMME,787512,130248030,22/12/2015,"10,557.40",THE BRANDON TRUST,SP0005337
WANDSWORTH COUNCIL,ASC,,VOL ASS,Revenue,SUPPORTED HOUSING PROGRAMME,787513,130248030,30/12/2015,"10,557.40",THE BRANDON TRUST,SP0005337
WANDSWORTH COUNCIL,ASC,SOCIAL SERVICES,VOL ASS,Revenue,SUPPORTED HOUSING PROGRAMME,817028,130248030,02/12/2015,"1,551.32",THE BRANDON TRUST,SP0005337
WANDSWORTH COUNCIL,ASC,SOCIAL SERVICES,VOL ASS,Revenue,SUPPORTED HOUSING PROGRAMME,817029,130248030,02/12/2015,537.44,THE BRANDON TRUST,SP0005337
WANDSWORTH COUNCIL,ASC,SOCIAL SERVICES,VOL ASS,Revenue,SUPPORTED HOUSING PROGRAMME,817030,130248030,02/12/2015,537.44,THE BRANDON TRUST,SP0005337
WANDSWORTH COUNCIL,ASC,SOCIAL SERVICES,VOL ASS,Revenue,SUPPORTED HOUSING PROGRAMME,817031,130248030,02/12/2015,"1,936.52",THE BRANDON TRUST,SP0005337
WANDSWORTH COUNCIL,ASC,SOCIAL SERVICES,VOL ASS,Revenue,SUPPORTED HOUSING PROGRAMME,817032,130248030,02/12/2015,"7,764.16",THE BRANDON TRUST,SP0005337
WANDSWORTH COUNCIL,ASC,SOCIAL SERVICES,VOL ASS,Revenue,SUPPORTED HOUSING PROGRAMME,817033,130248030,02/12/2015,"2,327.04",THE BRANDON TRUST,SP0005337
WANDSWORTH COUNCIL,ASC,SOCIAL SERVICES,VOL ASS,Revenue,SUPPORTED HOUSING PROGRAMME,817034,130248030,02/12/2015,"5,629.64",THE BRANDON TRUST,SP0005337
WANDSWORTH COUNCIL,ASC,SOCIAL SERVICES,VOL ASS,Revenue,SUPPORTED HOUSING PROGRAMME,817035,130248030,02/12/2015,"2,969.16",THE BRANDON TRUST,SP0005337
WANDSWORTH COUNCIL,ASC,SOCIAL SERVICES,VOL ASS,Revenue,SUPPORTED HOUSING PROGRAMME,817036,130248030,02/12/2015,"2,979.92",THE BRANDON TRUST,SP0005337
WANDSWORTH COUNCIL,ASC,SOCIAL SERVICES,VOL ASS,Revenue,SUPPORTED HOUSING PROGRAMME,817037,130248030,02/12/2015,"2,186.04",THE BRANDON TRUST,SP0005337
WANDSWORTH COUNCIL,ASC,SOCIAL SERVICES,VOL ASS,Revenue,SUPPORTED HOUSING PROGRAMME,817038,130248030,02/12/2015,"2,160.00",THE BRANDON TRUST,SP0005337
WANDSWORTH COUNCIL,ASC,SOCIAL SERVICES,VOL ASS,Revenue,SUPPORTED HOUSING PROGRAMME,817039,130248030,02/12/2015,"1,125.08",THE BRANDON TRUST,SP0005337
WANDSWORTH COUNCIL,ASC,SOCIAL SERVICES,VOL ASS,Revenue,SUPPORTED HOUSING PROGRAMME,817040,130248030,02/12/2015,"1,155.88",THE BRANDON TRUST,SP0005337
WANDSWORTH COUNCIL,ASC,SOCIAL SERVICES,VOL ASS,Revenue,SUPPORTED HOUSING PROGRAMME,817041,130248030,02/12/2015,"1,854.72",THE BRANDON TRUST,SP0005337
WANDSWORTH COUNCIL,ASC,SOCIAL SERVICES,VOL ASS,Revenue,SUPPORTED HOUSING PROGRAMME,817042,130248030,02/12/2015,"1,380.64",THE BRANDON TRUST,SP0005337
WANDSWORTH COUNCIL,ASC,SOCIAL SERVICES,VOL ASS,Revenue,SUPPORTED HOUSING PROGRAMME,817043,130248030,02/12/2015,"1,466.16",THE BRANDON TRUST,SP0005337
WANDSWORTH COUNCIL,ASC,SOCIAL SERVICES,VOL ASS,Revenue,SUPPORTED HOUSING PROGRAMME,817044,130248030,02/12/2015,"1,513.68",THE BRANDON TRUST,SP0005337
WANDSWORTH COUNCIL,ASC,SOCIAL SERVICES,VOL ASS,Revenue,SUPPORTED HOUSING PROGRAMME,817045,130248030,02/12/2015,"1,513.68",THE BRANDON TRUST,SP0005337
WANDSWORTH COUNCIL,ASC,SOCIAL SERVICES,VOL ASS,Revenue,SUPPORTED HOUSING PROGRAMME,817046,130248030,02/12/2015,"2,856.96",THE BRANDON TRUST,SP0005337
WANDSWORTH COUNCIL,ASC,SOCIAL SERVICES,VOL ASS,Revenue,SUPPORTED HOUSING PROGRAMME,817047,130248030,02/12/2015,"2,260.80",THE BRANDON TRUST,SP0005337
WANDSWORTH COUNCIL,ASC,SOCIAL SERVICES,VOL ASS,Revenue,SUPPORTED HOUSING PROGRAMME,817048,130248030,02/12/2015,"3,453.12",THE BRANDON TRUST,SP0005337
WANDSWORTH COUNCIL,ASC,SOCIAL SERVICES,VOL ASS,Revenue,SUPPORTED HOUSING PROGRAMME,817049,130248030,02/12/2015,"2,804.72",THE BRANDON TRUST,SP0005337
WANDSWORTH COUNCIL,ASC,SOCIAL SERVICES,VOL ASS,Revenue,SUPPORTED HOUSING PROGRAMME,817051,130248030,02/12/2015,"1,886.40",THE BRANDON TRUST,SP0005337
WANDSWORTH COUNCIL,ASC,SOCIAL SERVICES,VOL ASS,Revenue,SUPPORTED HOUSING PROGRAMME,817052,130248030,02/12/2015,"1,797.12",THE BRANDON TRUST,SP0005337
WANDSWORTH COUNCIL,ASC,SOCIAL SERVICES,VOL ASS,Revenue,SUPPORTED HOUSING PROGRAMME,817053,130248030,02/12/2015,"2,062.08",THE BRANDON TRUST,SP0005337
WANDSWORTH COUNCIL,ASC,SOCIAL SERVICES,VOL ASS,Revenue,SUPPORTED HOUSING PROGRAMME,817054,130248030,02/12/2015,"3,520.16",THE BRANDON TRUST,SP0005337
WANDSWORTH COUNCIL,ASC,SOCIAL SERVICES,VOL ASS,Revenue,SUPPORTED HOUSING PROGRAMME,817055,130248030,02/12/2015,"2,580.17",THE BRANDON TRUST,SP0005337
WANDSWORTH COUNCIL,ASC,SOCIAL SERVICES,VOL ASS,Revenue,SUPPORTED HOUSING PROGRAMME,817056,130248030,02/12/2015,"3,453.12",THE BRANDON TRUST,SP0005337
WANDSWORTH COUNCIL,ASC,SOCIAL SERVICES,VOL ASS,Revenue,SUPPORTED HOUSING PROGRAMME,817057,130248030,02/12/2015,"2,923.88",THE BRANDON TRUST,SP0005337
WANDSWORTH COUNCIL,ASC,SOCIAL SERVICES,VOL ASS,Revenue,SUPPORTED HOUSING PROGRAMME,817058,130248030,02/12/2015,"4,687.20",THE BRANDON TRUST,SP0005337
WANDSWORTH COUNCIL,ASC,SOCIAL SERVICES,VOL ASS,Revenue,SUPPORTED HOUSING PROGRAMME,817059,130248030,02/12/2015,"4,688.56",THE BRANDON TRUST,SP0005337
WANDSWORTH COUNCIL,ASC,SOCIAL SERVICES,VOL ASS,Revenue,SUPPORTED HOUSING PROGRAMME,817060,130248030,02/12/2015,"3,320.64",THE BRANDON TRUST,SP0005337
WANDSWORTH COUNCIL,ASC,SOCIAL SERVICES,VOL ASS,Revenue,SUPPORTED HOUSING PROGRAMME,817061,130248030,02/12/2015,"3,702.20",THE BRANDON TRUST,SP0005337
WANDSWORTH COUNCIL,ASC,SOCIAL SERVICES,VOL ASS,Revenue,SUPPORTED HOUSING PROGRAMME,817062,130248030,02/12/2015,"3,718.08",THE BRANDON TRUST,SP0005337
WANDSWORTH COUNCIL,ASC,SOCIAL SERVICES,VOL ASS,Revenue,SUPPORTED HOUSING PROGRAMME,817063,130248030,02/12/2015,"3,121.92",THE BRANDON TRUST,SP0005337
WANDSWORTH COUNCIL,ASC,SOCIAL SERVICES,VOL ASS,Revenue,SUPPORTED HOUSING PROGRAMME,817064,130248030,02/12/2015,"5,688.08",THE BRANDON TRUST,SP0005337
WANDSWORTH COUNCIL,ASC,SOCIAL SERVICES,VOL ASS,Revenue,SUPPORTED HOUSING PROGRAMME,817065,130248030,02/12/2015,"5,983.44",THE BRANDON TRUST,SP0005337
WANDSWORTH COUNCIL,ASC,SOCIAL SERVICES,VOL ASS,Revenue,SUPPORTED HOUSING PROGRAMME,817066,130248030,02/12/2015,"4,827.60",THE BRANDON TRUST,SP0005337
WANDSWORTH COUNCIL,ASC,SOCIAL SERVICES,VOL ASS,Revenue,SUPPORTED HOUSING PROGRAMME,817067,130248030,02/12/2015,"6,344.92",THE BRANDON TRUST,SP0005337
WANDSWORTH COUNCIL,ASC,SOCIAL SERVICES,VOL ASS,Revenue,SUPPORTED HOUSING PROGRAMME,817068,130248030,02/12/2015,"3,324.96",THE BRANDON TRUST,SP0005337
WANDSWORTH COUNCIL,ASC,SOCIAL SERVICES,VOL ASS,Revenue,SUPPORTED HOUSING PROGRAMME,817069,130248030,02/12/2015,"2,886.04",THE BRANDON TRUST,SP0005337
WANDSWORTH COUNCIL,ASC,SOCIAL SERVICES,VOL ASS,Revenue,SUPPORTED HOUSING PROGRAMME,817070,130248030,02/12/2015,"2,856.96",THE BRANDON TRUST,SP0005337
WANDSWORTH COUNCIL,ASC,SOCIAL SERVICES,VOL ASS,Revenue,SUPPORTED HOUSING PROGRAMME,817071,130248030,02/12/2015,"2,128.32",THE BRANDON TRUST,SP0005337
WANDSWORTH COUNCIL,ASC,SOCIAL SERVICES,VOL ASS,Revenue,SUPPORTED HOUSING PROGRAMME,817072,130248030,02/12/2015,"6,198.76",THE BRANDON TRUST,SP0005337
WANDSWORTH COUNCIL,ASC,SOCIAL SERVICES,VOL ASS,Revenue,SUPPORTED HOUSING PROGRAMME,817073,130248030,02/12/2015,"1,465.92",THE BRANDON TRUST,SP0005337
WANDSWORTH COUNCIL,ASC,SOCIAL SERVICES,VOL ASS,Revenue,SUPPORTED HOUSING PROGRAMME,817074,130248030,02/12/2015,"1,548.72",THE BRANDON TRUST,SP0005337
WANDSWORTH COUNCIL,ASC,SOCIAL SERVICES,VOL ASS,Revenue,SUPPORTED HOUSING PROGRAMME,817075,130248030,02/12/2015,"2,592.60",THE BRANDON TRUST,SP0005337
WANDSWORTH COUNCIL,ASC,SOCIAL SERVICES,VOL ASS,Revenue,SUPPORTED HOUSING PROGRAMME,817076,130248030,02/12/2015,"2,724.48",THE BRANDON TRUST,SP0005337
WANDSWORTH COUNCIL,ASC,SOCIAL SERVICES,VOL ASS,Revenue,SUPPORTED HOUSING PROGRAMME,817077,130248030,02/12/2015,"3,564.56",THE BRANDON TRUST,SP0005337
WANDSWORTH COUNCIL,ASC,SOCIAL SERVICES,VOL ASS,Revenue,SUPPORTED HOUSING PROGRAMME,817078,130248030,02/12/2015,"3,416.80",THE BRANDON TRUST,SP0005337
WANDSWORTH COUNCIL,ASC,SOCIAL SERVICES,VOL ASS,Revenue,SUPPORTED HOUSING PROGRAMME,817079,130248030,02/12/2015,"2,848.72",THE BRANDON TRUST,SP0005337
WANDSWORTH COUNCIL,ASC,SOCIAL SERVICES,VOL ASS,Revenue,SUPPORTED HOUSING PROGRAMME,817080,130248030,02/12/2015,"2,327.24",THE BRANDON TRUST,SP0005337
WANDSWORTH COUNCIL,ASC,SOCIAL SERVICES,VOL ASS,Revenue,SUPPORTED HOUSING PROGRAMME,817081,130248030,02/12/2015,"2,327.24",THE BRANDON TRUST,SP0005337
WANDSWORTH COUNCIL,ASC,SOCIAL SERVICES,VOL ASS,Revenue,SUPPORTED HOUSING PROGRAMME,817082,130248030,02/12/2015,"2,065.12",THE BRANDON TRUST,SP0005337
WANDSWORTH COUNCIL,ASC,SOCIAL SERVICES,VOL ASS,Revenue,SUPPORTED HOUSING PROGRAMME,817098,130248030,02/12/2015,591.04,THE BRANDON TRUST,SP0005337
WANDSWORTH COUNCIL,ASC,SOCIAL SERVICES,VOL ASS,Revenue,SUPPORTED HOUSING PROGRAMME,817100,130248030,02/12/2015,"1,034.48",THE BRANDON TRUST,SP0005337
WANDSWORTH COUNCIL,ASC,SOCIAL SERVICES,VOL ASS,Revenue,SUPPORTED HOUSING PROGRAMME,817117,130248030,02/12/2015,"1,625.36",THE BRANDON TRUST,SP0005337
WANDSWORTH COUNCIL,ASC,SOCIAL SERVICES,VOL ASS,Revenue,SUPPORTED HOUSING PROGRAMME,817118,130248030,02/12/2015,"1,674.84",THE BRANDON TRUST,SP0005337
WANDSWORTH COUNCIL,ASC,SOCIAL SERVICES,VOL ASS,Revenue,SUPPORTED HOUSING PROGRAMME,817119,130248030,02/12/2015,"5,630.08",THE BRANDON TRUST,SP0005337
WANDSWORTH COUNCIL,ASC,SOCIAL SERVICES,VOL ASS,Revenue,SUPPORTED HOUSING PROGRAMME,817122,130248030,02/12/2015,"2,459.52",THE BRANDON TRUST,SP0005337
WANDSWORTH COUNCIL,ASC,SOCIAL SERVICES,VOL ASS,Revenue,SUPPORTED HOUSING PROGRAMME,817123,130248030,02/12/2015,"3,883.68",THE BRANDON TRUST,SP0005337
WANDSWORTH COUNCIL,ASC,SOCIAL SERVICES,VOL ASS,Revenue,SUPPORTED HOUSING PROGRAMME,817124,130248030,02/12/2015,"2,618.48",THE BRANDON TRUST,SP0005337
WANDSWORTH COUNCIL,ASC,SOCIAL SERVICES,VOL ASS,Revenue,SUPPORTED HOUSING PROGRAMME,817125,130248030,02/12/2015,"1,730.88",THE BRANDON TRUST,SP0005337
WANDSWORTH COUNCIL,ASC,SOCIAL SERVICES,VOL ASS,Revenue,SUPPORTED HOUSING PROGRAMME,817132,130248030,02/12/2015,"1,465.92",THE BRANDON TRUST,SP0005337
WANDSWORTH COUNCIL,ASC,SOCIAL SERVICES,VOL ASS,Revenue,SUPPORTED HOUSING PROGRAMME,817133,130248030,02/12/2015,"2,606.80",THE BRANDON TRUST,SP0005337
WANDSWORTH COUNCIL,ASC,SOCIAL SERVICES,VOL ASS,Revenue,SUPPORTED HOUSING PROGRAMME,817135,130248030,02/12/2015,"2,631.48",THE BRANDON TRUST,SP0005337
WANDSWORTH COUNCIL,ASC,SOCIAL SERVICES,VOL ASS,Revenue,SUPPORTED HOUSING PROGRAMME,817138,130248030,02/12/2015,"4,177.52",THE BRANDON TRUST,SP0005337
WANDSWORTH COUNCIL,ASC,,VOL ASS,Revenue,SUPPORTED HOUSING PROGRAMME,817650,130248030,30/12/2015,"10,557.40",THE BRANDON TRUST,SP0005337
WANDSWORTH COUNCIL,ASC,SOCIAL SERVICES,VOL ASS,Revenue,SUPPORTED HOUSING PROGRAMME,819238,130248030,04/12/2015,"1,488.40",THE BRANDON TRUST,SP0005337
WANDSWORTH COUNCIL,ASC,SOCIAL SERVICES,VOL ASS,Revenue,SUPPORTED HOUSING PROGRAMME,837061,130248030,23/12/2015,"1,551.32",THE BRANDON TRUST,SP0005337
WANDSWORTH COUNCIL,ASC,SOCIAL SERVICES,VOL ASS,Revenue,SUPPORTED HOUSING PROGRAMME,821013,130248030,07/12/2015,"6,120.00",RELIABLE PERSONNEL LTD,SP0005657
WANDSWORTH COUNCIL,ASC,SOCIAL SERVICES,VOL ASS,Revenue,SUPPORTED HOUSING PROGRAMME,823223,130248030,09/12/2015,570.76,MCCALLUM CARE LTD CAREMARK (WANDSWORTH),SP0006036
WANDSWORTH COUNCIL,ASC,SOCIAL SERVICES,VOL ASS,Revenue,SUPPORTED HOUSING PROGRAMME,837063,130248030,23/12/2015,570.76,MCCALLUM CARE LTD CAREMARK (WANDSWORTH),SP0006036
WANDSWORTH COUNCIL,ASC,SOCIAL SERVICES,VOL ASS,Revenue,SUPPORTED HOUSING PROGRAMME,825590,130248030,11/12/2015,"4,400.00",MORTON GARDENS,SP0008639
WANDSWORTH COUNCIL,ASC,SOCIAL SERVICES,VOL ASS,Revenue,SUPPORTED HOUSING PROGRAMME,818701,130248030,03/12/2015,"3,010.00",LIVE TOO LIMITED,SP0010112
WANDSWORTH COUNCIL,ASC,SOCIAL SERVICES,VOL ASS,Revenue,SUPPORTED HOUSING PROGRAMME,818702,130248030,03/12/2015,"1,225.00",LIVE TOO LIMITED,SP0010112
WANDSWORTH COUNCIL,ASC,SOCIAL SERVICES,VOL ASS,Revenue,SUPPORTED HOUSING PROGRAMME,839499,130248030,31/12/2015,784.00,LIVE TOO LIMITED,SP0010112
WANDSWORTH COUNCIL,ASC,SOCIAL SERVICES,VOL ASS,Revenue,SUPPORTED HOUSING PROGRAMME,839509,130248030,31/12/2015,"1,800.00",LIVE TOO LIMITED,SP0010112
WANDSWORTH COUNCIL,ASC,SOCIAL SERVICES,VOL ASS,Revenue,SUPPORTED HOUSING PROGRAMME,839510,130248030,31/12/2015,"1,200.00",LIVE TOO LIMITED,SP0010112
WANDSWORTH COUNCIL,ASC,SOCIAL SERVICES,VOL ASS,Revenue,SUPPORTED HOUSING PROGRAMME,839511,130248030,31/12/2015,600.00,LIVE TOO LIMITED,SP0010112
WANDSWORTH COUNCIL,ASC,SOCIAL SERVICES,VOL ASS,Revenue,SUPPORTED HOUSING PROGRAMME,839512,130248030,31/12/2015,"11,760.00",LIVE TOO LIMITED,SP0010112
WANDSWORTH COUNCIL,ASC,SOCIAL SERVICES,VOL ASS,Revenue,SUPPORTED HOUSING PROGRAMME,839514,130248030,31/12/2015,"1,260.00",LIVE TOO LIMITED,SP0010112
WANDSWORTH COUNCIL,ASC,SOCIAL SERVICES,VOL ASS,Revenue,SUPPORTED HOUSING PROGRAMME,839515,130248030,31/12/2015,930.00,LIVE TOO LIMITED,SP0010112
WANDSWORTH COUNCIL,ASC,SOCIAL SERVICES,VOL ASS,Revenue,SUPPORTED HOUSING PROGRAMME,839516,130248030,31/12/2015,"1,320.00",LIVE TOO LIMITED,SP0010112
WANDSWORTH COUNCIL,ASC,SOCIAL SERVICES,VOL ASS,Revenue,SUPPORTED HOUSING PROGRAMME,839517,130248030,31/12/2015,990.00,LIVE TOO LIMITED,SP0010112
WANDSWORTH COUNCIL,ASC,SOCIAL SERVICES,VOL ASS,Revenue,SUPPORTED HOUSING PROGRAMME,839519,130248030,31/12/2015,720.00,LIVE TOO LIMITED,SP0010112
WANDSWORTH COUNCIL,ASC,SOCIAL SERVICES,VOL ASS,Revenue,SUPPORTED HOUSING PROGRAMME,839520,130248030,31/12/2015,"1,710.00",LIVE TOO LIMITED,SP0010112
WANDSWORTH COUNCIL,ASC,SOCIAL SERVICES,VOL ASS,Revenue,SUPPORTED HOUSING PROGRAMME,839523,130248030,31/12/2015,"2,160.00",LIVE TOO LIMITED,SP0010112
WANDSWORTH COUNCIL,ASC,SOCIAL SERVICES,VOL ASS,Revenue,SUPPORTED HOUSING PROGRAMME,839524,130248030,31/12/2015,"1,440.00",LIVE TOO LIMITED,SP0010112
WANDSWORTH COUNCIL,ASC,SOCIAL SERVICES,VOL ASS,Revenue,SUPPORTED HOUSING PROGRAMME,839525,130248030,31/12/2015,"1,350.00",LIVE TOO LIMITED,SP0010112
WANDSWORTH COUNCIL,ASC,SOCIAL SERVICES,VOL ASS,Revenue,SUPPORTED HOUSING PROGRAMME,839529,130248030,31/12/2015,"1,568.00",LIVE TOO LIMITED,SP0010112
WANDSWORTH COUNCIL,ASC,SOCIAL SERVICES,VOL ASS,Revenue,SUPPORTED HOUSING PROGRAMME,839530,130248030,31/12/2015,700.00,LIVE TOO LIMITED,SP0010112
WANDSWORTH COUNCIL,ASC,SOCIAL SERVICES,VOL ASS,Revenue,SUPPORTED HOUSING PROGRAMME,839531,130248030,31/12/2015,"2,400.00",LIVE TOO LIMITED,SP0010112
WANDSWORTH COUNCIL,ASC,SOCIAL SERVICES,VOL ASS,Revenue,SUPPORTED HOUSING PROGRAMME,823222,130248030,09/12/2015,"7,822.08",CURANS CARE LTD,SP0010190
WANDSWORTH COUNCIL,ASC,SOCIAL SERVICES,DIRECT,Revenue,DIRECT PAYMENTS,819252,130250380,04/12/2015,"2,875.44",VIBRANCE,SP0005489
WANDSWORTH COUNCIL,ASC,SOCIAL SERVICES,DIRECT,Revenue,DIRECT PAYMENTS,821454,130250380,07/12/2015,838.12,VIBRANCE,SP0005489
WANDSWORTH COUNCIL,ASC,SOCIAL SERVICES,DIRECT,Revenue,DIRECT PAYMENTS,821463,130250380,07/12/2015,760.24,VIBRANCE,SP0005489
WANDSWORTH COUNCIL,ASC,SOCIAL SERVICES,DIRECT,Revenue,DIRECT PAYMENTS,821468,130250380,07/12/2015,"1,065.52",VIBRANCE,SP0005489
WANDSWORTH COUNCIL,ASC,SOCIAL SERVICES,DIRECT,Revenue,DIRECT PAYMENTS,834303,130250380,21/12/2015,838.12,VIBRANCE,SP0005489
WANDSWORTH COUNCIL,ASC,SOCIAL SERVICES,DIRECT,Revenue,DIRECT PAYMENTS,834312,130250380,21/12/2015,760.24,VIBRANCE,SP0005489
WANDSWORTH COUNCIL,ASC,SOCIAL SERVICES,DIRECT,Revenue,DIRECT PAYMENTS,834317,130250380,21/12/2015,"1,065.52",VIBRANCE,SP0005489
WANDSWORTH COUNCIL,ASC,SOCIAL SERVICES,DIRECT,Revenue,DIRECT PAYMENTS,821150,130250380,07/12/2015,932.88,I DECIDE LTD (DIRECT PAYMENT),SP0006159
WANDSWORTH COUNCIL,ASC,SOCIAL SERVICES,DIRECT,Revenue,DIRECT PAYMENTS,821151,130250380,07/12/2015,"1,031.33",I DECIDE LTD (DIRECT PAYMENT),SP0006159
WANDSWORTH COUNCIL,ASC,SOCIAL SERVICES,DIRECT,Revenue,DIRECT PAYMENTS,821152,130250380,07/12/2015,"1,018.48",I DECIDE LTD (DIRECT PAYMENT),SP0006159
WANDSWORTH COUNCIL,ASC,SOCIAL SERVICES,DIRECT,Revenue,DIRECT PAYMENTS,821153,130250380,07/12/2015,"1,018.48",I DECIDE LTD (DIRECT PAYMENT),SP0006159
WANDSWORTH COUNCIL,ASC,SOCIAL SERVICES,DIRECT,Revenue,DIRECT PAYMENTS,821166,130250380,07/12/2015,"3,176.28",I DECIDE LTD (DIRECT PAYMENT),SP0006159
WANDSWORTH COUNCIL,ASC,SOCIAL SERVICES,DIRECT,Revenue,DIRECT PAYMENTS,821170,130250380,07/12/2015,"1,884.96",I DECIDE LTD (DIRECT PAYMENT),SP0006159
WANDSWORTH COUNCIL,ASC,SOCIAL SERVICES,DIRECT,Revenue,DIRECT PAYMENTS,821175,130250380,07/12/2015,"1,018.48",I DECIDE LTD (DIRECT PAYMENT),SP0006159
WANDSWORTH COUNCIL,ASC,SOCIAL SERVICES,DIRECT,Revenue,DIRECT PAYMENTS,821178,130250380,07/12/2015,741.20,I DECIDE LTD (DIRECT PAYMENT),SP0006159
WANDSWORTH COUNCIL,ASC,SOCIAL SERVICES,DIRECT,Revenue,DIRECT PAYMENTS,821179,130250380,07/12/2015,"3,156.28",I DECIDE LTD (DIRECT PAYMENT),SP0006159
WANDSWORTH COUNCIL,ASC,SOCIAL SERVICES,DIRECT,Revenue,DIRECT PAYMENTS,821184,130250380,07/12/2015,"3,226.39",I DECIDE LTD (DIRECT PAYMENT),SP0006159
WANDSWORTH COUNCIL,ASC,SOCIAL SERVICES,DIRECT,Revenue,DIRECT PAYMENTS,833997,130250380,21/12/2015,"3,176.28",I DECIDE LTD (DIRECT PAYMENT),SP0006159
WANDSWORTH COUNCIL,ASC,SOCIAL SERVICES,DIRECT,Revenue,DIRECT PAYMENTS,834001,130250380,21/12/2015,"1,884.96",I DECIDE LTD (DIRECT PAYMENT),SP0006159
WANDSWORTH COUNCIL,ASC,SOCIAL SERVICES,DIRECT,Revenue,DIRECT PAYMENTS,834006,130250380,21/12/2015,"1,018.48",I DECIDE LTD (DIRECT PAYMENT),SP0006159
WANDSWORTH COUNCIL,ASC,SOCIAL SERVICES,DIRECT,Revenue,DIRECT PAYMENTS,834009,130250380,21/12/2015,741.20,I DECIDE LTD (DIRECT PAYMENT),SP0006159
WANDSWORTH COUNCIL,ASC,SOCIAL SERVICES,DIRECT,Revenue,DIRECT PAYMENTS,834010,130250380,21/12/2015,"3,156.28",I DECIDE LTD (DIRECT PAYMENT),SP0006159
WANDSWORTH COUNCIL,ASC,SOCIAL SERVICES,DIRECT,Revenue,DIRECT PAYMENTS,834020,130250380,21/12/2015,"6,500.34",I DECIDE LTD (DIRECT PAYMENT),SP0006159
WANDSWORTH COUNCIL,ASC,SOCIAL SERVICES,DIRECT,Revenue,DIRECT PAYMENTS,834030,130250380,21/12/2015,"1,406.88",I DECIDE LTD (DIRECT PAYMENT),SP0006159
WANDSWORTH COUNCIL,ASC,SOCIAL SERVICES,DIRECT,Revenue,DIRECT PAYMENTS,835867,130250380,23/12/2015,"1,922.02",I DECIDE LTD (DIRECT PAYMENT),SP0006159
WANDSWORTH COUNCIL,ASC,SOCIAL SERVICES,CUSTOMER & CLIENT RECPTS - EXT,Revenue,CL CONT EXT RESIDEN S28A 100%,825509,130280680,17/12/2015,(505.20),ELEANOR NURSING & SOCIAL CARE,SP0000110
WANDSWORTH COUNCIL,ASC,SOCIAL SERVICES,CUSTOMER & CLIENT RECPTS - EXT,Revenue,CL CONT EXT RESIDEN S28A 100%,829725,130280680,17/12/2015,(548.92),ST MARYS RESIDENTIAL HOME,SP0000215
WANDSWORTH COUNCIL,ASC,SOCIAL SERVICES,CUSTOMER & CLIENT RECPTS - EXT,Revenue,CL CONT EXT RESIDEN S28A 100%,818629,130280680,03/12/2015,(528.42),VOYAGE CARE LTD,SP0000366
WANDSWORTH COUNCIL,ASC,SOCIAL SERVICES,CUSTOMER & CLIENT RECPTS - EXT,Revenue,CL CONT EXT RESIDEN S28A 100%,818646,130280680,03/12/2015,(356.28),VOYAGE CARE LTD,SP0000366
WANDSWORTH COUNCIL,ASC,SOCIAL SERVICES,CUSTOMER & CLIENT RECPTS - EXT,Revenue,CL CONT EXT RESIDEN S28A 100%,818647,130280680,03/12/2015,(344.78),VOYAGE CARE LTD,SP0000366
WANDSWORTH COUNCIL,ASC,SOCIAL SERVICES,CUSTOMER & CLIENT RECPTS - EXT,Revenue,CL CONT EXT RESIDEN S28A 100%,828450,130280680,16/12/2015,(546.05),VOYAGE CARE LTD,SP0000366
WANDSWORTH COUNCIL,ASC,SOCIAL SERVICES,CUSTOMER & CLIENT RECPTS - EXT,Revenue,CL CONT EXT RESIDEN S28A 100%,828457,130280680,16/12/2015,(356.28),VOYAGE CARE LTD,SP0000366
WANDSWORTH COUNCIL,ASC,SOCIAL SERVICES,CUSTOMER & CLIENT RECPTS - EXT,Revenue,CL CONT EXTERNAL RESIDENT S28A,825531,130280710,11/12/2015,(356.28),PARKGATE MANOR,SP0000521
WANDSWORTH COUNCIL,ASC,SOCIAL SERVICES,CUSTOMER & CLIENT RECPTS - EXT,Revenue,CL CONT EXTERNAL RESIDENT S28A,825532,130280710,11/12/2015,(344.78),PARKGATE MANOR,SP0000521
WANDSWORTH COUNCIL,ASC,SOCIAL SERVICES,CUSTOMER & CLIENT RECPTS - EXT,Revenue,CL CONT EXTERNAL RESIDENT S28A,837976,130280710,24/12/2015,(356.28),PARKGATE MANOR,SP0000521
WANDSWORTH COUNCIL,ASC,SOCIAL SERVICES,CUSTOMER & CLIENT RECPTS - EXT,Revenue,CL CONT EXTERNAL RESIDENT S28A,828474,130280710,16/12/2015,(559.33),THE COMMUNITY CARE COMPANY UK LTD,SP0000576
WANDSWORTH COUNCIL,ASC,SOCIAL SERVICES,CUSTOMER & CLIENT RECPTS - EXT,Revenue,CL CONT EXTERNAL RESIDENT S28A,818627,130280710,03/12/2015,(321.80),METROPOLITAN HOUSING TRUST,SP0000626
WANDSWORTH COUNCIL,ASC,SOCIAL SERVICES,CUSTOMER & CLIENT RECPTS - EXT,Revenue,CL CONT EXTERNAL RESIDENT S28A,819180,130280710,04/12/2015,(510.64),METROPOLITAN HOUSING TRUST,SP0000626
WANDSWORTH COUNCIL,ASC,SOCIAL SERVICES,CUSTOMER & CLIENT RECPTS - EXT,Revenue,CL CONT EXTERNAL RESIDENTIAL,830518,130280720,17/12/2015,(348.60),CMG HOMES LTD,SP0000075
WANDSWORTH COUNCIL,ASC,SOCIAL SERVICES,CUSTOMER & CLIENT RECPTS - EXT,Revenue,CL CONT EXTERNAL RESIDENTIAL,830519,130280720,17/12/2015,(348.60),CMG HOMES LTD,SP0000075
WANDSWORTH COUNCIL,ASC,SOCIAL SERVICES,CUSTOMER & CLIENT RECPTS - EXT,Revenue,CL CONT EXTERNAL RESIDENTIAL,833496,130280720,21/12/2015,"1,146.89",CMG HOMES LTD,SP0000075
WANDSWORTH COUNCIL,ASC,SOCIAL SERVICES,CUSTOMER & CLIENT RECPTS - EXT,Revenue,CL CONT EXTERNAL RESIDENTIAL,833498,130280720,21/12/2015,(321.80),CMG HOMES LTD,SP0000075
WANDSWORTH COUNCIL,ASC,SOCIAL SERVICES,CUSTOMER & CLIENT RECPTS - EXT,Revenue,CL CONT EXTERNAL RESIDENTIAL,834954,130280720,22/12/2015,(400.60),CMG HOMES LTD,SP0000075
WANDSWORTH COUNCIL,ASC,SOCIAL SERVICES,CUSTOMER & CLIENT RECPTS - EXT,Revenue,CL CONT EXTERNAL RESIDENTIAL,834955,130280720,22/12/2015,(343.80),CMG HOMES LTD,SP0000075
WANDSWORTH COUNCIL,ASC,SOCIAL SERVICES,CUSTOMER & CLIENT RECPTS - EXT,Revenue,CL CONT EXTERNAL RESIDENTIAL,834957,130280720,22/12/2015,(400.60),CMG HOMES LTD,SP0000075
WANDSWORTH COUNCIL,ASC,SOCIAL SERVICES,CUSTOMER & CLIENT RECPTS - EXT,Revenue,CL CONT EXTERNAL RESIDENTIAL,834958,130280720,22/12/2015,(132.00),CMG HOMES LTD,SP0000075
WANDSWORTH COUNCIL,ASC,SOCIAL SERVICES,CUSTOMER & CLIENT RECPTS - EXT,Revenue,CL CONT EXTERNAL RESIDENTIAL,834959,130280720,22/12/2015,(321.80),CMG HOMES LTD,SP0000075
WANDSWORTH COUNCIL,ASC,SOCIAL SERVICES,CUSTOMER & CLIENT RECPTS - EXT,Revenue,CL CONT EXTERNAL RESIDENTIAL,834960,130280720,22/12/2015,(321.80),CMG HOMES LTD,SP0000075
WANDSWORTH COUNCIL,ASC,SOCIAL SERVICES,CUSTOMER & CLIENT RECPTS - EXT,Revenue,CL CONT EXTERNAL RESIDENTIAL,834961,130280720,22/12/2015,(321.80),CMG HOMES LTD,SP0000075
WANDSWORTH COUNCIL,ASC,SOCIAL SERVICES,CUSTOMER & CLIENT RECPTS - EXT,Revenue,CL CONT EXTERNAL RESIDENTIAL,834962,130280720,22/12/2015,(505.20),CMG HOMES LTD,SP0000075
WANDSWORTH COUNCIL,ASC,SOCIAL SERVICES,CUSTOMER & CLIENT RECPTS - EXT,Revenue,CL CONT EXTERNAL RESIDENTIAL,834963,130280720,22/12/2015,(348.60),CMG HOMES LTD,SP0000075
WANDSWORTH COUNCIL,ASC,SOCIAL SERVICES,CUSTOMER & CLIENT RECPTS - EXT,Revenue,CL CONT EXTERNAL RESIDENTIAL,834964,130280720,22/12/2015,(275.83),CMG HOMES LTD,SP0000075
WANDSWORTH COUNCIL,ASC,SOCIAL SERVICES,CUSTOMER & CLIENT RECPTS - EXT,Revenue,CL CONT EXTERNAL RESIDENTIAL,829900,130280720,17/12/2015,(385.95),NATIONAL SOCIETY FOR EPILEPSY,SP0000120
WANDSWORTH COUNCIL,ASC,SOCIAL SERVICES,CUSTOMER & CLIENT RECPTS - EXT,Revenue,CL CONT EXTERNAL RESIDENTIAL,817381,130280720,02/12/2015,(321.80),SANCTUARY CARE LTD,SP0000121
WANDSWORTH COUNCIL,ASC,SOCIAL SERVICES,CUSTOMER & CLIENT RECPTS - EXT,Revenue,CL CONT EXTERNAL RESIDENTIAL,839733,130280720,31/12/2015,(321.80),SANCTUARY CARE LTD,SP0000121
WANDSWORTH COUNCIL,ASC,SOCIAL SERVICES,CUSTOMER & CLIENT RECPTS - EXT,Revenue,CL CONT EXTERNAL RESIDENTIAL,816868,130280720,02/12/2015,(380.63),IN CHORUS LTD,SP0000129
WANDSWORTH COUNCIL,ASC,SOCIAL SERVICES,CUSTOMER & CLIENT RECPTS - EXT,Revenue,CL CONT EXTERNAL RESIDENTIAL,833504,130280720,21/12/2015,(356.28),CENTRUST CARE HOMES LTD,SP0000141
WANDSWORTH COUNCIL,ASC,SOCIAL SERVICES,CUSTOMER & CLIENT RECPTS - EXT,Revenue,CL CONT EXTERNAL RESIDENTIAL,836687,130280720,23/12/2015,(373.77),FRANCES TAYLOR FOUNDATION,SP0000142
WANDSWORTH COUNCIL,ASC,SOCIAL SERVICES,CUSTOMER & CLIENT RECPTS - EXT,Revenue,CL CONT EXTERNAL RESIDENTIAL,836688,130280720,23/12/2015,(356.28),FRANCES TAYLOR FOUNDATION,SP0000142
WANDSWORTH COUNCIL,ASC,SOCIAL SERVICES,CUSTOMER & CLIENT RECPTS - EXT,Revenue,CL CONT EXTERNAL RESIDENTIAL,836689,130280720,23/12/2015,(443.52),FRANCES TAYLOR FOUNDATION,SP0000142
WANDSWORTH COUNCIL,ASC,SOCIAL SERVICES,CUSTOMER & CLIENT RECPTS - EXT,Revenue,CL CONT EXTERNAL RESIDENTIAL,836690,130280720,23/12/2015,(443.52),FRANCES TAYLOR FOUNDATION,SP0000142
WANDSWORTH COUNCIL,ASC,SOCIAL SERVICES,CUSTOMER & CLIENT RECPTS - EXT,Revenue,CL CONT EXTERNAL RESIDENTIAL,834951,130280720,22/12/2015,(321.80),RESIDENTIAL CARE SERVICES T/A FRANKLYN L,SP0000147
WANDSWORTH COUNCIL,ASC,SOCIAL SERVICES,CUSTOMER & CLIENT RECPTS - EXT,Revenue,CL CONT EXTERNAL RESIDENTIAL,826409,130280720,14/12/2015,(713.72),ST MARYS RESIDENTIAL HOME,SP0000215
WANDSWORTH COUNCIL,ASC,SOCIAL SERVICES,CUSTOMER & CLIENT RECPTS - EXT,Revenue,CL CONT EXTERNAL RESIDENTIAL,829716,130280720,17/12/2015,(269.70),ST MARYS RESIDENTIAL HOME,SP0000215
WANDSWORTH COUNCIL,ASC,SOCIAL SERVICES,CUSTOMER & CLIENT RECPTS - EXT,Revenue,CL CONT EXTERNAL RESIDENTIAL,829717,130280720,17/12/2015,(356.28),ST MARYS RESIDENTIAL HOME,SP0000215
WANDSWORTH COUNCIL,ASC,SOCIAL SERVICES,CUSTOMER & CLIENT RECPTS - EXT,Revenue,CL CONT EXTERNAL RESIDENTIAL,829718,130280720,17/12/2015,(585.90),ST MARYS RESIDENTIAL HOME,SP0000215
WANDSWORTH COUNCIL,ASC,SOCIAL SERVICES,CUSTOMER & CLIENT RECPTS - EXT,Revenue,CL CONT EXTERNAL RESIDENTIAL,829719,130280720,17/12/2015,(559.33),ST MARYS RESIDENTIAL HOME,SP0000215
WANDSWORTH COUNCIL,ASC,SOCIAL SERVICES,CUSTOMER & CLIENT RECPTS - EXT,Revenue,CL CONT EXTERNAL RESIDENTIAL,829720,130280720,17/12/2015,(373.77),ST MARYS RESIDENTIAL HOME,SP0000215
WANDSWORTH COUNCIL,ASC,SOCIAL SERVICES,CUSTOMER & CLIENT RECPTS - EXT,Revenue,CL CONT EXTERNAL RESIDENTIAL,829721,130280720,17/12/2015,(356.28),ST MARYS RESIDENTIAL HOME,SP0000215
WANDSWORTH COUNCIL,ASC,SOCIAL SERVICES,CUSTOMER & CLIENT RECPTS - EXT,Revenue,CL CONT EXTERNAL RESIDENTIAL,829722,130280720,17/12/2015,(356.28),ST MARYS RESIDENTIAL HOME,SP0000215
WANDSWORTH COUNCIL,ASC,SOCIAL SERVICES,CUSTOMER & CLIENT RECPTS - EXT,Revenue,CL CONT EXTERNAL RESIDENTIAL,829723,130280720,17/12/2015,(559.33),ST MARYS RESIDENTIAL HOME,SP0000215
WANDSWORTH COUNCIL,ASC,SOCIAL SERVICES,CUSTOMER & CLIENT RECPTS - EXT,Revenue,CL CONT EXTERNAL RESIDENTIAL,829726,130280720,17/12/2015,"(1,348.68)",ST MARYS RESIDENTIAL HOME,SP0000215
WANDSWORTH COUNCIL,ASC,SOCIAL SERVICES,CUSTOMER & CLIENT RECPTS - EXT,Revenue,CL CONT EXTERNAL RESIDENTIAL,829727,130280720,17/12/2015,(321.80),ST MARYS RESIDENTIAL HOME,SP0000215
WANDSWORTH COUNCIL,ASC,SOCIAL SERVICES,CUSTOMER & CLIENT RECPTS - EXT,Revenue,CL CONT EXTERNAL RESIDENTIAL,819187,130280720,04/12/2015,(321.80),SPRING LAKE,SP0000223
WANDSWORTH COUNCIL,ASC,SOCIAL SERVICES,CUSTOMER & CLIENT RECPTS - EXT,Revenue,CL CONT EXTERNAL RESIDENTIAL,819188,130280720,04/12/2015,(366.40),SPRING LAKE,SP0000223
WANDSWORTH COUNCIL,ASC,SOCIAL SERVICES,CUSTOMER & CLIENT RECPTS - EXT,Revenue,CL CONT EXTERNAL RESIDENTIAL,819189,130280720,04/12/2015,(321.80),SPRING LAKE,SP0000223
WANDSWORTH COUNCIL,ASC,SOCIAL SERVICES,CUSTOMER & CLIENT RECPTS - EXT,Revenue,CL CONT EXTERNAL RESIDENTIAL,819190,130280720,04/12/2015,(366.40),SPRING LAKE,SP0000223
WANDSWORTH COUNCIL,ASC,SOCIAL SERVICES,CUSTOMER & CLIENT RECPTS - EXT,Revenue,CL CONT EXTERNAL RESIDENTIAL,819191,130280720,04/12/2015,(321.80),SPRING LAKE,SP0000223
WANDSWORTH COUNCIL,ASC,SOCIAL SERVICES,CUSTOMER & CLIENT RECPTS - EXT,Revenue,CL CONT EXTERNAL RESIDENTIAL,819192,130280720,04/12/2015,(366.40),SPRING LAKE,SP0000223
WANDSWORTH COUNCIL,ASC,SOCIAL SERVICES,CUSTOMER & CLIENT RECPTS - EXT,Revenue,CL CONT EXTERNAL RESIDENTIAL,816859,130280720,02/12/2015,(638.48),CAMERON LODGE LIMITED,SP0000271
WANDSWORTH COUNCIL,ASC,SOCIAL SERVICES,CUSTOMER & CLIENT RECPTS - EXT,Revenue,CL CONT EXTERNAL RESIDENTIAL,837986,130280720,24/12/2015,(638.48),CAMERON LODGE LIMITED,SP0000271
WANDSWORTH COUNCIL,ASC,SOCIAL SERVICES,CUSTOMER & CLIENT RECPTS - EXT,Revenue,CL CONT EXTERNAL RESIDENTIAL,829745,130280720,17/12/2015,(392.58),BROOKDALE CARE,SP0000282
WANDSWORTH COUNCIL,ASC,SOCIAL SERVICES,CUSTOMER & CLIENT RECPTS - EXT,Revenue,CL CONT EXTERNAL RESIDENTIAL,836712,130280720,23/12/2015,(321.80),CRAEGMOOR FACILITIES CO LTD,SP0000306
WANDSWORTH COUNCIL,ASC,SOCIAL SERVICES,CUSTOMER & CLIENT RECPTS - EXT,Revenue,CL CONT EXTERNAL RESIDENTIAL,816013,130280720,02/12/2015,(356.28),RESIDENTIAL COMMUNITY CARE,SP0000315
WANDSWORTH COUNCIL,ASC,SOCIAL SERVICES,CUSTOMER & CLIENT RECPTS - EXT,Revenue,CL CONT EXTERNAL RESIDENTIAL,822374,130280720,08/12/2015,(356.28),RESIDENTIAL COMMUNITY CARE,SP0000315
WANDSWORTH COUNCIL,ASC,SOCIAL SERVICES,CUSTOMER & CLIENT RECPTS - EXT,Revenue,CL CONT EXTERNAL RESIDENTIAL,822375,130280720,08/12/2015,(344.78),RESIDENTIAL COMMUNITY CARE,SP0000315
WANDSWORTH COUNCIL,ASC,SOCIAL SERVICES,CUSTOMER & CLIENT RECPTS - EXT,Revenue,CL CONT EXTERNAL RESIDENTIAL,836707,130280720,23/12/2015,(321.80),DOLPHIN HOMES LTD,SP0000331
WANDSWORTH COUNCIL,ASC,SOCIAL SERVICES,CUSTOMER & CLIENT RECPTS - EXT,Revenue,CL CONT EXTERNAL RESIDENTIAL,836708,130280720,23/12/2015,(321.80),DOLPHIN HOMES LTD,SP0000331
WANDSWORTH COUNCIL,ASC,SOCIAL SERVICES,CUSTOMER & CLIENT RECPTS - EXT,Revenue,CL CONT EXTERNAL RESIDENTIAL,828442,130280720,16/12/2015,(321.80),NORWOOD SCHOOLS LTD,SP0000332
WANDSWORTH COUNCIL,ASC,SOCIAL SERVICES,CUSTOMER & CLIENT RECPTS - EXT,Revenue,CL CONT EXTERNAL RESIDENTIAL,828443,130280720,16/12/2015,(321.80),NORWOOD SCHOOLS LTD,SP0000332
WANDSWORTH COUNCIL,ASC,SOCIAL SERVICES,CUSTOMER & CLIENT RECPTS - EXT,Revenue,CL CONT EXTERNAL RESIDENTIAL,816867,130280720,02/12/2015,(541.28),HEYWOODS GRANGE LTD,SP0000361
WANDSWORTH COUNCIL,ASC,SOCIAL SERVICES,CUSTOMER & CLIENT RECPTS - EXT,Revenue,CL CONT EXTERNAL RESIDENTIAL,828535,130280720,16/12/2015,(559.33),HEYWOODS GRANGE LTD,SP0000361
WANDSWORTH COUNCIL,ASC,SOCIAL SERVICES,CUSTOMER & CLIENT RECPTS - EXT,Revenue,CL CONT EXTERNAL RESIDENTIAL,818630,130280720,03/12/2015,(570.76),VOYAGE CARE LTD,SP0000366
WANDSWORTH COUNCIL,ASC,SOCIAL SERVICES,CUSTOMER & CLIENT RECPTS - EXT,Revenue,CL CONT EXTERNAL RESIDENTIAL,818631,130280720,03/12/2015,(552.34),VOYAGE CARE LTD,SP0000366
WANDSWORTH COUNCIL,ASC,SOCIAL SERVICES,CUSTOMER & CLIENT RECPTS - EXT,Revenue,CL CONT EXTERNAL RESIDENTIAL,818634,130280720,03/12/2015,(400.60),VOYAGE CARE LTD,SP0000366
WANDSWORTH COUNCIL,ASC,SOCIAL SERVICES,CUSTOMER & CLIENT RECPTS - EXT,Revenue,CL CONT EXTERNAL RESIDENTIAL,818635,130280720,03/12/2015,(400.60),VOYAGE CARE LTD,SP0000366
WANDSWORTH COUNCIL,ASC,SOCIAL SERVICES,CUSTOMER & CLIENT RECPTS - EXT,Revenue,CL CONT EXTERNAL RESIDENTIAL,818636,130280720,03/12/2015,(400.60),VOYAGE CARE LTD,SP0000366
WANDSWORTH COUNCIL,ASC,SOCIAL SERVICES,CUSTOMER & CLIENT RECPTS - EXT,Revenue,CL CONT EXTERNAL RESIDENTIAL,818640,130280720,03/12/2015,(356.28),VOYAGE CARE LTD,SP0000366
WANDSWORTH COUNCIL,ASC,SOCIAL SERVICES,CUSTOMER & CLIENT RECPTS - EXT,Revenue,CL CONT EXTERNAL RESIDENTIAL,818641,130280720,03/12/2015,(344.78),VOYAGE CARE LTD,SP0000366
WANDSWORTH COUNCIL,ASC,SOCIAL SERVICES,CUSTOMER & CLIENT RECPTS - EXT,Revenue,CL CONT EXTERNAL RESIDENTIAL,818644,130280720,03/12/2015,(224.84),VOYAGE CARE LTD,SP0000366
WANDSWORTH COUNCIL,ASC,SOCIAL SERVICES,CUSTOMER & CLIENT RECPTS - EXT,Revenue,CL CONT EXTERNAL RESIDENTIAL,818645,130280720,03/12/2015,(217.58),VOYAGE CARE LTD,SP0000366
WANDSWORTH COUNCIL,ASC,SOCIAL SERVICES,CUSTOMER & CLIENT RECPTS - EXT,Revenue,CL CONT EXTERNAL RESIDENTIAL,818648,130280720,03/12/2015,(343.80),VOYAGE CARE LTD,SP0000366
WANDSWORTH COUNCIL,ASC,SOCIAL SERVICES,CUSTOMER & CLIENT RECPTS - EXT,Revenue,CL CONT EXTERNAL RESIDENTIAL,818649,130280720,03/12/2015,(348.60),VOYAGE CARE LTD,SP0000366
WANDSWORTH COUNCIL,ASC,SOCIAL SERVICES,CUSTOMER & CLIENT RECPTS - EXT,Revenue,CL CONT EXTERNAL RESIDENTIAL,818650,130280720,03/12/2015,(343.81),VOYAGE CARE LTD,SP0000366
WANDSWORTH COUNCIL,ASC,SOCIAL SERVICES,CUSTOMER & CLIENT RECPTS - EXT,Revenue,CL CONT EXTERNAL RESIDENTIAL,818651,130280720,03/12/2015,(348.60),VOYAGE CARE LTD,SP0000366
WANDSWORTH COUNCIL,ASC,SOCIAL SERVICES,CUSTOMER & CLIENT RECPTS - EXT,Revenue,CL CONT EXTERNAL RESIDENTIAL,818652,130280720,03/12/2015,(348.60),VOYAGE CARE LTD,SP0000366
WANDSWORTH COUNCIL,ASC,SOCIAL SERVICES,CUSTOMER & CLIENT RECPTS - EXT,Revenue,CL CONT EXTERNAL RESIDENTIAL,818653,130280720,03/12/2015,(343.80),VOYAGE CARE LTD,SP0000366
WANDSWORTH COUNCIL,ASC,SOCIAL SERVICES,CUSTOMER & CLIENT RECPTS - EXT,Revenue,CL CONT EXTERNAL RESIDENTIAL,828451,130280720,16/12/2015,(570.76),VOYAGE CARE LTD,SP0000366
WANDSWORTH COUNCIL,ASC,SOCIAL SERVICES,CUSTOMER & CLIENT RECPTS - EXT,Revenue,CL CONT EXTERNAL RESIDENTIAL,828454,130280720,16/12/2015,(356.28),VOYAGE CARE LTD,SP0000366
WANDSWORTH COUNCIL,ASC,SOCIAL SERVICES,CUSTOMER & CLIENT RECPTS - EXT,Revenue,CL CONT EXTERNAL RESIDENTIAL,828456,130280720,16/12/2015,(224.84),VOYAGE CARE LTD,SP0000366
WANDSWORTH COUNCIL,ASC,SOCIAL SERVICES,CUSTOMER & CLIENT RECPTS - EXT,Revenue,CL CONT EXTERNAL RESIDENTIAL,829879,130280720,17/12/2015,(356.28),ESSEX CARE CONSORTIUM,SP0000387
WANDSWORTH COUNCIL,ASC,SOCIAL SERVICES,CUSTOMER & CLIENT RECPTS - EXT,Revenue,CL CONT EXTERNAL RESIDENTIAL,838774,130280720,30/12/2015,(321.80),POTENSIAL LTD,SP0000395
WANDSWORTH COUNCIL,ASC,SOCIAL SERVICES,CUSTOMER & CLIENT RECPTS - EXT,Revenue,CL CONT EXTERNAL RESIDENTIAL,834952,130280720,22/12/2015,(321.80),KENILWORTH RESIDENTIAL HOME,SP0000432
WANDSWORTH COUNCIL,ASC,SOCIAL SERVICES,CUSTOMER & CLIENT RECPTS - EXT,Revenue,CL CONT EXTERNAL RESIDENTIAL,834953,130280720,22/12/2015,(505.20),KENILWORTH RESIDENTIAL HOME,SP0000432
WANDSWORTH COUNCIL,ASC,SOCIAL SERVICES,CUSTOMER & CLIENT RECPTS - EXT,Revenue,CL CONT EXTERNAL RESIDENTIAL,829882,130280720,17/12/2015,(366.40),THE WELL HOUSE,SP0000448
WANDSWORTH COUNCIL,ASC,SOCIAL SERVICES,CUSTOMER & CLIENT RECPTS - EXT,Revenue,CL CONT EXTERNAL RESIDENTIAL,829883,130280720,17/12/2015,(321.80),THE WELL HOUSE,SP0000448
WANDSWORTH COUNCIL,ASC,SOCIAL SERVICES,CUSTOMER & CLIENT RECPTS - EXT,Revenue,CL CONT EXTERNAL RESIDENTIAL,833475,130280720,21/12/2015,(321.80),MACINTYRE CARE,SP0000473
WANDSWORTH COUNCIL,ASC,SOCIAL SERVICES,CUSTOMER & CLIENT RECPTS - EXT,Revenue,CL CONT EXTERNAL RESIDENTIAL,833476,130280720,21/12/2015,(505.20),MACINTYRE CARE,SP0000473
WANDSWORTH COUNCIL,ASC,SOCIAL SERVICES,CUSTOMER & CLIENT RECPTS - EXT,Revenue,CL CONT EXTERNAL RESIDENTIAL,833478,130280720,21/12/2015,(321.80),MACINTYRE CARE,SP0000473
WANDSWORTH COUNCIL,ASC,SOCIAL SERVICES,CUSTOMER & CLIENT RECPTS - EXT,Revenue,CL CONT EXTERNAL RESIDENTIAL,833479,130280720,21/12/2015,(321.80),MACINTYRE CARE,SP0000473
WANDSWORTH COUNCIL,ASC,SOCIAL SERVICES,CUSTOMER & CLIENT RECPTS - EXT,Revenue,CL CONT EXTERNAL RESIDENTIAL,833480,130280720,21/12/2015,(366.40),MACINTYRE CARE,SP0000473
WANDSWORTH COUNCIL,ASC,SOCIAL SERVICES,CUSTOMER & CLIENT RECPTS - EXT,Revenue,CL CONT EXTERNAL RESIDENTIAL,833481,130280720,21/12/2015,(321.80),MACINTYRE CARE,SP0000473
WANDSWORTH COUNCIL,ASC,SOCIAL SERVICES,CUSTOMER & CLIENT RECPTS - EXT,Revenue,CL CONT EXTERNAL RESIDENTIAL,833482,130280720,21/12/2015,(321.80),MACINTYRE CARE,SP0000473
WANDSWORTH COUNCIL,ASC,SOCIAL SERVICES,CUSTOMER & CLIENT RECPTS - EXT,Revenue,CL CONT EXTERNAL RESIDENTIAL,833483,130280720,21/12/2015,(321.80),MACINTYRE CARE,SP0000473
WANDSWORTH COUNCIL,ASC,SOCIAL SERVICES,CUSTOMER & CLIENT RECPTS - EXT,Revenue,CL CONT EXTERNAL RESIDENTIAL,833484,130280720,21/12/2015,(400.60),MACINTYRE CARE,SP0000473
WANDSWORTH COUNCIL,ASC,SOCIAL SERVICES,CUSTOMER & CLIENT RECPTS - EXT,Revenue,CL CONT EXTERNAL RESIDENTIAL,833485,130280720,21/12/2015,(321.80),MACINTYRE CARE,SP0000473
WANDSWORTH COUNCIL,ASC,SOCIAL SERVICES,CUSTOMER & CLIENT RECPTS - EXT,Revenue,CL CONT EXTERNAL RESIDENTIAL,833486,130280720,21/12/2015,(505.20),MACINTYRE CARE,SP0000473
WANDSWORTH COUNCIL,ASC,SOCIAL SERVICES,CUSTOMER & CLIENT RECPTS - EXT,Revenue,CL CONT EXTERNAL RESIDENTIAL,833487,130280720,21/12/2015,(321.80),MACINTYRE CARE,SP0000473
WANDSWORTH COUNCIL,ASC,SOCIAL SERVICES,CUSTOMER & CLIENT RECPTS - EXT,Revenue,CL CONT EXTERNAL RESIDENTIAL,833488,130280720,21/12/2015,(505.20),MACINTYRE CARE,SP0000473
WANDSWORTH COUNCIL,ASC,SOCIAL SERVICES,CUSTOMER & CLIENT RECPTS - EXT,Revenue,CL CONT EXTERNAL RESIDENTIAL,833489,130280720,21/12/2015,(505.20),MACINTYRE CARE,SP0000473
WANDSWORTH COUNCIL,ASC,SOCIAL SERVICES,CUSTOMER & CLIENT RECPTS - EXT,Revenue,CL CONT EXTERNAL RESIDENTIAL,833490,130280720,21/12/2015,(505.20),MACINTYRE CARE,SP0000473
WANDSWORTH COUNCIL,ASC,SOCIAL SERVICES,CUSTOMER & CLIENT RECPTS - EXT,Revenue,CL CONT EXTERNAL RESIDENTIAL,833492,130280720,21/12/2015,(508.92),MACINTYRE CARE,SP0000473
WANDSWORTH COUNCIL,ASC,SOCIAL SERVICES,CUSTOMER & CLIENT RECPTS - EXT,Revenue,CL CONT EXTERNAL RESIDENTIAL,833493,130280720,21/12/2015,(321.80),MACINTYRE CARE,SP0000473
WANDSWORTH COUNCIL,ASC,SOCIAL SERVICES,CUSTOMER & CLIENT RECPTS - EXT,Revenue,CL CONT EXTERNAL RESIDENTIAL,835855,130280720,23/12/2015,(321.80),MACINTYRE CARE,SP0000473
WANDSWORTH COUNCIL,ASC,SOCIAL SERVICES,CUSTOMER & CLIENT RECPTS - EXT,Revenue,CL CONT EXTERNAL RESIDENTIAL,833500,130280720,21/12/2015,(433.55),SEEABILITY,SP0000572
WANDSWORTH COUNCIL,ASC,SOCIAL SERVICES,CUSTOMER & CLIENT RECPTS - EXT,Revenue,CL CONT EXTERNAL RESIDENTIAL,828477,130280720,16/12/2015,(559.33),THE COMMUNITY CARE COMPANY UK LTD,SP0000576
WANDSWORTH COUNCIL,ASC,SOCIAL SERVICES,CUSTOMER & CLIENT RECPTS - EXT,Revenue,CL CONT EXTERNAL RESIDENTIAL,828478,130280720,16/12/2015,(356.28),THE COMMUNITY CARE COMPANY UK LTD,SP0000576
WANDSWORTH COUNCIL,ASC,SOCIAL SERVICES,CUSTOMER & CLIENT RECPTS - EXT,Revenue,CL CONT EXTERNAL RESIDENTIAL,828479,130280720,16/12/2015,(356.28),THE COMMUNITY CARE COMPANY UK LTD,SP0000576
WANDSWORTH COUNCIL,ASC,SOCIAL SERVICES,CUSTOMER & CLIENT RECPTS - EXT,Revenue,CL CONT EXTERNAL RESIDENTIAL,828481,130280720,16/12/2015,(373.77),THE COMMUNITY CARE COMPANY UK LTD,SP0000576
WANDSWORTH COUNCIL,ASC,SOCIAL SERVICES,CUSTOMER & CLIENT RECPTS - EXT,Revenue,CL CONT EXTERNAL RESIDENTIAL,828483,130280720,16/12/2015,(356.28),THE COMMUNITY CARE COMPANY UK LTD,SP0000576
WANDSWORTH COUNCIL,ASC,SOCIAL SERVICES,CUSTOMER & CLIENT RECPTS - EXT,Revenue,CL CONT EXTERNAL RESIDENTIAL,836696,130280720,23/12/2015,"1,300.57",THE COMMUNITY CARE COMPANY UK LTD,SP0000576
WANDSWORTH COUNCIL,ASC,SOCIAL SERVICES,CUSTOMER & CLIENT RECPTS - EXT,Revenue,CL CONT EXTERNAL RESIDENTIAL,828544,130280720,16/12/2015,(356.28),BIRCC,SP0000584
WANDSWORTH COUNCIL,ASC,SOCIAL SERVICES,CUSTOMER & CLIENT RECPTS - EXT,Revenue,CL CONT EXTERNAL RESIDENTIAL,837987,130280720,24/12/2015,(321.80),EVERGREEN PARTNERSHIP,SP0000597
WANDSWORTH COUNCIL,ASC,SOCIAL SERVICES,CUSTOMER & CLIENT RECPTS - EXT,Revenue,CL CONT EXTERNAL RESIDENTIAL,826398,130280720,14/12/2015,(321.80),LAETUS LODGE,SP0000600
WANDSWORTH COUNCIL,ASC,SOCIAL SERVICES,CUSTOMER & CLIENT RECPTS - EXT,Revenue,CL CONT EXTERNAL RESIDENTIAL,826400,130280720,14/12/2015,(400.60),LAETUS LODGE,SP0000600
WANDSWORTH COUNCIL,ASC,SOCIAL SERVICES,CUSTOMER & CLIENT RECPTS - EXT,Revenue,CL CONT EXTERNAL RESIDENTIAL,826402,130280720,14/12/2015,(366.40),LAETUS LODGE,SP0000600
WANDSWORTH COUNCIL,ASC,SOCIAL SERVICES,CUSTOMER & CLIENT RECPTS - EXT,Revenue,CL CONT EXTERNAL RESIDENTIAL,826403,130280720,14/12/2015,(321.80),LAETUS LODGE,SP0000600
WANDSWORTH COUNCIL,ASC,SOCIAL SERVICES,CUSTOMER & CLIENT RECPTS - EXT,Revenue,CL CONT EXTERNAL RESIDENTIAL,826404,130280720,14/12/2015,(319.40),LAETUS LODGE,SP0000600
WANDSWORTH COUNCIL,ASC,SOCIAL SERVICES,CUSTOMER & CLIENT RECPTS - EXT,Revenue,CL CONT EXTERNAL RESIDENTIAL,829735,130280720,17/12/2015,(356.28),MENCAP,SP0000604
WANDSWORTH COUNCIL,ASC,SOCIAL SERVICES,CUSTOMER & CLIENT RECPTS - EXT,Revenue,CL CONT EXTERNAL RESIDENTIAL,829736,130280720,17/12/2015,(356.28),MENCAP,SP0000604
WANDSWORTH COUNCIL,ASC,SOCIAL SERVICES,CUSTOMER & CLIENT RECPTS - EXT,Revenue,CL CONT EXTERNAL RESIDENTIAL,829737,130280720,17/12/2015,(356.28),MENCAP,SP0000604
WANDSWORTH COUNCIL,ASC,SOCIAL SERVICES,CUSTOMER & CLIENT RECPTS - EXT,Revenue,CL CONT EXTERNAL RESIDENTIAL,818621,130280720,03/12/2015,(400.60),METROPOLITAN HOUSING TRUST,SP0000626
WANDSWORTH COUNCIL,ASC,SOCIAL SERVICES,CUSTOMER & CLIENT RECPTS - EXT,Revenue,CL CONT EXTERNAL RESIDENTIAL,818622,130280720,03/12/2015,(321.80),METROPOLITAN HOUSING TRUST,SP0000626
WANDSWORTH COUNCIL,ASC,SOCIAL SERVICES,CUSTOMER & CLIENT RECPTS - EXT,Revenue,CL CONT EXTERNAL RESIDENTIAL,818623,130280720,03/12/2015,(505.20),METROPOLITAN HOUSING TRUST,SP0000626
WANDSWORTH COUNCIL,ASC,SOCIAL SERVICES,CUSTOMER & CLIENT RECPTS - EXT,Revenue,CL CONT EXTERNAL RESIDENTIAL,818624,130280720,03/12/2015,(321.80),METROPOLITAN HOUSING TRUST,SP0000626
WANDSWORTH COUNCIL,ASC,SOCIAL SERVICES,CUSTOMER & CLIENT RECPTS - EXT,Revenue,CL CONT EXTERNAL RESIDENTIAL,818625,130280720,03/12/2015,(321.80),METROPOLITAN HOUSING TRUST,SP0000626
WANDSWORTH COUNCIL,ASC,SOCIAL SERVICES,CUSTOMER & CLIENT RECPTS - EXT,Revenue,CL CONT EXTERNAL RESIDENTIAL,818628,130280720,03/12/2015,(321.80),METROPOLITAN HOUSING TRUST,SP0000626
WANDSWORTH COUNCIL,ASC,SOCIAL SERVICES,CUSTOMER & CLIENT RECPTS - EXT,Revenue,CL CONT EXTERNAL RESIDENTIAL,819176,130280720,04/12/2015,(321.80),METROPOLITAN HOUSING TRUST,SP0000626
WANDSWORTH COUNCIL,ASC,SOCIAL SERVICES,CUSTOMER & CLIENT RECPTS - EXT,Revenue,CL CONT EXTERNAL RESIDENTIAL,819177,130280720,04/12/2015,(505.20),METROPOLITAN HOUSING TRUST,SP0000626
WANDSWORTH COUNCIL,ASC,SOCIAL SERVICES,CUSTOMER & CLIENT RECPTS - EXT,Revenue,CL CONT EXTERNAL RESIDENTIAL,819178,130280720,04/12/2015,(321.80),METROPOLITAN HOUSING TRUST,SP0000626
WANDSWORTH COUNCIL,ASC,SOCIAL SERVICES,CUSTOMER & CLIENT RECPTS - EXT,Revenue,CL CONT EXTERNAL RESIDENTIAL,819179,130280720,04/12/2015,(400.60),METROPOLITAN HOUSING TRUST,SP0000626
WANDSWORTH COUNCIL,ASC,SOCIAL SERVICES,CUSTOMER & CLIENT RECPTS - EXT,Revenue,CL CONT EXTERNAL RESIDENTIAL,819181,130280720,04/12/2015,(321.80),METROPOLITAN HOUSING TRUST,SP0000626
WANDSWORTH COUNCIL,ASC,SOCIAL SERVICES,CUSTOMER & CLIENT RECPTS - EXT,Revenue,CL CONT EXTERNAL RESIDENTIAL,829710,130280720,17/12/2015,(344.78),SUSSEX AUTISTIC COMMUNITY TRUST(CARE SER,SP0000652
WANDSWORTH COUNCIL,ASC,SOCIAL SERVICES,CUSTOMER & CLIENT RECPTS - EXT,Revenue,CL CONT EXTERNAL RESIDENTIAL,835858,130280720,23/12/2015,(321.80),LIVABILITY,SP0000669
WANDSWORTH COUNCIL,ASC,SOCIAL SERVICES,CUSTOMER & CLIENT RECPTS - EXT,Revenue,CL CONT EXTERNAL RESIDENTIAL,818620,130280720,03/12/2015,(321.80),LOVING CARE LTD,SP0000670
WANDSWORTH COUNCIL,ASC,SOCIAL SERVICES,CUSTOMER & CLIENT RECPTS - EXT,Revenue,CL CONT EXTERNAL RESIDENTIAL,822369,130280720,08/12/2015,(321.80),LOVING CARE LTD,SP0000670
WANDSWORTH COUNCIL,ASC,SOCIAL SERVICES,CUSTOMER & CLIENT RECPTS - EXT,Revenue,CL CONT EXTERNAL RESIDENTIAL,822370,130280720,08/12/2015,(321.80),LOVING CARE LTD,SP0000670
WANDSWORTH COUNCIL,ASC,SOCIAL SERVICES,CUSTOMER & CLIENT RECPTS - EXT,Revenue,CL CONT EXTERNAL RESIDENTIAL,822371,130280720,08/12/2015,(339.36),LOVING CARE LTD,SP0000670
WANDSWORTH COUNCIL,ASC,SOCIAL SERVICES,CUSTOMER & CLIENT RECPTS - EXT,Revenue,CL CONT EXTERNAL RESIDENTIAL,822372,130280720,08/12/2015,(321.80),LOVING CARE LTD,SP0000670
WANDSWORTH COUNCIL,ASC,SOCIAL SERVICES,CUSTOMER & CLIENT RECPTS - EXT,Revenue,CL CONT EXTERNAL RESIDENTIAL,838773,130280720,30/12/2015,(505.20),WHITMORE VALE HOUSING ASSOCIATION LTD,SP0000694
WANDSWORTH COUNCIL,ASC,SOCIAL SERVICES,CUSTOMER & CLIENT RECPTS - EXT,Revenue,CL CONT EXTERNAL RESIDENTIAL,828482,130280720,16/12/2015,(356.28),THE MANOR HOUSE,SP0000728
WANDSWORTH COUNCIL,ASC,SOCIAL SERVICES,CUSTOMER & CLIENT RECPTS - EXT,Revenue,CL CONT EXTERNAL RESIDENTIAL,828532,130280720,16/12/2015,(559.33),RALEIGH HOUSE LTD,SP0000760
WANDSWORTH COUNCIL,ASC,SOCIAL SERVICES,CUSTOMER & CLIENT RECPTS - EXT,Revenue,CL CONT EXTERNAL RESIDENTIAL,828533,130280720,16/12/2015,(559.33),RALEIGH HOUSE LTD,SP0000760
WANDSWORTH COUNCIL,ASC,SOCIAL SERVICES,CUSTOMER & CLIENT RECPTS - EXT,Revenue,CL CONT EXTERNAL RESIDENTIAL,825529,130280720,11/12/2015,(348.60),WHITE ROSE CARE,SP0000780
WANDSWORTH COUNCIL,ASC,SOCIAL SERVICES,CUSTOMER & CLIENT RECPTS - EXT,Revenue,CL CONT EXTERNAL RESIDENTIAL,825511,130280720,11/12/2015,(488.78),GLENCARE GROUP,SP0000791
WANDSWORTH COUNCIL,ASC,SOCIAL SERVICES,CUSTOMER & CLIENT RECPTS - EXT,Revenue,CL CONT EXTERNAL RESIDENTIAL,825525,130280720,11/12/2015,(321.80),GLENCARE GROUP,SP0000791
WANDSWORTH COUNCIL,ASC,SOCIAL SERVICES,CUSTOMER & CLIENT RECPTS - EXT,Revenue,CL CONT EXTERNAL RESIDENTIAL,825526,130280720,11/12/2015,(321.80),GLENCARE GROUP,SP0000791
WANDSWORTH COUNCIL,ASC,SOCIAL SERVICES,CUSTOMER & CLIENT RECPTS - EXT,Revenue,CL CONT EXTERNAL RESIDENTIAL,822367,130280720,08/12/2015,(321.80),PROSPECTS,SP0000800
WANDSWORTH COUNCIL,ASC,SOCIAL SERVICES,CUSTOMER & CLIENT RECPTS - EXT,Revenue,CL CONT EXTERNAL RESIDENTIAL,834950,130280720,22/12/2015,(321.80),PROSPECTS,SP0000800
WANDSWORTH COUNCIL,ASC,SOCIAL SERVICES,CUSTOMER & CLIENT RECPTS - EXT,Revenue,CL CONT EXTERNAL RESIDENTIAL,829889,130280720,17/12/2015,(356.28),WESSEX AUTISTIC SOCIETY,SP0000805
WANDSWORTH COUNCIL,ASC,SOCIAL SERVICES,CUSTOMER & CLIENT RECPTS - EXT,Revenue,CL CONT EXTERNAL RESIDENTIAL,829876,130280720,17/12/2015,(400.60),CHATSWORTH CARE,SP0000831
WANDSWORTH COUNCIL,ASC,SOCIAL SERVICES,CUSTOMER & CLIENT RECPTS - EXT,Revenue,CL CONT EXTERNAL RESIDENTIAL,829881,130280720,17/12/2015,(405.65),CHATSWORTH CARE,SP0000831
WANDSWORTH COUNCIL,ASC,SOCIAL SERVICES,CUSTOMER & CLIENT RECPTS - EXT,Revenue,CL CONT EXTERNAL RESIDENTIAL,816008,130280720,02/12/2015,(368.50),FIRCROFT,SP0000840
WANDSWORTH COUNCIL,ASC,SOCIAL SERVICES,CUSTOMER & CLIENT RECPTS - EXT,Revenue,CL CONT EXTERNAL RESIDENTIAL,829886,130280720,17/12/2015,(353.62),STALLCOMBE HOUSE,SP0000843
WANDSWORTH COUNCIL,ASC,SOCIAL SERVICES,CUSTOMER & CLIENT RECPTS - EXT,Revenue,CL CONT EXTERNAL RESIDENTIAL,829887,130280720,17/12/2015,(356.28),STALLCOMBE HOUSE,SP0000843
WANDSWORTH COUNCIL,ASC,SOCIAL SERVICES,CUSTOMER & CLIENT RECPTS - EXT,Revenue,CL CONT EXTERNAL RESIDENTIAL,836706,130280720,23/12/2015,(353.62),STALLCOMBE HOUSE,SP0000843
WANDSWORTH COUNCIL,ASC,SOCIAL SERVICES,CUSTOMER & CLIENT RECPTS - EXT,Revenue,CL CONT EXTERNAL RESIDENTIAL,826408,130280720,14/12/2015,(429.22),SCOPE,SP0000852
WANDSWORTH COUNCIL,ASC,SOCIAL SERVICES,CUSTOMER & CLIENT RECPTS - EXT,Revenue,CL CONT EXTERNAL RESIDENTIAL,831067,130280720,18/12/2015,(443.52),SCOPE,SP0000852
WANDSWORTH COUNCIL,ASC,SOCIAL SERVICES,CUSTOMER & CLIENT RECPTS - EXT,Revenue,CL CONT EXTERNAL RESIDENTIAL,831068,130280720,18/12/2015,(380.63),SCOPE,SP0000852
WANDSWORTH COUNCIL,ASC,SOCIAL SERVICES,CUSTOMER & CLIENT RECPTS - EXT,Revenue,CL CONT EXTERNAL RESIDENTIAL,828444,130280720,16/12/2015,(356.28),ASHCROFT CARE SERVICES,SP0000872
WANDSWORTH COUNCIL,ASC,SOCIAL SERVICES,CUSTOMER & CLIENT RECPTS - EXT,Revenue,CL CONT EXTERNAL RESIDENTIAL,836704,130280720,23/12/2015,(356.28),229 MITCHAM LANE LTD,SP0000884
WANDSWORTH COUNCIL,ASC,SOCIAL SERVICES,CUSTOMER & CLIENT RECPTS - EXT,Revenue,CL CONT EXTERNAL RESIDENTIAL,836705,130280720,23/12/2015,(356.28),229 MITCHAM LANE LTD,SP0000884
WANDSWORTH COUNCIL,ASC,SOCIAL SERVICES,CUSTOMER & CLIENT RECPTS - EXT,Revenue,CL CONT EXTERNAL RESIDENTIAL,833509,130280720,21/12/2015,(321.80),THE LEO TRUST,SP0000908
WANDSWORTH COUNCIL,ASC,SOCIAL SERVICES,CUSTOMER & CLIENT RECPTS - EXT,Revenue,CL CONT EXTERNAL RESIDENTIAL,828501,130280720,16/12/2015,(321.80),MISSION CARE,SP0000958
WANDSWORTH COUNCIL,ASC,SOCIAL SERVICES,CUSTOMER & CLIENT RECPTS - EXT,Revenue,CL CONT EXTERNAL RESIDENTIAL,828459,130280720,16/12/2015,(353.62),DOWNING (CHERTSEY ROAD) LTD,SP0000959
WANDSWORTH COUNCIL,ASC,SOCIAL SERVICES,CUSTOMER & CLIENT RECPTS - EXT,Revenue,CL CONT EXTERNAL RESIDENTIAL,820921,130280720,07/12/2015,(315.20),RIDGEWOOD CARE SERVICES LTD,SP0000969
WANDSWORTH COUNCIL,ASC,SOCIAL SERVICES,CUSTOMER & CLIENT RECPTS - EXT,Revenue,CL CONT EXTERNAL RESIDENTIAL,825522,130280720,11/12/2015,(319.40),RIDGEWOOD CARE SERVICES LTD,SP0000969
WANDSWORTH COUNCIL,ASC,SOCIAL SERVICES,CUSTOMER & CLIENT RECPTS - EXT,Revenue,CL CONT EXTERNAL RESIDENTIAL,828439,130280720,16/12/2015,(321.80),RIDGEWOOD CARE SERVICES LTD,SP0000969
WANDSWORTH COUNCIL,ASC,SOCIAL SERVICES,CUSTOMER & CLIENT RECPTS - EXT,Revenue,CL CONT EXTERNAL RESIDENTIAL,828440,130280720,16/12/2015,(400.60),RIDGEWOOD CARE SERVICES LTD,SP0000969
WANDSWORTH COUNCIL,ASC,SOCIAL SERVICES,CUSTOMER & CLIENT RECPTS - EXT,Revenue,CL CONT EXTERNAL RESIDENTIAL,818615,130280720,03/12/2015,(344.78),LEONARD CHESHIRE,SP0000976
WANDSWORTH COUNCIL,ASC,SOCIAL SERVICES,CUSTOMER & CLIENT RECPTS - EXT,Revenue,CL CONT EXTERNAL RESIDENTIAL,829715,130280720,17/12/2015,(321.80),LOTUS CARE HOME LTD,SP0001006
WANDSWORTH COUNCIL,ASC,SOCIAL SERVICES,CUSTOMER & CLIENT RECPTS - EXT,Revenue,CL CONT EXTERNAL RESIDENTIAL,831028,130280720,18/12/2015,(321.80),THE HOME FARM TRUST LTD,SP0001048
WANDSWORTH COUNCIL,ASC,SOCIAL SERVICES,CUSTOMER & CLIENT RECPTS - EXT,Revenue,CL CONT EXTERNAL RESIDENTIAL,831029,130280720,18/12/2015,(505.20),THE HOME FARM TRUST LTD,SP0001048
WANDSWORTH COUNCIL,ASC,SOCIAL SERVICES,CUSTOMER & CLIENT RECPTS - EXT,Revenue,CL CONT EXTERNAL RESIDENTIAL,831030,130280720,18/12/2015,(505.20),THE HOME FARM TRUST LTD,SP0001048
WANDSWORTH COUNCIL,ASC,SOCIAL SERVICES,CUSTOMER & CLIENT RECPTS - EXT,Revenue,CL CONT EXTERNAL RESIDENTIAL,831031,130280720,18/12/2015,(522.00),THE HOME FARM TRUST LTD,SP0001048
WANDSWORTH COUNCIL,ASC,SOCIAL SERVICES,CUSTOMER & CLIENT RECPTS - EXT,Revenue,CL CONT EXTERNAL RESIDENTIAL,816856,130280720,02/12/2015,(275.50),ALLIED CARE (MHS) LTD,SP0001069
WANDSWORTH COUNCIL,ASC,SOCIAL SERVICES,CUSTOMER & CLIENT RECPTS - EXT,Revenue,CL CONT EXTERNAL RESIDENTIAL,816862,130280720,02/12/2015,(321.80),ALLIED CARE (MHS) LTD,SP0001069
WANDSWORTH COUNCIL,ASC,SOCIAL SERVICES,CUSTOMER & CLIENT RECPTS - EXT,Revenue,CL CONT EXTERNAL RESIDENTIAL,816863,130280720,02/12/2015,(321.80),ALLIED CARE (MHS) LTD,SP0001069
WANDSWORTH COUNCIL,ASC,SOCIAL SERVICES,CUSTOMER & CLIENT RECPTS - EXT,Revenue,CL CONT EXTERNAL RESIDENTIAL,825524,130280720,11/12/2015,(344.78),SAXON COURT,SP0001100
WANDSWORTH COUNCIL,ASC,SOCIAL SERVICES,CUSTOMER & CLIENT RECPTS - EXT,Revenue,CL CONT EXTERNAL RESIDENTIAL,828551,130280720,16/12/2015,(356.28),SAXON COURT,SP0001100
WANDSWORTH COUNCIL,ASC,SOCIAL SERVICES,CUSTOMER & CLIENT RECPTS - EXT,Revenue,CL CONT EXTERNAL RESIDENTIAL,818632,130280720,03/12/2015,(356.28),ILG LTD,SP0001103
WANDSWORTH COUNCIL,ASC,SOCIAL SERVICES,CUSTOMER & CLIENT RECPTS - EXT,Revenue,CL CONT EXTERNAL RESIDENTIAL,818633,130280720,03/12/2015,(344.78),ILG LTD,SP0001103
WANDSWORTH COUNCIL,ASC,SOCIAL SERVICES,CUSTOMER & CLIENT RECPTS - EXT,Revenue,CL CONT EXTERNAL RESIDENTIAL,828452,130280720,16/12/2015,(356.28),ILG LTD,SP0001103
WANDSWORTH COUNCIL,ASC,SOCIAL SERVICES,CUSTOMER & CLIENT RECPTS - EXT,Revenue,CL CONT EXTERNAL RESIDENTIAL,826407,130280720,14/12/2015,(366.40),TOTTERDOWN,SP0001113
WANDSWORTH COUNCIL,ASC,SOCIAL SERVICES,CUSTOMER & CLIENT RECPTS - EXT,Revenue,CL CONT EXTERNAL RESIDENTIAL,823197,130280720,09/12/2015,(392.58),LONDON CARE PARTNERSHIP LTD,SP0001138
WANDSWORTH COUNCIL,ASC,SOCIAL SERVICES,CUSTOMER & CLIENT RECPTS - EXT,Revenue,CL CONT EXTERNAL RESIDENTIAL,823198,130280720,09/12/2015,(289.38),LONDON CARE PARTNERSHIP LTD,SP0001138
WANDSWORTH COUNCIL,ASC,SOCIAL SERVICES,CUSTOMER & CLIENT RECPTS - EXT,Revenue,CL CONT EXTERNAL RESIDENTIAL,823199,130280720,09/12/2015,(344.78),LONDON CARE PARTNERSHIP LTD,SP0001138
WANDSWORTH COUNCIL,ASC,SOCIAL SERVICES,CUSTOMER & CLIENT RECPTS - EXT,Revenue,CL CONT EXTERNAL RESIDENTIAL,823200,130280720,09/12/2015,(429.22),LONDON CARE PARTNERSHIP LTD,SP0001138
WANDSWORTH COUNCIL,ASC,SOCIAL SERVICES,CUSTOMER & CLIENT RECPTS - EXT,Revenue,CL CONT EXTERNAL RESIDENTIAL,823201,130280720,09/12/2015,(206.58),LONDON CARE PARTNERSHIP LTD,SP0001138
WANDSWORTH COUNCIL,ASC,SOCIAL SERVICES,CUSTOMER & CLIENT RECPTS - EXT,Revenue,CL CONT EXTERNAL RESIDENTIAL,823202,130280720,09/12/2015,(392.58),LONDON CARE PARTNERSHIP LTD,SP0001138
WANDSWORTH COUNCIL,ASC,SOCIAL SERVICES,CUSTOMER & CLIENT RECPTS - EXT,Revenue,CL CONT EXTERNAL RESIDENTIAL,828484,130280720,16/12/2015,(405.65),LONDON CARE PARTNERSHIP LTD,SP0001138
WANDSWORTH COUNCIL,ASC,SOCIAL SERVICES,CUSTOMER & CLIENT RECPTS - EXT,Revenue,CL CONT EXTERNAL RESIDENTIAL,828485,130280720,16/12/2015,(299.01),LONDON CARE PARTNERSHIP LTD,SP0001138
WANDSWORTH COUNCIL,ASC,SOCIAL SERVICES,CUSTOMER & CLIENT RECPTS - EXT,Revenue,CL CONT EXTERNAL RESIDENTIAL,828486,130280720,16/12/2015,(356.28),LONDON CARE PARTNERSHIP LTD,SP0001138
WANDSWORTH COUNCIL,ASC,SOCIAL SERVICES,CUSTOMER & CLIENT RECPTS - EXT,Revenue,CL CONT EXTERNAL RESIDENTIAL,828487,130280720,16/12/2015,(443.52),LONDON CARE PARTNERSHIP LTD,SP0001138
WANDSWORTH COUNCIL,ASC,SOCIAL SERVICES,CUSTOMER & CLIENT RECPTS - EXT,Revenue,CL CONT EXTERNAL RESIDENTIAL,828488,130280720,16/12/2015,(213.45),LONDON CARE PARTNERSHIP LTD,SP0001138
WANDSWORTH COUNCIL,ASC,SOCIAL SERVICES,CUSTOMER & CLIENT RECPTS - EXT,Revenue,CL CONT EXTERNAL RESIDENTIAL,828489,130280720,16/12/2015,(405.65),LONDON CARE PARTNERSHIP LTD,SP0001138
WANDSWORTH COUNCIL,ASC,SOCIAL SERVICES,CUSTOMER & CLIENT RECPTS - EXT,Revenue,CL CONT EXTERNAL RESIDENTIAL,836681,130280720,23/12/2015,(577.48),CHOICE CARE GROUP,SP0001367
WANDSWORTH COUNCIL,ASC,SOCIAL SERVICES,CUSTOMER & CLIENT RECPTS - EXT,Revenue,CL CONT EXTERNAL RESIDENTIAL,820919,130280720,07/12/2015,(356.28),HOME FROM HOME CARE LIMITED,SP0001373
WANDSWORTH COUNCIL,ASC,SOCIAL SERVICES,CUSTOMER & CLIENT RECPTS - EXT,Revenue,CL CONT EXTERNAL RESIDENTIAL,822366,130280720,08/12/2015,457.57,HOME FROM HOME CARE LIMITED,SP0001373
WANDSWORTH COUNCIL,ASC,SOCIAL SERVICES,CUSTOMER & CLIENT RECPTS - EXT,Revenue,CL CONT EXTERNAL RESIDENTIAL,825530,130280720,11/12/2015,(366.40),LARKFIELD HALL LTD T/A PEPENBURY,SP0001378
WANDSWORTH COUNCIL,ASC,SOCIAL SERVICES,CUSTOMER & CLIENT RECPTS - EXT,Revenue,CL CONT EXTERNAL RESIDENTIAL,825516,130280720,11/12/2015,(500.75),MIGHOUSE RESIDENTIAL CARE HOME LTD,SP0001402
WANDSWORTH COUNCIL,ASC,SOCIAL SERVICES,CUSTOMER & CLIENT RECPTS - EXT,Revenue,CL CONT EXTERNAL RESIDENTIAL,826410,130280720,14/12/2015,(400.60),MIGHOUSE RESIDENTIAL CARE HOME LTD,SP0001402
WANDSWORTH COUNCIL,ASC,SOCIAL SERVICES,CUSTOMER & CLIENT RECPTS - EXT,Revenue,CL CONT EXTERNAL RESIDENTIAL,837983,130280720,24/12/2015,(500.75),MIGHOUSE RESIDENTIAL CARE HOME LTD,SP0001402
WANDSWORTH COUNCIL,ASC,SOCIAL SERVICES,CUSTOMER & CLIENT RECPTS - EXT,Revenue,CL CONT EXTERNAL RESIDENTIAL,816012,130280720,02/12/2015,(405.65),ROOKERY HOVE PRIORY,SP0001498
WANDSWORTH COUNCIL,ASC,SOCIAL SERVICES,CUSTOMER & CLIENT RECPTS - EXT,Revenue,CL CONT EXTERNAL RESIDENTIAL,829738,130280720,17/12/2015,(321.80),MCCH SOCIETY LIMITED,SP0001531
WANDSWORTH COUNCIL,ASC,SOCIAL SERVICES,CUSTOMER & CLIENT RECPTS - EXT,Revenue,CL CONT EXTERNAL RESIDENTIAL,829739,130280720,17/12/2015,(321.80),MCCH SOCIETY LIMITED,SP0001531
WANDSWORTH COUNCIL,ASC,SOCIAL SERVICES,CUSTOMER & CLIENT RECPTS - EXT,Revenue,CL CONT EXTERNAL RESIDENTIAL,829744,130280720,17/12/2015,(391.70),NUTLEY HALL LTD,SP0001581
WANDSWORTH COUNCIL,ASC,SOCIAL SERVICES,CUSTOMER & CLIENT RECPTS - EXT,Revenue,CL CONT EXTERNAL RESIDENTIAL,828445,130280720,16/12/2015,(318.42),CRAEGMOOR OLD RECTORY BREDE PRIORY,SP0001621
WANDSWORTH COUNCIL,ASC,SOCIAL SERVICES,CUSTOMER & CLIENT RECPTS - EXT,Revenue,CL CONT EXTERNAL RESIDENTIAL,826391,130280720,14/12/2015,(113.13),ACH OF LONDON LLP,SP0001688
WANDSWORTH COUNCIL,ASC,SOCIAL SERVICES,CUSTOMER & CLIENT RECPTS - EXT,Revenue,CL CONT EXTERNAL RESIDENTIAL,837978,130280720,24/12/2015,(443.52),ACH OF LONDON LLP,SP0001688
WANDSWORTH COUNCIL,ASC,SOCIAL SERVICES,CUSTOMER & CLIENT RECPTS - EXT,Revenue,CL CONT EXTERNAL RESIDENTIAL,839469,130280720,31/12/2015,(146.15),ACH OF LONDON LLP,SP0001688
WANDSWORTH COUNCIL,ASC,SOCIAL SERVICES,CUSTOMER & CLIENT RECPTS - EXT,Revenue,CL CONT EXTERNAL RESIDENTIAL,839470,130280720,31/12/2015,(443.52),ACH OF LONDON LLP,SP0001688
WANDSWORTH COUNCIL,ASC,SOCIAL SERVICES,CUSTOMER & CLIENT RECPTS - EXT,Revenue,CL CONT EXTERNAL RESIDENTIAL,829752,130280720,17/12/2015,(356.28),PATHWAY HEALTHCARE,SP0001779
WANDSWORTH COUNCIL,ASC,SOCIAL SERVICES,CUSTOMER & CLIENT RECPTS - EXT,Revenue,CL CONT EXTERNAL RESIDENTIAL,816855,130280720,02/12/2015,(321.80),THE BRANDON TRUST,SP0005337
WANDSWORTH COUNCIL,ASC,SOCIAL SERVICES,CUSTOMER & CLIENT RECPTS - EXT,Revenue,CL CONT EXTERNAL RESIDENTIAL,818617,130280720,03/12/2015,(279.64),INGLESIDE CHILDRENS HOME LTD,SP0005426
WANDSWORTH COUNCIL,ASC,SOCIAL SERVICES,CUSTOMER & CLIENT RECPTS - EXT,Revenue,CL CONT EXTERNAL RESIDENTIAL,818618,130280720,03/12/2015,(279.64),INGLESIDE CHILDRENS HOME LTD,SP0005426
WANDSWORTH COUNCIL,ASC,SOCIAL SERVICES,CUSTOMER & CLIENT RECPTS - EXT,Revenue,CL CONT EXTERNAL RESIDENTIAL,828550,130280720,16/12/2015,(288.97),INGLESIDE CHILDRENS HOME LTD,SP0005426
WANDSWORTH COUNCIL,ASC,SOCIAL SERVICES,CUSTOMER & CLIENT RECPTS - EXT,Revenue,CL CONT EXTERNAL RESIDENTIAL,825510,130280720,11/12/2015,(400.60),ENHAM,SP0005845
WANDSWORTH COUNCIL,ASC,SOCIAL SERVICES,CUSTOMER & CLIENT RECPTS - EXT,Revenue,CL CONT EXTERNAL RESIDENTIAL,836698,130280720,23/12/2015,(400.60),ENHAM,SP0005845
WANDSWORTH COUNCIL,ASC,SOCIAL SERVICES,CUSTOMER & CLIENT RECPTS - EXT,Revenue,CL CONT EXTERNAL RESIDENTIAL,819193,130280720,04/12/2015,(321.80),NORCREST (2000) HOME LTD,SP0008343
WANDSWORTH COUNCIL,ASC,SOCIAL SERVICES,CUSTOMER & CLIENT RECPTS - EXT,Revenue,CL CONT EXTERNAL RESIDENTIAL,819194,130280720,04/12/2015,(321.80),NORCREST (2000) HOME LTD,SP0008343
WANDSWORTH COUNCIL,ASC,SOCIAL SERVICES,CUSTOMER & CLIENT RECPTS - EXT,Revenue,CL CONT EXTERNAL RESIDENTIAL,831059,130280720,18/12/2015,(321.80),NORCREST (2000) HOME LTD,SP0008343
WANDSWORTH COUNCIL,ASC,SOCIAL SERVICES,CUSTOMER & CLIENT RECPTS - EXT,Revenue,CLIENT CONTS - DIRECT PAYMENTS,821178,130280790,07/12/2015,(38.80),I DECIDE LTD (DIRECT PAYMENT),SP0006159
WANDSWORTH COUNCIL,ASC,SOCIAL SERVICES,CUSTOMER & CLIENT RECPTS - EXT,Revenue,CLIENT CONTS - DIRECT PAYMENTS,834009,130280790,21/12/2015,(38.80),I DECIDE LTD (DIRECT PAYMENT),SP0006159
WANDSWORTH COUNCIL,ASC,SOCIAL SERVICES,CUSTOMER & CLIENT RECPTS - EXT,Revenue,CLIENT CONTS EXTERNAL NURSING,816866,130280820,02/12/2015,(321.80),WINGHAM COURT,SP0000025
WANDSWORTH COUNCIL,ASC,SOCIAL SERVICES,CUSTOMER & CLIENT RECPTS - EXT,Revenue,CLIENT CONTS EXTERNAL NURSING,829917,130280820,17/12/2015,(625.41),ROSEDENE NURSING HOME,SP0000316
WANDSWORTH COUNCIL,ASC,SOCIAL SERVICES,CUSTOMER & CLIENT RECPTS - EXT,Revenue,CLIENT CONTS EXTERNAL NURSING,818637,130280820,03/12/2015,(400.60),VOYAGE CARE LTD,SP0000366
